Workbook

Sheet Data
A1: l (nm) | B1: sample 1 | C1: sample 2 | D1: sample 3 | E1: sample 4 | F1: sample 5 | G1: sample 6 | H1: sample 7 | I1: sample 8 | J1: sample 9 | K1: sample 10 | L1: sample 11 | M1: sample 12 | N1: sample 13 | O1: sample 14 | P1: sample 15 | Q1: sample 16 | R1: sample 17 | S1: sample 18 | T1: sample 19 | U1: sample 19 | V1: sample 19 | W1: sample 19 | X1: sample 23
A2: 375.1996765 | B2: 1.181385006 | C2: 3 | D2: 3 | E2: 3 | F2: 3 | G2: 3 | H2: 3 | I2: 3 | J2: 3 | K2: 3 | L2: 3
A3: 375.5446777 | B3: 1.196818602 | C3: 3 | D3: 3 | E3: 3 | F3: 3 | G3: 3 | H3: 3 | I3: 3 | J3: 3 | K3: 3 | L3: 3
A4: 375.8896179 | B4: 1.193088945 | C4: 3 | D4: 3 | E4: 3 | F4: 3 | G4: 3 | H4: 3 | I4: 3 | J4: 3 | K4: 3 | L4: 3
A5: 376.2345886 | B5: 1.156890143 | C5: 3 | D5: 3 | E5: 3 | F5: 3 | G5: 3 | H5: 3 | I5: 3 | J5: 3 | K5: 3 | L5: 3
A6: 376.5794067 | B6: 1.143725263 | C6: 3 | D6: 3 | E6: 3 | F6: 3 | G6: 3 | H6: 3 | I6: 3 | J6: 3 | K6: 3 | L6: 3
A7: 376.9242859 | B7: 1.156079949 | C7: 3 | D7: 3 | E7: 3 | F7: 3 | G7: 3 | H7: 3 | I7: 3 | J7: 3 | K7: 3 | L7: 3
A8: 377.269104 | B8: 1.207839846 | C8: 3 | D8: 3 | E8: 3 | F8: 3 | G8: 3 | H8: 3 | I8: 3 | J8: 3 | K8: 3 | L8: 3
A9: 377.6139221 | B9: 1.231138467 | C9: 3 | D9: 3 | E9: 3 | F9: 3 | G9: 3 | H9: 3 | I9: 3 | J9: 3 | K9: 3 | L9: 3
A10: 377.9586487 | B10: 1.232867405 | C10: 3 | D10: 3 | E10: 3 | F10: 3 | G10: 3 | H10: 3 | I10: 3 | J10: 3 | K10: 3 | L10: 3
A11: 378.3034058 | B11: 1.271684424 | C11: 3 | D11: 3 | E11: 3 | F11: 3 | G11: 3 | H11: 3 | I11: 3 | J11: 3 | K11: 3 | L11: 3
A12: 378.6481018 | B12: 1.269088378 | C12: 3 | D12: 3 | E12: 3 | F12: 3 | G12: 3 | H12: 3 | I12: 3 | J12: 3 | K12: 3 | L12: 3
A13: 378.9927673 | B13: 1.339138491 | C13: 3 | D13: 3 | E13: 3 | F13: 3 | G13: 3 | H13: 3 | I13: 3 | J13: 3 | K13: 3 | L13: 3
A14: 379.3374023 | B14: 1.30038194 | C14: 2.339231184 | D14: 3 | E14: 3 | F14: 3 | G14: 3 | H14: 3 | I14: 3 | J14: 3 | K14: 3 | L14: 3
A15: 379.6819763 | B15: 1.305776578 | C15: 2.438616917 | D15: 3 | E15: 3 | F15: 3 | G15: 3 | H15: 3 | I15: 3 | J15: 3 | K15: 3 | L15: 3
A16: 380.0265808 | B16: 1.288287859 | C16: 3 | D16: 3 | E16: 3 | F16: 3 | G16: 3 | H16: 3 | I16: 3 | J16: 3 | K16: 3 | L16: 3
A17: 380.3710938 | B17: 1.293927604 | C17: 3 | D17: 3 | E17: 3 | F17: 3 | G17: 3 | H17: 3 | I17: 3 | J17: 3 | K17: 3 | L17: 3
A18: 380.7156067 | B18: 1.298196638 | C18: 3 | D18: 3 | E18: 3 | F18: 3 | G18: 3 | H18: 3 | I18: 3 | J18: 3 | K18: 3 | L18: 3
A19: 381.0600586 | B19: 1.323941738 | C19: 3 | D19: 3 | E19: 3 | F19: 3 | G19: 3 | H19: 3 | I19: 3 | J19: 3 | K19: 3 | L19: 3
A20: 381.40448 | B20: 1.381435157 | C20: 3 | D20: 3 | E20: 3 | F20: 3 | G20: 3 | H20: 3 | I20: 3 | J20: 3 | K20: 3 | L20: 3
A21: 381.7489319 | B21: 1.405341924 | C21: 3 | D21: 3 | E21: 3 | F21: 3 | G21: 3 | H21: 3 | I21: 3 | J21: 3 | K21: 3 | L21: 3
A22: 382.0932922 | B22: 1.38546459 | C22: 3 | D22: 3 | E22: 3 | F22: 3 | G22: 3 | H22: 3 | I22: 3 | J22: 3 | K22: 3 | L22: 3
A23: 382.4376221 | B23: 1.36740319 | C23: 3 | D23: 3 | E23: 3 | F23: 3 | G23: 3 | H23: 3 | I23: 3 | J23: 3 | K23: 3 | L23: 3
A24: 382.7819519 | B24: 1.399435586 | C24: 3 | D24: 3 | E24: 3 | F24: 3 | G24: 3 | H24: 3 | I24: 3 | J24: 3 | K24: 3 | L24: 3
A25: 383.1262207 | B25: 1.485606299 | C25: 3 | D25: 3 | E25: 3 | F25: 3 | G25: 3 | H25: 3 | I25: 3 | J25: 3 | K25: 3 | L25: 3
A26: 383.470459 | B26: 1.525828996 | C26: 3 | D26: 3 | E26: 3 | F26: 3 | G26: 3 | H26: 3 | I26: 3 | J26: 3 | K26: 3 | L26: 3
A27: 383.8146667 | B27: 1.546997333 | C27: 3 | D27: 3 | E27: 3 | F27: 3 | G27: 3 | H27: 3 | I27: 3 | J27: 3 | K27: 3 | L27: 3
A28: 384.1588745 | B28: 1.543807832 | C28: 3 | D28: 3 | E28: 3 | F28: 3 | G28: 3 | H28: 3 | I28: 3 | J28: 3 | K28: 3 | L28: 3
A29: 384.5029907 | B29: 1.552768869 | C29: 3 | D29: 3 | E29: 3 | F29: 3 | G29: 3 | H29: 3 | I29: 3 | J29: 3 | K29: 3 | L29: 3
A30: 384.8471375 | B30: 1.538792801 | C30: 3 | D30: 3 | E30: 3 | F30: 3 | G30: 3 | H30: 3 | I30: 3 | J30: 3 | K30: 3 | L30: 3
A31: 385.1911926 | B31: 1.556073501 | C31: 3 | D31: 3 | E31: 3 | F31: 3 | G31: 3 | H31: 3 | I31: 3 | J31: 3 | K31: 3 | L31: 3
A32: 385.5352478 | B32: 1.585463984 | C32: 3 | D32: 3 | E32: 3 | F32: 3 | G32: 3 | H32: 3 | I32: 3 | J32: 3 | K32: 3 | L32: 3
A33: 385.8792725 | B33: 1.673173541 | C33: 3 | D33: 3 | E33: 3 | F33: 3 | G33: 3 | H33: 3 | I33: 3 | J33: 3 | K33: 3 | L33: 3
A34: 386.2232666 | B34: 1.725531567 | C34: 3 | D34: 3 | E34: 3 | F34: 3 | G34: 3 | H34: 3 | I34: 3 | J34: 3 | K34: 3 | L34: 3
A35: 386.5671997 | B35: 1.716194629 | C35: 3 | D35: 3 | E35: 3 | F35: 3 | G35: 3 | H35: 3 | I35: 3 | J35: 3 | K35: 3 | L35: 3
A36: 386.9111633 | B36: 1.726598845 | C36: 3 | D36: 3 | E36: 3 | F36: 3 | G36: 3 | H36: 3 | I36: 3 | J36: 3 | K36: 3 | L36: 3
A37: 387.2550049 | B37: 1.674941568 | C37: 3 | D37: 3 | E37: 3 | F37: 3 | G37: 3 | H37: 3 | I37: 3 | J37: 3 | K37: 3 | L37: 3
A38: 387.598877 | B38: 1.700277529 | C38: 3 | D38: 3 | E38: 3 | F38: 3 | G38: 3 | H38: 3 | I38: 3 | J38: 3 | K38: 3 | L38: 3
A39: 387.9426575 | B39: 1.705646793 | C39: 3 | D39: 3 | E39: 3 | F39: 3 | G39: 3 | H39: 3 | I39: 3 | J39: 3 | K39: 3 | L39: 3
A40: 388.286499 | B40: 1.794605249 | C40: 3 | D40: 3 | E40: 3 | F40: 3 | G40: 3 | H40: 3 | I40: 3 | J40: 3 | K40: 3 | L40: 3
A41: 388.630249 | B41: 1.822540554 | C41: 3 | D41: 3 | E41: 3 | F41: 3 | G41: 3 | H41: 3 | I41: 3 | J41: 3 | K41: 3 | L41: 3
A42: 388.9739685 | B42: 1.813087667 | C42: 3 | D42: 3 | E42: 3 | F42: 3 | G42: 3 | H42: 3 | I42: 3 | J42: 3 | K42: 3 | L42: 3
A43: 389.3176575 | B43: 1.838337553 | C43: 3 | D43: 3 | E43: 3 | F43: 3 | G43: 3 | H43: 3 | I43: 3 | J43: 3 | K43: 3 | L43: 3
A44: 389.6613464 | B44: 1.835539032 | C44: 3 | D44: 3 | E44: 3 | F44: 3 | G44: 3 | H44: 3 | I44: 3 | J44: 3 | K44: 3 | L44: 3
A45: 390.0049744 | B45: 1.874866062 | C45: 3 | D45: 3 | E45: 3 | F45: 3 | G45: 3 | H45: 3 | I45: 3 | J45: 3 | K45: 3 | L45: 3
A46: 390.3485413 | B46: 1.84462968 | C46: 3 | D46: 3 | E46: 3 | F46: 3 | G46: 3 | H46: 3 | I46: 3 | J46: 3 | K46: 3 | L46: 3
A47: 390.6921082 | B47: 1.842954111 | C47: 3 | D47: 3 | E47: 3 | F47: 3 | G47: 3 | H47: 3 | I47: 3 | J47: 3 | K47: 3 | L47: 3
A48: 391.0356445 | B48: 1.864094611 | C48: 3 | D48: 3 | E48: 3 | F48: 3 | G48: 3 | H48: 3 | I48: 3 | J48: 3 | K48: 3 | L48: 3
A49: 391.3791504 | B49: 1.824490193 | C49: 3 | D49: 3 | E49: 3 | F49: 3 | G49: 3 | H49: 3 | I49: 3 | J49: 3 | K49: 3 | L49: 3
A50: 391.7225952 | B50: 1.874453185 | C50: 3 | D50: 3 | E50: 3 | F50: 3 | G50: 3 | H50: 3 | I50: 3 | J50: 3 | K50: 3 | L50: 3
A51: 392.06604 | B51: 1.853384216 | C51: 3 | D51: 3 | E51: 3 | F51: 3 | G51: 3 | H51: 3 | I51: 3 | J51: 3 | K51: 3 | L51: 3
A52: 392.4094543 | B52: 1.919064164 | C52: 3 | D52: 3 | E52: 3 | F52: 3 | G52: 3 | H52: 3 | I52: 3 | J52: 3 | K52: 3 | L52: 3
A53: 392.7528076 | B53: 1.919112597 | C53: 3.903342556 | D53: 3 | E53: 3 | F53: 3 | G53: 3 | H53: 3 | I53: 3 | J53: 3 | K53: 3 | L53: 3
A54: 393.0961304 | B54: 1.987961572 | C54: 3 | D54: 3 | E54: 3 | F54: 3 | G54: 3 | H54: 3 | I54: 3 | J54: 3 | K54: 3 | L54: 3
A55: 393.4394531 | B55: 1.978557705 | C55: 3 | D55: 3 | E55: 3 | F55: 3 | G55: 3 | H55: 3 | I55: 3 | J55: 3 | K55: 3 | L55: 3
A56: 393.7827148 | B56: 1.957828833 | C56: 3 | D56: 3 | E56: 3 | F56: 3 | G56: 3 | H56: 3 | I56: 3 | J56: 3 | K56: 3 | L56: 3
A57: 394.1259766 | B57: 1.944679062 | C57: 3.830144831 | D57: 3 | E57: 3 | F57: 3 | G57: 3 | H57: 3 | I57: 3 | J57: 3 | K57: 3 | L57: 3
A58: 394.4691772 | B58: 1.950755788 | C58: 3.773958447 | D58: 3 | E58: 3 | F58: 3 | G58: 3 | H58: 3 | I58: 3 | J58: 3 | K58: 3 | L58: 3
A59: 394.8123474 | B59: 1.953247023 | C59: 2.96561825 | D59: 3 | E59: 3 | F59: 3 | G59: 3 | H59: 3 | I59: 3 | J59: 3 | K59: 3 | L59: 3
A60: 395.1554565 | B60: 1.942904753 | C60: 2.70916511 | D60: 3 | E60: 3 | F60: 3 | G60: 3 | H60: 3 | I60: 3 | J60: 3 | K60: 3 | L60: 3
A61: 395.4985962 | B61: 1.970226609 | C61: 2.972215089 | D61: 3 | E61: 3 | F61: 3 | G61: 3 | H61: 3 | I61: 3 | J61: 3 | K61: 3 | L61: 3
A62: 395.8416443 | B62: 2.016702821 | C62: 3.335049055 | D62: 3 | E62: 3 | F62: 3 | G62: 3 | H62: 3 | I62: 3 | J62: 3 | K62: 3 | L62: 3
A63: 396.1847229 | B63: 2.038193476 | C63: 3 | D63: 3 | E63: 3 | F63: 3 | G63: 3 | H63: 3 | I63: 3 | J63: 3 | K63: 3 | L63: 3
A64: 396.5276794 | B64: 2.091002191 | C64: 3 | D64: 3 | E64: 3 | F64: 3 | G64: 3 | H64: 3 | I64: 3 | J64: 3 | K64: 3 | L64: 3
A65: 396.870697 | B65: 2.088328009 | C65: 3 | D65: 3 | E65: 3 | F65: 3 | G65: 3 | H65: 3 | I65: 3 | J65: 3 | K65: 3 | L65: 3
A66: 397.213623 | B66: 1.960592025 | C66: 2.908315902 | D66: 3 | E66: 3 | F66: 3 | G66: 3 | H66: 3 | I66: 3 | J66: 3 | K66: 3 | L66: 3
A67: 397.5565491 | B67: 1.866670353 | C67: 2.481448882 | D67: 2.667844486 | E67: 3 | F67: 3 | G67: 3 | H67: 3 | I67: 3 | J67: 3 | K67: 3 | L67: 3
A68: 397.8993835 | B68: 1.830060542 | C68: 2.393269083 | D68: 2.555166021 | E68: 3 | F68: 3 | G68: 3 | H68: 3 | I68: 3 | J68: 3 | K68: 3 | L68: 3
A69: 398.2422485 | B69: 1.865976362 | C69: 2.391846043 | D69: 2.707208303 | E69: 3 | F69: 3 | G69: 3 | H69: 3 | I69: 3 | J69: 3 | K69: 3 | L69: 3
A70: 398.5850525 | B70: 1.873273149 | C70: 2.417339479 | D70: 2.879741076 | E70: 3 | F70: 3 | G70: 3 | H70: 3 | I70: 3 | J70: 3 | K70: 3 | L70: 3
A71: 398.9278259 | B71: 1.86785175 | C71: 2.311642956 | D71: 2.820440788 | E71: 3 | F71: 3 | G71: 3 | H71: 3 | I71: 3 | J71: 3 | K71: 3 | L71: 3
A72: 399.2705688 | B72: 1.876674187 | C72: 2.29223929 | D72: 2.929061388 | E72: 3 | F72: 3 | G72: 3 | H72: 3 | I72: 3 | J72: 3 | K72: 3 | L72: 3
A73: 399.6132812 | B73: 1.855660843 | C73: 2.318771726 | D73: 2.797505338 | E73: 3 | F73: 3 | G73: 3 | H73: 3 | I73: 3 | J73: 3 | K73: 3 | L73: 3
A74: 399.9559631 | B74: 1.840435323 | C74: 2.329897847 | D74: 2.873964023 | E74: 3 | F74: 3 | G74: 3 | H74: 3 | I74: 3 | J74: 3 | K74: 3 | L74: 3
A75: 400.2986145 | B75: 1.819176503 | C75: 2.287317194 | D75: 2.852244641 | E75: 3 | F75: 3 | G75: 3 | H75: 3 | I75: 3 | J75: 3 | K75: 3 | L75: 3
A76: 400.6412354 | B76: 1.810423154 | C76: 2.248939556 | D76: 2.6871251 | E76: 3 | F76: 3 | G76: 3 | H76: 3 | I76: 3 | J76: 3 | K76: 3 | L76: 3
A77: 400.9838257 | B77: 1.799253012 | C77: 2.204626063 | D77: 2.526202104 | E77: 3 | F77: 3 | G77: 3 | H77: 3 | I77: 3 | J77: 3 | K77: 3 | L77: 3
A78: 401.326355 | B78: 1.772970707 | C78: 2.196898981 | D78: 2.430980294 | E78: 3 | F78: 3 | G78: 3 | H78: 3 | I78: 3 | J78: 3 | K78: 3 | L78: 3
A79: 401.6688843 | B79: 1.753179479 | C79: 2.158581929 | D79: 2.424117253 | E79: 3 | F79: 3 | G79: 3 | H79: 3 | I79: 3 | J79: 3 | K79: 3 | L79: 3
A80: 402.0113525 | B80: 1.741096751 | C80: 2.126948176 | D80: 2.416770749 | E80: 3 | F80: 3 | G80: 3 | H80: 3 | I80: 3 | J80: 3 | K80: 3 | L80: 3
A81: 402.3537903 | B81: 1.735597215 | C81: 2.061743602 | D81: 2.38136001 | E81: 3.132857922 | F81: 3 | G81: 3 | H81: 3 | I81: 3 | J81: 3 | K81: 3 | L81: 3
A82: 402.696228 | B82: 1.721923944 | C82: 2.049818243 | D82: 2.371011815 | E82: 3.070943195 | F82: 3 | G82: 3 | H82: 3 | I82: 3 | J82: 3 | K82: 3 | L82: 3
A83: 403.0386047 | B83: 1.715101657 | C83: 2.037071277 | D83: 2.320092466 | E83: 3.058147361 | F83: 3 | G83: 3 | H83: 3 | I83: 3 | J83: 3 | K83: 3 | L83: 3
A84: 403.3809509 | B84: 1.716113077 | C84: 2.050619601 | D84: 2.318274739 | E84: 3.402360612 | F84: 3 | G84: 3 | H84: 3 | I84: 3 | J84: 3 | K84: 3 | L84: 3
A85: 403.7232666 | B85: 1.718701239 | C85: 2.018755957 | D85: 2.300735627 | E85: 3.412814398 | F85: 3 | G85: 3 | H85: 3 | I85: 3 | J85: 3 | K85: 3 | L85: 3
A86: 404.0655518 | B86: 1.700799664 | C86: 2.004303864 | D86: 2.27464829 | E86: 3.193074566 | F86: 3 | G86: 3 | H86: 3 | I86: 3 | J86: 3 | K86: 3 | L86: 3
A87: 404.4077759 | B87: 1.66454651 | C87: 1.95158712 | D87: 2.214307328 | E87: 2.627110142 | F87: 3 | G87: 3 | H87: 3 | I87: 3 | J87: 3 | K87: 3 | L87: 3
A88: 404.750061 | B88: 1.642910359 | C88: 1.922968807 | D88: 2.149800848 | E88: 2.50168856 | F88: 3.191195697 | G88: 3 | H88: 3 | I88: 3 | J88: 3 | K88: 3 | L88: 3
A89: 405.0921936 | B89: 1.630380133 | C89: 1.89984571 | D89: 2.12930647 | E89: 2.484813312 | F89: 3.160880383 | G89: 3 | H89: 3 | I89: 3 | J89: 3 | K89: 3 | L89: 3
A90: 405.4343567 | B90: 1.618758426 | C90: 1.89052879 | D90: 2.113307816 | E90: 2.618182086 | F90: 3.757929792 | G90: 3 | H90: 3 | I90: 3 | J90: 3 | K90: 3 | L90: 3
A91: 405.7764587 | B91: 1.608723059 | C91: 1.869335708 | D91: 2.115088785 | E91: 2.633020645 | F91: 3 | G91: 3 | H91: 3 | I91: 3 | J91: 3 | K91: 3 | L91: 3
A92: 406.1185608 | B92: 1.591051517 | C92: 1.842807398 | D92: 2.072975599 | E92: 2.51896245 | F92: 3 | G92: 3 | H92: 3 | I92: 3 | J92: 3 | K92: 3 | L92: 3
A93: 406.4606018 | B93: 1.580014937 | C93: 1.838426028 | D93: 2.042911399 | E93: 2.48518272 | F93: 3.878179838 | G93: 3 | H93: 3 | I93: 3 | J93: 3 | K93: 3 | L93: 3
A94: 406.8026428 | B94: 1.560444469 | C94: 1.829424632 | D94: 2.013402263 | E94: 2.43554539 | F94: 3.940928524 | G94: 3 | H94: 3 | I94: 3 | J94: 3 | K94: 3 | L94: 3
A95: 407.1445923 | B95: 1.545333449 | C95: 1.808177767 | D95: 1.986318481 | E95: 2.419855401 | F95: 3.290895171 | G95: 3 | H95: 3 | I95: 3 | J95: 3 | K95: 3 | L95: 3
A96: 407.4865723 | B96: 1.53597406 | C96: 1.777899863 | D96: 1.973745655 | E96: 2.396282065 | F96: 3.267571483 | G96: 3 | H96: 3 | I96: 3 | J96: 3 | K96: 3 | L96: 3
A97: 407.8284607 | B97: 1.521153251 | C97: 1.753642238 | D97: 1.957344988 | E97: 2.350497517 | F97: 3.079420162 | G97: 3 | H97: 3 | I97: 3 | J97: 3 | K97: 3 | L97: 3
A98: 408.1703796 | B98: 1.513434437 | C98: 1.741494745 | D98: 1.949991478 | E98: 2.330285411 | F98: 3.171978236 | G98: 3 | H98: 3 | I98: 3 | J98: 3 | K98: 3 | L98: 3
A99: 408.512207 | B99: 1.495187019 | C99: 1.720631256 | D99: 1.93856157 | E99: 2.27404583 | F99: 2.965081042 | G99: 3 | H99: 3 | I99: 3 | J99: 3 | K99: 3 | L99: 3
A100: 408.8540344 | B100: 1.482267676 | C100: 1.698507748 | D100: 1.903052323 | E100: 2.244672133 | F100: 2.834019999 | G100: 3 | H100: 3 | I100: 3 | J100: 3 | K100: 3 | L100: 3
A101: 409.1958008 | B101: 1.462623968 | C101: 1.675767934 | D101: 1.881457226 | E101: 2.213801676 | F101: 2.756059936 | G101: 3 | H101: 3 | I101: 3 | J101: 3 | K101: 3 | L101: 3
A102: 409.5375977 | B102: 1.451757124 | C102: 1.662435407 | D102: 1.859153048 | E102: 2.200288484 | F102: 2.714484867 | G102: 3 | H102: 3 | I102: 3 | J102: 3 | K102: 3 | L102: 3
A103: 409.879303 | B103: 1.441032755 | C103: 1.649691378 | D103: 1.853072836 | E103: 2.185409884 | F103: 2.680689345 | G103: 3 | H103: 3 | I103: 3 | J103: 3 | K103: 3 | L103: 3
A104: 410.2209778 | B104: 1.429305338 | C104: 1.640840322 | D104: 1.854474001 | E104: 2.152020284 | F104: 2.649586386 | G104: 3 | H104: 3 | I104: 3 | J104: 3 | K104: 3 | L104: 3
A105: 410.5626221 | B105: 1.412397762 | C105: 1.630988613 | D105: 1.838289129 | E105: 2.120467599 | F105: 2.671102502 | G105: 3 | H105: 3 | I105: 3 | J105: 3 | K105: 3 | L105: 3
A106: 410.9042664 | B106: 1.397578672 | C106: 1.619545619 | D106: 1.822465144 | E106: 2.09578067 | F106: 2.625698838 | G106: 3 | H106: 3 | I106: 3 | J106: 3 | K106: 3 | L106: 3
A107: 411.2458191 | B107: 1.388806985 | C107: 1.602413001 | D107: 1.789669654 | E107: 2.086399746 | F107: 2.581126857 | G107: 3 | H107: 3 | I107: 3 | J107: 3 | K107: 3 | L107: 3
A108: 411.5873718 | B108: 1.376464491 | C108: 1.585353036 | D108: 1.776519276 | E108: 2.074607441 | F108: 2.531168736 | G108: 3 | H108: 3 | I108: 3 | J108: 3 | K108: 3 | L108: 3
A109: 411.928894 | B109: 1.36447937 | C109: 1.564678648 | D109: 1.762326144 | E109: 2.048549928 | F109: 2.521490517 | G109: 3 | H109: 3 | I109: 3 | J109: 3 | K109: 3 | L109: 3
A110: 412.2704163 | B110: 1.349832645 | C110: 1.553136336 | D110: 1.754623895 | E110: 2.027064161 | F110: 2.50146779 | G110: 3 | H110: 3 | I110: 3 | J110: 3 | K110: 3 | L110: 3
A111: 412.6118469 | B111: 1.342238262 | C111: 1.54149672 | D111: 1.742698571 | E111: 2.011625824 | F111: 2.450957969 | G111: 3.621217132 | H111: 3 | I111: 3 | J111: 3 | K111: 3 | L111: 3
A112: 412.9532776 | B112: 1.331070395 | C112: 1.532668 | D112: 1.728761836 | E112: 2.00264379 | F112: 2.430778451 | G112: 3.51907759 | H112: 3 | I112: 3 | J112: 3 | K112: 3 | L112: 3
A113: 413.2946472 | B113: 1.319992083 | C113: 1.513587634 | D113: 1.710626426 | E113: 1.984733059 | F113: 2.364415638 | G113: 3.272730664 | H113: 3 | I113: 3 | J113: 3 | K113: 3 | L113: 3
A114: 413.6360168 | B114: 1.305136139 | C114: 1.502561289 | D114: 1.693816019 | E114: 1.966198192 | F114: 2.342399293 | G114: 3.181091438 | H114: 3 | I114: 3 | J114: 3 | K114: 3 | L114: 3
A115: 413.9773254 | B115: 1.292036763 | C115: 1.491292153 | D115: 1.685512734 | E115: 1.947409441 | F115: 2.309297543 | G115: 2.962608715 | H115: 3 | I115: 3 | J115: 3 | K115: 3 | L115: 3
A116: 414.3186035 | B116: 1.277998263 | C116: 1.47813395 | D116: 1.671044352 | E116: 1.936987573 | F116: 2.326439447 | G116: 2.941480413 | H116: 3 | I116: 3 | J116: 3 | K116: 3 | L116: 3
A117: 414.6598816 | B117: 1.269884342 | C117: 1.465178916 | D117: 1.661710475 | E117: 1.926760056 | F117: 2.302230433 | G117: 2.891541215 | H117: 3 | I117: 3 | J117: 3 | K117: 3 | L117: 3
A118: 415.0010681 | B118: 1.258424319 | C118: 1.455699462 | D118: 1.644937239 | E118: 1.924796706 | F118: 2.270812383 | G118: 2.942028668 | H118: 3 | I118: 3 | J118: 3 | K118: 3 | L118: 3
A119: 415.3422852 | B119: 1.250749879 | C119: 1.450528797 | D119: 1.642461375 | E119: 1.913867736 | F119: 2.247872294 | G119: 2.910841219 | H119: 3 | I119: 3 | J119: 3 | K119: 3 | L119: 3
A120: 415.6834106 | B120: 1.239701726 | C120: 1.438057583 | D120: 1.628514097 | E120: 1.900355191 | F120: 2.241474195 | G120: 2.851540752 | H120: 3 | I120: 3 | J120: 3 | K120: 3 | L120: 3
A121: 416.0245667 | B121: 1.231675312 | C121: 1.427282575 | D121: 1.617524792 | E121: 1.883706692 | F121: 2.228319072 | G121: 2.841321692 | H121: 3 | I121: 3 | J121: 3 | K121: 3 | L121: 3
A122: 416.3656006 | B122: 1.21866647 | C122: 1.421501666 | D122: 1.606716858 | E122: 1.855461292 | F122: 2.208535911 | G122: 2.725349477 | H122: 3 | I122: 3 | J122: 3 | K122: 3 | L122: 3
A123: 416.706665 | B123: 1.208092568 | C123: 1.412866984 | D123: 1.599078934 | E123: 1.841770729 | F123: 2.205549494 | G123: 2.701098866 | H123: 3 | I123: 3 | J123: 3 | K123: 3 | L123: 3
A124: 417.0476685 | B124: 1.197990183 | C124: 1.401749108 | D124: 1.587848288 | E124: 1.822502816 | F124: 2.199384435 | G124: 2.674580391 | H124: 3 | I124: 3 | J124: 3 | K124: 3 | L124: 3
A125: 417.3887024 | B125: 1.188585534 | C125: 1.383730262 | D125: 1.570145072 | E125: 1.822999697 | F125: 2.186893899 | G125: 2.633058117 | H125: 3 | I125: 3 | J125: 3 | K125: 3 | L125: 3
A126: 417.7296143 | B126: 1.179094894 | C126: 1.374681416 | D126: 1.55657696 | E126: 1.809522886 | F126: 2.169806418 | G126: 2.624932714 | H126: 3 | I126: 3 | J126: 3 | K126: 3 | L126: 3
A127: 418.0705566 | B127: 1.171092042 | C127: 1.36555598 | D127: 1.550663154 | E127: 1.803103605 | F127: 2.146501688 | G127: 2.598001991 | H127: 3 | I127: 3 | J127: 3 | K127: 3 | L127: 3
A128: 418.4114075 | B128: 1.161805957 | C128: 1.355738587 | D128: 1.544534245 | E128: 1.79662304 | F128: 2.134658449 | G128: 2.622374196 | H128: 3 | I128: 3 | J128: 3 | K128: 3 | L128: 3
A129: 418.7522888 | B129: 1.152889532 | C129: 1.344363648 | D129: 1.535642145 | E129: 1.7913959 | F129: 2.117082202 | G129: 2.620800946 | H129: 3 | I129: 3 | J129: 3 | K129: 3 | L129: 3
A130: 419.0930786 | B130: 1.140557554 | C130: 1.334425284 | D130: 1.526069264 | E130: 1.779457817 | F130: 2.108751913 | G130: 2.571364543 | H130: 3 | I130: 3 | J130: 3 | K130: 3 | L130: 3
A131: 419.4338989 | B131: 1.133322779 | C131: 1.330530064 | D131: 1.516803139 | E131: 1.75897899 | F131: 2.096961547 | G131: 2.523551383 | H131: 3 | I131: 3 | J131: 3 | K131: 3 | L131: 3
A132: 419.7745972 | B132: 1.1217295 | C132: 1.322118564 | D132: 1.508013358 | E132: 1.743752128 | F132: 2.074086365 | G132: 2.488696725 | H132: 3 | I132: 3 | J132: 3 | K132: 3 | L132: 3
A133: 420.1153259 | B133: 1.115121515 | C133: 1.316583507 | D133: 1.497824769 | E133: 1.730347264 | F133: 2.067825207 | G133: 2.479133485 | H133: 3 | I133: 3 | J133: 3 | K133: 3 | L133: 3
A134: 420.4560242 | B134: 1.105967734 | C134: 1.30555033 | D134: 1.487906835 | E134: 1.726586417 | F134: 2.061721266 | G134: 2.489047495 | H134: 3 | I134: 3 | J134: 3 | K134: 3 | L134: 3
A135: 420.7966614 | B135: 1.100262504 | C135: 1.297210408 | D135: 1.479391652 | E135: 1.715850983 | F135: 2.054424937 | G135: 2.472563771 | H135: 3 | I135: 3 | J135: 3 | K135: 3 | L135: 3
A136: 421.1372986 | B136: 1.092975926 | C136: 1.288457362 | D136: 1.474204902 | E136: 1.714864364 | F136: 2.049177804 | G136: 2.429792713 | H136: 3 | I136: 3 | J136: 3 | K136: 3 | L136: 3
A137: 421.4778442 | B137: 1.084926569 | C137: 1.281159558 | D137: 1.469700701 | E137: 1.706505408 | F137: 2.043305932 | G137: 2.401373556 | H137: 3 | I137: 3 | J137: 3 | K137: 3 | L137: 3
A138: 421.8184204 | B138: 1.077809887 | C138: 1.27521122 | D138: 1.46495507 | E138: 1.702344756 | F138: 2.036418273 | G138: 2.363666037 | H138: 3 | I138: 3 | J138: 3 | K138: 3 | L138: 3
A139: 422.158905 | B139: 1.069453114 | C139: 1.267766032 | D139: 1.454594284 | E139: 1.693596813 | F139: 2.018721346 | G139: 2.367649371 | H139: 3.669507711 | I139: 3 | J139: 3 | K139: 3 | L139: 3
A140: 422.4993896 | B140: 1.062445008 | C140: 1.260341142 | D140: 1.445039401 | E140: 1.689560089 | F140: 1.996730341 | G140: 2.343607194 | H140: 3.702978594 | I140: 3 | J140: 3 | K140: 3 | L140: 3
A141: 422.8398438 | B141: 1.054690114 | C141: 1.250091704 | D141: 1.435480666 | E141: 1.677801499 | F141: 1.981927801 | G141: 2.35086435 | H141: 3.337532644 | I141: 3 | J141: 3 | K141: 3 | L141: 3
A142: 423.1802368 | B142: 1.045794043 | C142: 1.240952074 | D142: 1.428999679 | E142: 1.664901311 | F142: 1.964885393 | G142: 2.329271855 | H142: 3.308087412 | I142: 3 | J142: 3 | K142: 3 | L142: 3
A143: 423.5206299 | B143: 1.037434241 | C143: 1.234754948 | D143: 1.421526092 | E143: 1.659989294 | F143: 1.952215182 | G143: 2.300274214 | H143: 3.174858721 | I143: 3 | J143: 3 | K143: 3 | L143: 3
A144: 423.8609619 | B144: 1.028340395 | C144: 1.228462527 | D144: 1.41510443 | E144: 1.649506021 | F144: 1.946275917 | G144: 2.269275154 | H144: 3.146252861 | I144: 3 | J144: 3 | K144: 3 | L144: 3
A145: 424.2012939 | B145: 1.022302118 | C145: 1.220344394 | D145: 1.40711978 | E145: 1.641765601 | F145: 1.93872384 | G145: 2.25464012 | H145: 3.057386237 | I145: 3 | J145: 3 | K145: 3 | L145: 3
A146: 424.5415649 | B146: 1.014187786 | C146: 1.208699325 | D146: 1.399827514 | E146: 1.625892817 | F146: 1.925976381 | G146: 2.228555987 | H146: 3.075728178 | I146: 3 | J146: 3 | K146: 3 | L146: 3
A147: 424.8818054 | B147: 1.005197166 | C147: 1.199500859 | D147: 1.389418332 | E147: 1.621685809 | F147: 1.917956684 | G147: 2.222488464 | H147: 2.946262631 | I147: 3 | J147: 3 | K147: 3 | L147: 3
A148: 425.2220459 | B148: 0.9966553147 | C148: 1.193343763 | D148: 1.379053355 | E148: 1.611514613 | F148: 1.911273089 | G148: 2.200599152 | H148: 2.959471606 | I148: 3 | J148: 3 | K148: 3 | L148: 3
A149: 425.5621948 | B149: 0.9889740533 | C149: 1.187839586 | D149: 1.372818684 | E149: 1.603760163 | F149: 1.90105009 | G149: 2.211605125 | H149: 2.855867653 | I149: 3 | J149: 3 | K149: 3 | L149: 3
A150: 425.9023743 | B150: 0.9818271699 | C150: 1.180154094 | D150: 1.364464262 | E150: 1.59609229 | F150: 1.888457204 | G150: 2.191736396 | H150: 2.830798367 | I150: 3 | J150: 3 | K150: 3 | L150: 3
A151: 426.2424316 | B151: 0.9748064618 | C151: 1.16899501 | D151: 1.35679822 | E151: 1.587145894 | F151: 1.872907363 | G151: 2.185897198 | H151: 2.751071254 | I151: 3 | J151: 3 | K151: 3 | L151: 3
A152: 426.5825195 | B152: 0.9699397655 | C152: 1.162645304 | D152: 1.350931065 | E152: 1.58094685 | F152: 1.87536557 | G152: 2.159040593 | H152: 2.766417644 | I152: 3 | J152: 3 | K152: 3 | L152: 3
A153: 426.9225464 | B153: 0.96529519 | C153: 1.157199005 | D153: 1.348625879 | E153: 1.570468604 | F153: 1.872813814 | G153: 2.157261425 | H153: 2.769525874 | I153: 3 | J153: 3 | K153: 3 | L153: 3
A154: 427.2625732 | B154: 0.9585674456 | C154: 1.154263648 | D154: 1.344597662 | E154: 1.571420559 | F154: 1.871665783 | G154: 2.141796802 | H154: 2.771928698 | I154: 3 | J154: 3 | K154: 3 | L154: 3
A155: 427.6025085 | B155: 0.9509084796 | C155: 1.145841241 | D155: 1.336738106 | E155: 1.564557744 | F155: 1.853935776 | G155: 2.141886569 | H155: 2.721511381 | I155: 3 | J155: 3 | K155: 3 | L155: 3
A156: 427.9425049 | B156: 0.9434869493 | C156: 1.139673242 | D156: 1.330280921 | E156: 1.559819332 | F156: 1.844628599 | G156: 2.125947698 | H156: 2.681880458 | I156: 3 | J156: 3 | K156: 3 | L156: 3
A157: 428.2823792 | B157: 0.9381799048 | C157: 1.131386894 | D157: 1.326076671 | E157: 1.54993604 | F157: 1.835367157 | G157: 2.11922647 | H157: 2.622691936 | I157: 3 | J157: 3 | K157: 3 | L157: 3
A158: 428.6222534 | B158: 0.9324309934 | C158: 1.127672658 | D158: 1.318161239 | E158: 1.537990367 | F158: 1.832454644 | G158: 2.113871523 | H158: 2.598604276 | I158: 3 | J158: 3 | K158: 3 | L158: 3
A159: 428.9620361 | B159: 0.9265523257 | C159: 1.119153073 | D159: 1.309915266 | E159: 1.530382511 | F159: 1.825233807 | G159: 2.103157173 | H159: 2.596792911 | I159: 3 | J159: 3 | K159: 3 | L159: 3
A160: 429.3018799 | B160: 0.9193335951 | C160: 1.114022189 | D160: 1.300452365 | E160: 1.522048147 | F160: 1.815034954 | G160: 2.096761015 | H160: 2.591290808 | I160: 3 | J160: 3 | K160: 3 | L160: 3
A161: 429.6416321 | B161: 0.9134155924 | C161: 1.107519369 | D161: 1.294579574 | E161: 1.519267795 | F161: 1.806762246 | G161: 2.091561023 | H161: 2.572695131 | I161: 3 | J161: 3 | K161: 3 | L161: 3
A162: 429.9814148 | B162: 0.9068727201 | C162: 1.103633258 | D162: 1.289579084 | E162: 1.511041402 | F162: 1.803236998 | G162: 2.091070497 | H162: 2.545572774 | I162: 3 | J162: 3 | K162: 3 | L162: 3
A163: 430.321106 | B163: 0.8996452805 | C163: 1.096539841 | D163: 1.283834689 | E163: 1.503650286 | F163: 1.798199473 | G163: 2.074350554 | H163: 2.535264626 | I163: 3 | J163: 3 | K163: 3 | L163: 3
A164: 430.6607666 | B164: 0.8936492599 | C164: 1.090563053 | D164: 1.279962759 | E164: 1.50119886 | F164: 1.792259746 | G164: 2.067093812 | H164: 2.541948634 | I164: 3 | J164: 3 | K164: 3 | L164: 3
A165: 431.0003662 | B165: 0.887490478 | C165: 1.084569599 | D165: 1.274501741 | E165: 1.498547199 | F165: 1.78225825 | G165: 2.04854521 | H165: 2.539044957 | I165: 3 | J165: 3 | K165: 3 | L165: 3
A166: 431.3399963 | B166: 0.8823640476 | C166: 1.080086185 | D166: 1.270599555 | E166: 1.496506179 | F166: 1.779448621 | G166: 2.045255937 | H166: 2.541057577 | I166: 3 | J166: 3 | K166: 3 | L166: 3
A167: 431.6795654 | B167: 0.8761440046 | C167: 1.074432123 | D167: 1.265570736 | E167: 1.492245034 | F167: 1.776684681 | G167: 2.035414313 | H167: 2.528908228 | I167: 3 | J167: 3 | K167: 3 | L167: 3
A168: 432.019043 | B168: 0.8696806601 | C168: 1.068141776 | D168: 1.260731606 | E168: 1.487854863 | F168: 1.76844869 | G168: 2.031283159 | H168: 2.503155371 | I168: 3 | J168: 3 | K168: 3 | L168: 3
A169: 432.3585815 | B169: 0.8634643581 | C169: 1.060109817 | D169: 1.254400729 | E169: 1.48245598 | F169: 1.75946117 | G169: 2.025894059 | H169: 2.489570801 | I169: 3 | J169: 3 | K169: 3 | L169: 3
A170: 432.6980286 | B170: 0.8544967522 | C170: 1.05126422 | D170: 1.244982649 | E170: 1.467335554 | F170: 1.751454348 | G170: 2.00454045 | H170: 2.426438686 | I170: 3 | J170: 3 | K170: 3 | L170: 3
A171: 433.0374451 | B171: 0.8484074082 | C171: 1.045044291 | D171: 1.237193304 | E171: 1.459516355 | F171: 1.743600684 | G171: 1.997858202 | H171: 2.423697532 | I171: 3 | J171: 3 | K171: 3 | L171: 3
A172: 433.3768616 | B172: 0.8427702637 | C172: 1.040295401 | D172: 1.231666379 | E172: 1.453567994 | F172: 1.738619653 | G172: 1.984725449 | H172: 2.40131821 | I172: 3 | J172: 3 | K172: 3 | L172: 3
A173: 433.7161865 | B173: 0.8386641957 | C173: 1.034403675 | D173: 1.227697468 | E173: 1.454387395 | F173: 1.729071731 | G173: 1.981960887 | H173: 2.40940718 | I173: 3.656229717 | J173: 3 | K173: 3 | L173: 3
A174: 434.0555115 | B174: 0.8333414876 | C174: 1.030023142 | D174: 1.223132334 | E174: 1.45156015 | F174: 1.725771732 | G174: 1.969974583 | H174: 2.392522897 | I174: 3 | J174: 3 | K174: 3 | L174: 3
A175: 434.3948059 | B175: 0.8282044434 | C175: 1.02306957 | D175: 1.218440995 | E175: 1.445665793 | F175: 1.719545267 | G175: 1.958448805 | H175: 2.401280287 | I175: 3 | J175: 3 | K175: 3 | L175: 3
A176: 434.7340698 | B176: 0.822788533 | C176: 1.0185925 | D176: 1.211340802 | E176: 1.440682247 | F176: 1.711200259 | G176: 1.947895211 | H176: 2.377169338 | I176: 3 | J176: 3 | K176: 3 | L176: 3
A177: 435.0733032 | B177: 0.8168868068 | C177: 1.012439225 | D177: 1.204217755 | E177: 1.437362233 | F177: 1.70513939 | G177: 1.947888568 | H177: 2.377725094 | I177: 3.87592919 | J177: 3 | K177: 3 | L177: 3
A178: 435.4124756 | B178: 0.8096340972 | C178: 1.008233506 | D178: 1.195150438 | E178: 1.432033084 | F178: 1.696778044 | G178: 1.943967446 | H178: 2.373397003 | I178: 3.481908113 | J178: 3 | K178: 3 | L178: 3
A179: 435.7516479 | B179: 0.8017351335 | C179: 1.001473551 | D179: 1.189105348 | E179: 1.422213432 | F179: 1.69474185 | G179: 1.937857368 | H179: 2.3562074 | I179: 3.283410894 | J179: 3 | K179: 3 | L179: 3
A180: 436.0907288 | B180: 0.7967217036 | C180: 0.9941565502 | D180: 1.183663895 | E180: 1.412880298 | F180: 1.689245935 | G180: 1.926562328 | H180: 2.336078933 | I180: 3.219296642 | J180: 3 | K180: 3 | L180: 3
A181: 436.4298401 | B181: 0.7917257984 | C181: 0.9882536148 | D181: 1.182804347 | E181: 1.412152672 | F181: 1.690263496 | G181: 1.92884669 | H181: 2.324891575 | I181: 3.226559214 | J181: 3 | K181: 3 | L181: 3
A182: 436.7688904 | B182: 0.7877347561 | C182: 0.9836992149 | D182: 1.176964664 | E182: 1.40968086 | F182: 1.683626429 | G182: 1.926479387 | H182: 2.320383203 | I182: 3.345218467 | J182: 3 | K182: 3 | L182: 3
A183: 437.1079407 | B183: 0.7810452796 | C183: 0.9777769731 | D183: 1.171959705 | E183: 1.40340281 | F183: 1.675346588 | G183: 1.915469035 | H183: 2.2939403 | I183: 3.164057894 | J183: 3 | K183: 3 | L183: 3
A184: 437.4468994 | B184: 0.7769408594 | C184: 0.9716857193 | D184: 1.162588663 | E184: 1.392832778 | F184: 1.667290253 | G184: 1.898644471 | H184: 2.260581616 | I184: 2.962148002 | J184: 3 | K184: 3 | L184: 3
A185: 437.7858582 | B185: 0.7698903409 | C185: 0.9648958906 | D185: 1.157992237 | E185: 1.385246909 | F185: 1.661083115 | G185: 1.891365696 | H185: 2.259990676 | I185: 2.873776791 | J185: 3 | K185: 3 | L185: 3
A186: 438.1247253 | B186: 0.7652405116 | C186: 0.9604392308 | D186: 1.152727485 | E186: 1.381380876 | F186: 1.656881923 | G186: 1.885248553 | H186: 2.26099297 | I186: 2.897331288 | J186: 3 | K186: 3 | L186: 3
A187: 438.463623 | B187: 0.7593720099 | C187: 0.955780681 | D187: 1.148127867 | E187: 1.378470425 | F187: 1.652101155 | G187: 1.883845136 | H187: 2.248601811 | I187: 3.00313913 | J187: 3 | K187: 3 | L187: 3
A188: 438.8024902 | B188: 0.7536323763 | C188: 0.9485808146 | D188: 1.141246246 | E188: 1.373168749 | F188: 1.647623416 | G188: 1.868386219 | H188: 2.23028004 | I188: 2.979928503 | J188: 3 | K188: 3 | L188: 3
A189: 439.1412964 | B189: 0.748737014 | C189: 0.9429609675 | D189: 1.136436341 | E189: 1.368507906 | F189: 1.64378209 | G189: 1.858491293 | H189: 2.216101799 | I189: 2.92714362 | J189: 3 | K189: 3 | L189: 3
A190: 439.480072 | B190: 0.7419456896 | C190: 0.9367228571 | D190: 1.13276621 | E190: 1.359700739 | F190: 1.636115985 | G190: 1.851257498 | H190: 2.21796634 | I190: 2.844697287 | J190: 3 | K190: 3 | L190: 3
A191: 439.8188171 | B191: 0.7364922053 | C191: 0.9335977705 | D191: 1.129817539 | E191: 1.356141498 | F191: 1.634774562 | G191: 1.847778905 | H191: 2.211510429 | I191: 2.872779633 | J191: 3 | K191: 3 | L191: 3
A192: 440.1575012 | B192: 0.729617358 | C192: 0.9288679098 | D192: 1.125951401 | E192: 1.348766274 | F192: 1.628349081 | G192: 1.844832606 | H192: 2.197823008 | I192: 2.886786803 | J192: 3 | K192: 3 | L192: 3
A193: 440.4961853 | B193: 0.7256126117 | C193: 0.9240069103 | D193: 1.119280638 | E193: 1.348236575 | F193: 1.626324532 | G193: 1.84387917 | H193: 2.190837107 | I193: 2.905629596 | J193: 3 | K193: 3 | L193: 3
A194: 440.8348083 | B194: 0.7223848158 | C194: 0.918415105 | D194: 1.11514494 | E194: 1.3415901 | F194: 1.621068529 | G194: 1.844490617 | H194: 2.183309016 | I194: 2.893241728 | J194: 3 | K194: 3 | L194: 3
A195: 441.1734314 | B195: 0.7174485096 | C195: 0.9118649646 | D195: 1.10802774 | E195: 1.336315004 | F195: 1.614301625 | G195: 1.844500727 | H195: 2.189389484 | I195: 2.903518719 | J195: 3 | K195: 3 | L195: 3
A196: 441.5119934 | B196: 0.7125541901 | C196: 0.9087796128 | D196: 1.105274779 | E196: 1.328600666 | F196: 1.611543729 | G196: 1.837675217 | H196: 2.173497058 | I196: 2.899082858 | J196: 3 | K196: 3 | L196: 3
A197: 441.8505249 | B197: 0.7052719365 | C197: 0.9018346064 | D197: 1.098257008 | E197: 1.325292484 | F197: 1.602564163 | G197: 1.829039254 | H197: 2.169337905 | I197: 2.864035328 | J197: 3 | K197: 3 | L197: 3
A198: 442.1890259 | B198: 0.7009402406 | C198: 0.8971992483 | D198: 1.09369384 | E198: 1.324420253 | F198: 1.600052567 | G198: 1.823620991 | H198: 2.163915145 | I198: 2.823164571 | J198: 3 | K198: 3 | L198: 3
A199: 442.5274963 | B199: 0.6952829259 | C199: 0.888008813 | D199: 1.086613718 | E199: 1.319560328 | F199: 1.592608409 | G199: 1.814065594 | H199: 2.150732883 | I199: 2.844190621 | J199: 3 | K199: 3 | L199: 3
A200: 442.8659058 | B200: 0.6915699181 | C200: 0.8829008473 | D200: 1.081751631 | E200: 1.315487552 | F200: 1.593513355 | G200: 1.811336567 | H200: 2.153018945 | I200: 2.834591904 | J200: 3 | K200: 3 | L200: 3
... 1324 more rows

Sheet Graph
A1: Put data in data tab, data is adjusted in calculations tab, pick line segments here | M1: Show | O1: Sample | P1: start1 | Q1: stop1 | R1: start2 | S1: stop2 | T1: intersection | U1: slope1 | V1: intercept1 | W1: slope2 | X1: intercept2 | Z1: 0 | AA1: ="index_"&P1 -> index_start1 | AB1: ="index_"&Q1 -> index_stop1 | AC1: ="index_"&R1 -> index_start2 | AD1: ="index_"&S1 -> index_stop2 | AE1: y_start1 | AF1: y_stop1 | AG1: y_start2 | AH1: y_stop2 | AI1: y_intersection
N2: B | O2: =Data!B$1 -> sample 1 | P2: 430 | Q2: 460 | R2: 550 | S2: 700 | T2: =(X2-V2)/(U2-W2) -> 486.4454988 | U2: =SLOPE(INDIRECT("Calculations!B"&AA2&":B"&AB2),INDIRECT("Calculations!A"&AA2&":A"&AB2)) -> -0.01519218 | V2: =INTERCEPT(INDIRECT("Calculations!B"&AA2&":B"&AB2),INDIRECT("Calculations!A"&AA2&":A"&AB2)) -> 7.418659854 | W2: =SLOPE(INDIRECT("Calculations!B"&AC2&":B"&AD2),INDIRECT("Calculations!A"&AC2&":A"&AD2)) -> -9.039654132e-05 | X2: =INTERCEPT(INDIRECT("Calculations!B"&AC2&":B"&AD2),INDIRECT("Calculations!A"&AC2&":A"&AD2)) -> 0.07246526522 | Z2: =O2 -> sample 1 | AA2: =IF(P2,MATCH(P2,Calculations!$A$3:'Calculations'!$A$1600),"") -> 161 | AB2: =IF(Q2,MATCH(Q2,Calculations!$A$1:'Calculations'!$A$1600),"") -> 251 | AC2: =IF(R2,MATCH(R2,Calculations!$A$1:'Calculations'!$A$1600),"") -> 523 | AD2: =IF(S2,MATCH(S2,Calculations!$A$1:'Calculations'!$A$1600),"") -> 996 | AE2: =U2*P2+V2 -> 0.8860224525 | AF2: =U2*Q2+V2 -> 0.4302570524 | AG2: =W2*R2+X2 -> 0.0227471675 | AH2: =W2*S2+X2 -> 0.009187686301 | AI2: =W2*T2+X2 -> 0.02849227459 | AJ2: 0
N3: C | O3: =Data!C$1 -> sample 2 | P3: 430 | Q3: 460 | R3: 550 | S3: 700 | T3: =(X3-V3)/(U3-W3) -> 495.3530628 | U3: =SLOPE(INDIRECT("Calculations!C"&AA3&":C"&AB3),INDIRECT("Calculations!A"&AA3&":A"&AB3)) -> -0.01608263944 | V3: =INTERCEPT(INDIRECT("Calculations!C"&AA3&":C"&AB3),INDIRECT("Calculations!A"&AA3&":A"&AB3)) -> 8.012796249 | W3: =SLOPE(INDIRECT("Calculations!C"&AC3&":C"&AD3),INDIRECT("Calculations!A"&AC3&":A"&AD3)) -> -0.0001626909663 | X3: =INTERCEPT(INDIRECT("Calculations!C"&AC3&":C"&AD3),INDIRECT("Calculations!A"&AC3&":A"&AD3)) -> 0.1268010118 | Z3: sample 2 | AA3: =IF(P3,MATCH(P3,Calculations!$A$3:'Calculations'!$A$1600),"") -> 161 | AB3: =IF(Q3,MATCH(Q3,Calculations!$A$1:'Calculations'!$A$1600),"") -> 251 | AC3: =IF(R3,MATCH(R3,Calculations!$A$1:'Calculations'!$A$1600),"") -> 523 | AD3: =IF(S3,MATCH(S3,Calculations!$A$1:'Calculations'!$A$1600),"") -> 996 | AE3: 1.097261289 | AF3: 0.6147821062 | AG3: 0.03732098035 | AH3: =W3*S3+X3 -> 0.0129173354 | AI3: =W3*T3+X3 -> 0.04621154336 | AJ3: 0
N4: D | O4: =Data!D$1 -> sample 3 | P4: 440 | Q4: 480 | R4: 560 | S4: 725 | T4: 507.7771578 | U4: =SLOPE(INDIRECT("Calculations!D"&AA4&":D"&AB4),INDIRECT("Calculations!A"&AA4&":A"&AB4)) -> -0.01610601432 | V4: =INTERCEPT(INDIRECT("Calculations!D"&AA4&":D"&AB4),INDIRECT("Calculations!A"&AA4&":A"&AB4)) -> 8.21161525 | W4: =SLOPE(INDIRECT("Calculations!D"&AC4&":D"&AD4),INDIRECT("Calculations!A"&AC4&":A"&AD4)) -> -0.0001257233056 | X4: =INTERCEPT(INDIRECT("Calculations!D"&AC4&":D"&AD4),INDIRECT("Calculations!A"&AC4&":A"&AD4)) -> 0.09718849613 | Z4: sample 3 | AA4: =IF(P4,MATCH(P4,Calculations!$A$3:'Calculations'!$A$1600),"") -> 190 | AB4: =IF(Q4,MATCH(Q4,Calculations!$A$1:'Calculations'!$A$1600),"") -> 311 | AC4: =IF(R4,MATCH(R4,Calculations!$A$1:'Calculations'!$A$1600),"") -> 553 | AD4: =IF(S4,MATCH(S4,Calculations!$A$1:'Calculations'!$A$1600),"") -> 1078 | AE4: 1.124968948 | AF4: 0.4807283754 | AG4: 0.026783445 | AH4: 0.006039099571 | AI4: 0.03334907334 | AJ4: 0
N5: E | O5: =Data!E$1 -> sample 4 | P5: 455 | Q5: 495 | R5: 580 | S5: 725 | T5: 522.1259426 | U5: =SLOPE(INDIRECT("Calculations!E"&AA5&":E"&AB5),INDIRECT("Calculations!A"&AA5&":A"&AB5)) -> -0.01624263227 | V5: =INTERCEPT(INDIRECT("Calculations!E"&AA5&":E"&AB5),INDIRECT("Calculations!A"&AA5&":A"&AB5)) -> 8.513858538 | W5: =SLOPE(INDIRECT("Calculations!E"&AC5&":E"&AD5),INDIRECT("Calculations!A"&AC5&":A"&AD5)) -> -0.0001462541415 | X5: =INTERCEPT(INDIRECT("Calculations!E"&AC5&":E"&AD5),INDIRECT("Calculations!A"&AC5&":A"&AD5)) -> 0.1095219364 | Z5: sample 4 | AA5: =IF(P5,MATCH(P5,Calculations!$A$1:'Calculations'!$A$1600),"") -> 236 | AB5: =IF(Q5,MATCH(Q5,Calculations!$A$1:'Calculations'!$A$1600),"") -> 356 | AC5: =IF(R5,MATCH(R5,Calculations!$A$1:'Calculations'!$A$1600),"") -> 615 | AD5: =IF(S5,MATCH(S5,Calculations!$A$1:'Calculations'!$A$1600),"") -> 1078 | AE5: 1.123460856 | AF5: 0.4737555654 | AG5: 0.0246945343 | AH5: 0.003487683779 | AI5: 0.03315885488 | AJ5: 0
N6: F | O6: =Data!F$1 -> sample 5 | P6: 475 | Q6: 515 | R6: 600 | S6: 725 | T6: 540.3178613 | U6: =SLOPE(INDIRECT("Calculations!F"&AA6&":F"&AB6),INDIRECT("Calculations!A"&AA6&":A"&AB6)) -> -0.01723985825 | V6: =INTERCEPT(INDIRECT("Calculations!F"&AA6&":F"&AB6),INDIRECT("Calculations!A"&AA6&":A"&AB6)) -> 9.359585591 | W6: =SLOPE(INDIRECT("Calculations!F"&AC6&":F"&AD6),INDIRECT("Calculations!A"&AC6&":A"&AD6)) -> -0.0002022008837 | X6: =INTERCEPT(INDIRECT("Calculations!F"&AC6&":F"&AD6),INDIRECT("Calculations!A"&AC6&":A"&AD6)) -> 0.1538350029 | Z6: sample 5 | AA6: =IF(P6,MATCH(P6,Calculations!$A$1:'Calculations'!$A$1600),"") -> 296 | AB6: =IF(Q6,MATCH(Q6,Calculations!$A$1:'Calculations'!$A$1600),"") -> 416 | AC6: =IF(R6,MATCH(R6,Calculations!$A$1:'Calculations'!$A$1600),"") -> 677 | AD6: =IF(S6,MATCH(S6,Calculations!$A$1:'Calculations'!$A$1600),"") -> 1078 | AE6: 1.170652924 | AF6: 0.4810585943 | AG6: 0.03251447265 | AH6: 0.00723936219 | AI6: 0.04458225383 | AJ6: 0
N7: G | O7: =Data!G$1 -> sample 6 | P7: 490 | Q7: 530 | R7: 620 | S7: 750 | T7: 553.9730523 | U7: =SLOPE(INDIRECT("Calculations!G"&AA7&":G"&AB7),INDIRECT("Calculations!A"&AA7&":A"&AB7)) -> -0.01831032802 | V7: =INTERCEPT(INDIRECT("Calculations!G"&AA7&":G"&AB7),INDIRECT("Calculations!A"&AA7&":A"&AB7)) -> 10.17428797 | W7: =SLOPE(INDIRECT("Calculations!G"&AC7&":G"&AD7),INDIRECT("Calculations!A"&AC7&":A"&AD7)) -> -0.0001341843297 | X7: =INTERCEPT(INDIRECT("Calculations!G"&AC7&":G"&AD7),INDIRECT("Calculations!A"&AC7&":A"&AD7)) -> 0.1051941715 | Z7: sample 6 | AA7: =IF(P7,MATCH(P7,Calculations!$A$1:'Calculations'!$A$1600),"") -> 341 | AB7: =IF(Q7,MATCH(Q7,Calculations!$A$1:'Calculations'!$A$1600),"") -> 462 | AC7: =IF(R7,MATCH(R7,Calculations!$A$1:'Calculations'!$A$1600),"") -> 740 | AD7: =IF(S7,MATCH(S7,Calculations!$A$1:'Calculations'!$A$1600),"") -> 1161 | AE7: 1.202227241 | AF7: 0.4698141204 | AG7: 0.02199988703 | AH7: 0.00455592417 | AI7: 0.03085966875 | AJ7: 0
N8: H | O8: =Data!H$1 -> sample 7 | P8: 510 | Q8: 545 | R8: 650 | S8: 750 | T8: 570.6449323 | U8: =SLOPE(INDIRECT("Calculations!H"&AA8&":H"&AB8),INDIRECT("Calculations!A"&AA8&":A"&AB8)) -> -0.01972689734 | V8: =INTERCEPT(INDIRECT("Calculations!H"&AA8&":H"&AB8),INDIRECT("Calculations!A"&AA8&":A"&AB8)) -> 11.27620498 | W8: =SLOPE(INDIRECT("Calculations!H"&AC8&":H"&AD8),INDIRECT("Calculations!A"&AC8&":A"&AD8)) -> -7.865076427e-05 | X8: =INTERCEPT(INDIRECT("Calculations!H"&AC8&":H"&AD8),INDIRECT("Calculations!A"&AC8&":A"&AD8)) -> 0.06403263906 | Z8: sample 7 | AA8: =IF(P8,MATCH(P8,Calculations!$A$1:'Calculations'!$A$1600),"") -> 401 | AB8: =IF(Q8,MATCH(Q8,Calculations!$A$1:'Calculations'!$A$1600),"") -> 507 | AC8: =IF(R8,MATCH(R8,Calculations!$A$1:'Calculations'!$A$1600),"") -> 835 | AD8: =IF(S8,MATCH(S8,Calculations!$A$1:'Calculations'!$A$1600),"") -> 1161 | AE8: 1.215487332 | AF8: 0.525045925 | AG8: 0.01290964228 | AH8: 0.005044565855 | AI8: 0.01915097901 | AJ8: 0
N9: I | O9: =Data!I$1 -> sample 8 | P9: 530 | Q9: 565 | R9: 655 | S9: 750 | T9: 588.4343742 | U9: =SLOPE(INDIRECT("Calculations!I"&AA9&":I"&AB9),INDIRECT("Calculations!A"&AA9&":A"&AB9)) -> -0.02074737649 | V9: =INTERCEPT(INDIRECT("Calculations!I"&AA9&":I"&AB9),INDIRECT("Calculations!A"&AA9&":A"&AB9)) -> 12.26774197 | W9: =SLOPE(INDIRECT("Calculations!I"&AC9&":I"&AD9),INDIRECT("Calculations!A"&AC9&":A"&AD9)) -> -0.000343164211 | X9: =INTERCEPT(INDIRECT("Calculations!I"&AC9&":I"&AD9),INDIRECT("Calculations!A"&AC9&":A"&AD9)) -> 0.261202086 | Z9: sample 8 | AA9: =IF(P9,MATCH(P9,Calculations!$A$1:'Calculations'!$A$1600),"") -> 462 | AB9: =IF(Q9,MATCH(Q9,Calculations!$A$1:'Calculations'!$A$1600),"") -> 569 | AC9: =IF(R9,MATCH(R9,Calculations!$A$1:'Calculations'!$A$1600),"") -> 851 | AD9: =IF(S9,MATCH(S9,Calculations!$A$1:'Calculations'!$A$1600),"") -> 1161 | AE9: 1.271632429 | AF9: 0.5454742523 | AG9: 0.03642952783 | AH9: 0.00382892779 | AI9: 0.05927246829 | AJ9: 0
N10: J | O10: =Data!J$1 -> sample 9 | P10: 550 | Q10: 580 | R10: 660 | S10: 750 | T10: 604.738043 | U10: =SLOPE(INDIRECT("Calculations!J"&AA10&":J"&AB10),INDIRECT("Calculations!A"&AA10&":A"&AB10)) -> -0.02162332899 | V10: =INTERCEPT(INDIRECT("Calculations!J"&AA10&":J"&AB10),INDIRECT("Calculations!A"&AA10&":A"&AB10)) -> 13.16997194 | W10: =SLOPE(INDIRECT("Calculations!J"&AC10&":J"&AD10),INDIRECT("Calculations!A"&AC10&":A"&AD10)) -> -0.000612330097 | X10: =INTERCEPT(INDIRECT("Calculations!J"&AC10&":J"&AD10),INDIRECT("Calculations!A"&AC10&":A"&AD10)) -> 0.4638215827 | Z10: sample 9 | AA10: =IF(P10,MATCH(P10,Calculations!$A$1:'Calculations'!$A$1600),"") -> 523 | AB10: =IF(Q10,MATCH(Q10,Calculations!$A$1:'Calculations'!$A$1600),"") -> 615 | AC10: =IF(R10,MATCH(R10,Calculations!$A$1:'Calculations'!$A$1600),"") -> 867 | AD10: =IF(S10,MATCH(S10,Calculations!$A$1:'Calculations'!$A$1600),"") -> 1161 | AE10: 1.27714099 | AF10: 0.6284411207 | AG10: 0.05968371864 | AH10: 0.004574009909 | AI10: 0.09352227813 | AJ10: 0
N11: K | O11: =Data!K$1 -> sample 10 | P11: 560 | Q11: 590 | R11: 675 | S11: 760 | T11: 614.4434301 | U11: =SLOPE(INDIRECT("Calculations!K"&AA11&":K"&AB11),INDIRECT("Calculations!A"&AA11&":A"&AB11)) -> -0.02223472348 | V11: =INTERCEPT(INDIRECT("Calculations!K"&AA11&":K"&AB11),INDIRECT("Calculations!A"&AA11&":A"&AB11)) -> 13.78212208 | W11: =SLOPE(INDIRECT("Calculations!K"&AC11&":K"&AD11),INDIRECT("Calculations!A"&AC11&":A"&AD11)) -> -0.0008066275852 | X11: =INTERCEPT(INDIRECT("Calculations!K"&AC11&":K"&AD11),INDIRECT("Calculations!A"&AC11&":A"&AD11)) -> 0.6157693347 | Z11: sample 10 | AA11: =IF(P11,MATCH(P11,Calculations!$A$1:'Calculations'!$A$1600),"") -> 553 | AB11: =IF(Q11,MATCH(Q11,Calculations!$A$1:'Calculations'!$A$1600),"") -> 646 | AC11: =IF(R11,MATCH(R11,Calculations!$A$1:'Calculations'!$A$1600),"") -> 915 | AD11: =IF(S11,MATCH(S11,Calculations!$A$1:'Calculations'!$A$1600),"") -> 1194 | AE11: 1.330676928 | AF11: 0.6636352237 | AG11: 0.07129571471 | AH11: 0.002732369967 | AI11: 0.1201423144 | AJ11: 0
N12: L | O12: =Data!L$1 -> sample 11 | P12: 600 | Q12: 650 | R12: 770 | S12: 800 | T12: 694.8975419 | U12: =SLOPE(INDIRECT("Calculations!L"&AA12&":L"&AB12),INDIRECT("Calculations!A"&AA12&":A"&AB12)) -> -0.0145350946 | V12: =INTERCEPT(INDIRECT("Calculations!L"&AA12&":L"&AB12),INDIRECT("Calculations!A"&AA12&":A"&AB12)) -> 10.11102925 | W12: =SLOPE(INDIRECT("Calculations!L"&AC12&":L"&AD12),INDIRECT("Calculations!A"&AC12&":A"&AD12)) -> -7.511047913e-05 | X12: =INTERCEPT(INDIRECT("Calculations!L"&AC12&":L"&AD12),INDIRECT("Calculations!A"&AC12&":A"&AD12)) -> 0.06282182751 | Z12: sample 11 | AA12: =IF(P12,MATCH(P12,Calculations!$A$1:'Calculations'!$A$1600),"") -> 677 | AB12: =IF(Q12,MATCH(Q12,Calculations!$A$1:'Calculations'!$A$1600),"") -> 835 | AC12: =IF(R12,MATCH(R12,Calculations!$A$1:'Calculations'!$A$1600),"") -> 1228 | AD12: =IF(S12,MATCH(S12,Calculations!$A$1:'Calculations'!$A$1600),"") -> 1330 | AE12: 1.389972489 | AF12: 0.663217759 | AG12: 0.004986758579 | AH12: 0.002733444205 | AI12: 0.01062774019 | AJ12: 0
N13: M | O13: =Data!M$1 -> sample 12 | P13: 600 | Q13: 650 | R13: 770 | S13: 800 | U13: =SLOPE(INDIRECT("Calculations!M"&AA13&":M"&AB13),INDIRECT("Calculations!A"&AA13&":A"&AB13)) -> 0 | V13: =INTERCEPT(INDIRECT("Calculations!M"&AA13&":M"&AB13),INDIRECT("Calculations!A"&AA13&":A"&AB13)) -> 0 | W13: =SLOPE(INDIRECT("Calculations!M"&AC13&":M"&AD13),INDIRECT("Calculations!A"&AC13&":A"&AD13)) -> 0 | X13: =INTERCEPT(INDIRECT("Calculations!M"&AC13&":M"&AD13),INDIRECT("Calculations!A"&AC13&":A"&AD13)) -> 0 | Z13: sample 12 | AA13: =IF(P13,MATCH(P13,Calculations!$A$1:'Calculations'!$A$1600),"") -> 677 | AB13: =IF(Q13,MATCH(Q13,Calculations!$A$1:'Calculations'!$A$1600),"") -> 835 | AC13: =IF(R13,MATCH(R13,Calculations!$A$1:'Calculations'!$A$1600),"") -> 1228 | AD13: =IF(S13,MATCH(S13,Calculations!$A$1:'Calculations'!$A$1600),"") -> 1330 | AE13: 0 | AF13: 0 | AG13: 0 | AH13: 0 | AJ13: 0
N14: N | O14: =Data!N$1 -> sample 13 | P14: 600 | Q14: 650 | R14: 770 | S14: 800 | U14: =SLOPE(INDIRECT("Calculations!N"&AA14&":N"&AB14),INDIRECT("Calculations!A"&AA14&":A"&AB14)) -> 0 | V14: =INTERCEPT(INDIRECT("Calculations!N"&AA14&":N"&AB14),INDIRECT("Calculations!A"&AA14&":A"&AB14)) -> 0 | W14: =SLOPE(INDIRECT("Calculations!N"&AC14&":N"&AD14),INDIRECT("Calculations!A"&AC14&":A"&AD14)) -> 0 | X14: =INTERCEPT(INDIRECT("Calculations!N"&AC14&":N"&AD14),INDIRECT("Calculations!A"&AC14&":A"&AD14)) -> 0 | Z14: sample 13 | AA14: =IF(P14,MATCH(P14,Calculations!$A$1:'Calculations'!$A$1600),"") -> 677 | AB14: =IF(Q14,MATCH(Q14,Calculations!$A$1:'Calculations'!$A$1600),"") -> 835 | AC14: =IF(R14,MATCH(R14,Calculations!$A$1:'Calculations'!$A$1600),"") -> 1228 | AD14: =IF(S14,MATCH(S14,Calculations!$A$1:'Calculations'!$A$1600),"") -> 1330 | AE14: 0 | AF14: 0 | AG14: 0 | AH14: 0 | AJ14: 0
N15: O | O15: =Data!O$1 -> sample 14 | P15: 600 | Q15: 650 | R15: 770 | S15: 800 | U15: =SLOPE(INDIRECT("Calculations!O"&AA15&":O"&AB15),INDIRECT("Calculations!A"&AA15&":A"&AB15)) -> 0 | V15: =INTERCEPT(INDIRECT("Calculations!O"&AA15&":O"&AB15),INDIRECT("Calculations!A"&AA15&":A"&AB15)) -> 0 | W15: =SLOPE(INDIRECT("Calculations!O"&AC15&":O"&AD15),INDIRECT("Calculations!A"&AC15&":A"&AD15)) -> 0 | X15: =INTERCEPT(INDIRECT("Calculations!O"&AC15&":O"&AD15),INDIRECT("Calculations!A"&AC15&":A"&AD15)) -> 0 | Z15: sample 14 | AA15: =IF(P15,MATCH(P15,Calculations!$A$1:'Calculations'!$A$1600),"") -> 677 | AB15: =IF(Q15,MATCH(Q15,Calculations!$A$1:'Calculations'!$A$1600),"") -> 835 | AC15: =IF(R15,MATCH(R15,Calculations!$A$1:'Calculations'!$A$1600),"") -> 1228 | AD15: =IF(S15,MATCH(S15,Calculations!$A$1:'Calculations'!$A$1600),"") -> 1330 | AE15: 0 | AF15: 0 | AG15: 0 | AH15: 0 | AJ15: 0
N16: P | O16: =Data!P$1 -> sample 15 | P16: 600 | Q16: 650 | R16: 770 | S16: 800 | U16: =SLOPE(INDIRECT("Calculations!P"&AA16&":P"&AB16),INDIRECT("Calculations!A"&AA16&":A"&AB16)) -> 0 | V16: =INTERCEPT(INDIRECT("Calculations!P"&AA16&":P"&AB16),INDIRECT("Calculations!A"&AA16&":A"&AB16)) -> 0 | W16: =SLOPE(INDIRECT("Calculations!P"&AC16&":P"&AD16),INDIRECT("Calculations!A"&AC16&":A"&AD16)) -> 0 | X16: =INTERCEPT(INDIRECT("Calculations!P"&AC16&":P"&AD16),INDIRECT("Calculations!A"&AC16&":A"&AD16)) -> 0 | Z16: sample 15 | AA16: =IF(P16,MATCH(P16,Calculations!$A$1:'Calculations'!$A$1600),"") -> 677 | AB16: =IF(Q16,MATCH(Q16,Calculations!$A$1:'Calculations'!$A$1600),"") -> 835 | AC16: =IF(R16,MATCH(R16,Calculations!$A$1:'Calculations'!$A$1600),"") -> 1228 | AD16: =IF(S16,MATCH(S16,Calculations!$A$1:'Calculations'!$A$1600),"") -> 1330 | AE16: 0 | AF16: 0 | AG16: 0 | AH16: 0 | AJ16: 0
N17: Q | O17: =Data!Q$1 -> sample 16 | P17: 600 | Q17: 650 | R17: 770 | S17: 800 | U17: =SLOPE(INDIRECT("Calculations!Q"&AA17&":Q"&AB17),INDIRECT("Calculations!A"&AA17&":A"&AB17)) -> 0 | V17: =INTERCEPT(INDIRECT("Calculations!Q"&AA17&":Q"&AB17),INDIRECT("Calculations!A"&AA17&":A"&AB17)) -> 0 | W17: =SLOPE(INDIRECT("Calculations!Q"&AC17&":Q"&AD17),INDIRECT("Calculations!A"&AC17&":A"&AD17)) -> 0 | X17: =INTERCEPT(INDIRECT("Calculations!Q"&AC17&":Q"&AD17),INDIRECT("Calculations!A"&AC17&":A"&AD17)) -> 0 | Z17: sample 16 | AA17: =IF(P17,MATCH(P17,Calculations!$A$1:'Calculations'!$A$1600),"") -> 677 | AB17: =IF(Q17,MATCH(Q17,Calculations!$A$1:'Calculations'!$A$1600),"") -> 835 | AC17: =IF(R17,MATCH(R17,Calculations!$A$1:'Calculations'!$A$1600),"") -> 1228 | AD17: =IF(S17,MATCH(S17,Calculations!$A$1:'Calculations'!$A$1600),"") -> 1330 | AE17: 0 | AF17: 0 | AG17: 0 | AH17: 0 | AJ17: 0
N18: R | O18: =Data!R$1 -> sample 17 | P18: 600 | Q18: 650 | R18: 770 | S18: 800 | U18: =SLOPE(INDIRECT("Calculations!R"&AA18&":R"&AB18),INDIRECT("Calculations!A"&AA18&":A"&AB18)) -> 0 | V18: =INTERCEPT(INDIRECT("Calculations!R"&AA18&":R"&AB18),INDIRECT("Calculations!A"&AA18&":A"&AB18)) -> 0 | W18: =SLOPE(INDIRECT("Calculations!R"&AC18&":R"&AD18),INDIRECT("Calculations!A"&AC18&":A"&AD18)) -> 0 | X18: =INTERCEPT(INDIRECT("Calculations!R"&AC18&":R"&AD18),INDIRECT("Calculations!A"&AC18&":A"&AD18)) -> 0 | Z18: sample 17 | AA18: =IF(P18,MATCH(P18,Calculations!$A$1:'Calculations'!$A$1600),"") -> 677 | AB18: =IF(Q18,MATCH(Q18,Calculations!$A$1:'Calculations'!$A$1600),"") -> 835 | AC18: =IF(R18,MATCH(R18,Calculations!$A$1:'Calculations'!$A$1600),"") -> 1228 | AD18: =IF(S18,MATCH(S18,Calculations!$A$1:'Calculations'!$A$1600),"") -> 1330 | AE18: 0 | AF18: 0 | AG18: 0 | AH18: 0 | AJ18: 0
N19: S | O19: =Data!S$1 -> sample 18 | P19: 600 | Q19: 650 | R19: 770 | S19: 800 | U19: =SLOPE(INDIRECT("Calculations!S"&AA19&":S"&AB19),INDIRECT("Calculations!A"&AA19&":A"&AB19)) -> 0 | V19: =INTERCEPT(INDIRECT("Calculations!S"&AA19&":S"&AB19),INDIRECT("Calculations!A"&AA19&":A"&AB19)) -> 0 | W19: =SLOPE(INDIRECT("Calculations!S"&AC19&":S"&AD19),INDIRECT("Calculations!A"&AC19&":A"&AD19)) -> 0 | X19: =INTERCEPT(INDIRECT("Calculations!S"&AC19&":S"&AD19),INDIRECT("Calculations!A"&AC19&":A"&AD19)) -> 0 | Z19: sample 18 | AA19: =IF(P19,MATCH(P19,Calculations!$A$1:'Calculations'!$A$1600),"") -> 677 | AB19: =IF(Q19,MATCH(Q19,Calculations!$A$1:'Calculations'!$A$1600),"") -> 835 | AC19: =IF(R19,MATCH(R19,Calculations!$A$1:'Calculations'!$A$1600),"") -> 1228 | AD19: =IF(S19,MATCH(S19,Calculations!$A$1:'Calculations'!$A$1600),"") -> 1330 | AE19: 0 | AF19: 0 | AG19: 0 | AH19: 0 | AJ19: 0
N20: T | O20: =Data!T$1 -> sample 19 | P20: 600 | Q20: 650 | R20: 770 | S20: 800 | U20: =SLOPE(INDIRECT("Calculations!T"&AA20&":T"&AB20),INDIRECT("Calculations!A"&AA20&":A"&AB20)) -> 0 | V20: =INTERCEPT(INDIRECT("Calculations!T"&AA20&":T"&AB20),INDIRECT("Calculations!A"&AA20&":A"&AB20)) -> 0 | W20: =SLOPE(INDIRECT("Calculations!T"&AC20&":T"&AD20),INDIRECT("Calculations!A"&AC20&":A"&AD20)) -> 0 | X20: =INTERCEPT(INDIRECT("Calculations!T"&AC20&":T"&AD20),INDIRECT("Calculations!A"&AC20&":A"&AD20)) -> 0 | Z20: sample 19 | AA20: =IF(P20,MATCH(P20,Calculations!$A$1:'Calculations'!$A$1600),"") -> 677 | AB20: =IF(Q20,MATCH(Q20,Calculations!$A$1:'Calculations'!$A$1600),"") -> 835 | AC20: =IF(R20,MATCH(R20,Calculations!$A$1:'Calculations'!$A$1600),"") -> 1228 | AD20: =IF(S20,MATCH(S20,Calculations!$A$1:'Calculations'!$A$1600),"") -> 1330 | AE20: 0 | AF20: 0 | AG20: 0 | AH20: 0 | AJ20: 0
N21: U | O21: =Data!U$1 -> sample 19 | P21: 600 | Q21: 650 | R21: 770 | S21: 800 | U21: =SLOPE(INDIRECT("Calculations!U"&AA21&":U"&AB21),INDIRECT("Calculations!A"&AA21&":A"&AB21)) -> 0 | V21: =INTERCEPT(INDIRECT("Calculations!U"&AA21&":U"&AB21),INDIRECT("Calculations!A"&AA21&":A"&AB21)) -> 0 | W21: =SLOPE(INDIRECT("Calculations!U"&AC21&":U"&AD21),INDIRECT("Calculations!A"&AC21&":A"&AD21)) -> 0 | X21: =INTERCEPT(INDIRECT("Calculations!U"&AC21&":U"&AD21),INDIRECT("Calculations!A"&AC21&":A"&AD21)) -> 0 | Z21: sample 19 | AA21: =IF(P21,MATCH(P21,Calculations!$A$1:'Calculations'!$A$1600),"") -> 677 | AB21: =IF(Q21,MATCH(Q21,Calculations!$A$1:'Calculations'!$A$1600),"") -> 835 | AC21: =IF(R21,MATCH(R21,Calculations!$A$1:'Calculations'!$A$1600),"") -> 1228 | AD21: =IF(S21,MATCH(S21,Calculations!$A$1:'Calculations'!$A$1600),"") -> 1330 | AE21: 0 | AF21: 0 | AG21: 0 | AH21: 0 | AJ21: 0
N22: V | O22: =Data!V$1 -> sample 19 | P22: 600 | Q22: 650 | R22: 770 | S22: 800 | U22: =SLOPE(INDIRECT("Calculations!V"&AA22&":V"&AB22),INDIRECT("Calculations!A"&AA22&":A"&AB22)) -> 0 | V22: =INTERCEPT(INDIRECT("Calculations!V"&AA22&":V"&AB22),INDIRECT("Calculations!A"&AA22&":A"&AB22)) -> 0 | W22: =SLOPE(INDIRECT("Calculations!V"&AC22&":V"&AD22),INDIRECT("Calculations!A"&AC22&":A"&AD22)) -> 0 | X22: =INTERCEPT(INDIRECT("Calculations!V"&AC22&":V"&AD22),INDIRECT("Calculations!A"&AC22&":A"&AD22)) -> 0 | Z22: sample 19 | AA22: =IF(P22,MATCH(P22,Calculations!$A$1:'Calculations'!$A$1600),"") -> 677 | AB22: =IF(Q22,MATCH(Q22,Calculations!$A$1:'Calculations'!$A$1600),"") -> 835 | AC22: =IF(R22,MATCH(R22,Calculations!$A$1:'Calculations'!$A$1600),"") -> 1228 | AD22: =IF(S22,MATCH(S22,Calculations!$A$1:'Calculations'!$A$1600),"") -> 1330 | AE22: 0 | AF22: 0 | AG22: 0 | AH22: 0 | AJ22: 0
N23: W | O23: =Data!W$1 -> sample 19 | P23: 600 | Q23: 650 | R23: 770 | S23: 800 | U23: =SLOPE(INDIRECT("Calculations!W"&AA23&":W"&AB23),INDIRECT("Calculations!A"&AA23&":A"&AB23)) -> 0 | V23: =INTERCEPT(INDIRECT("Calculations!W"&AA23&":W"&AB23),INDIRECT("Calculations!A"&AA23&":A"&AB23)) -> 0 | W23: =SLOPE(INDIRECT("Calculations!W"&AC23&":W"&AD23),INDIRECT("Calculations!A"&AC23&":A"&AD23)) -> 0 | X23: =INTERCEPT(INDIRECT("Calculations!W"&AC23&":W"&AD23),INDIRECT("Calculations!A"&AC23&":A"&AD23)) -> 0 | Z23: sample 19 | AA23: =IF(P23,MATCH(P23,Calculations!$A$1:'Calculations'!$A$1600),"") -> 677 | AB23: =IF(Q23,MATCH(Q23,Calculations!$A$1:'Calculations'!$A$1600),"") -> 835 | AC23: =IF(R23,MATCH(R23,Calculations!$A$1:'Calculations'!$A$1600),"") -> 1228 | AD23: =IF(S23,MATCH(S23,Calculations!$A$1:'Calculations'!$A$1600),"") -> 1330 | AE23: 0 | AF23: 0 | AG23: 0 | AH23: 0 | AJ23: 0
O33: Reselect to restore fit lines

Sheet Calculations
A1: subtract minimum | B1: =MIN(Data!B2:B1524) -> 0.006742282775 | C1: =MIN(Data!C2:C1524) -> -0.002520068517 | D1: =MIN(Data!D2:D1524) -> 0.003675818493 | E1: =MIN(Data!E2:E1524) -> 0.01308796541 | F1: =MIN(Data!F2:F1524) -> -0.00630042808 | G1: =MIN(Data!G2:G1524) -> 0.0116956273 | H1: =MIN(Data!H2:H1524) -> 0.02169436403 | I1: =MIN(Data!I2:I1524) -> -0.003968591869 | J1: =MIN(Data!J2:J1524) -> -0.007511648475 | K1: =MIN(Data!K2:K1524) -> 0.05404155289 | L1: =MIN(Data!L2:L1524) -> 0.08565325523 | M1: =MIN(Data!M2:M1524) -> 0 | N1: =MIN(Data!N2:N1524) -> 0 | O1: =MIN(Data!O2:O1524) -> 0 | P1: =MIN(Data!P2:P1524) -> 0 | Q1: =MIN(Data!Q2:Q1524) -> 0 | R1: =MIN(Data!R2:R1524) -> 0 | S1: =MIN(Data!S2:S1524) -> 0 | T1: =MIN(Data!T2:T1524) -> 0 | U1: =MIN(Data!U2:U1524) -> 0 | V1: =MIN(Data!V2:V1524) -> 0 | W1: =MIN(Data!W2:W1524) -> 0
A2: l (nm) | B2: =Data!B1 -> sample 1 | C2: =Data!C1 -> sample 2 | D2: =Data!D1 -> sample 3 | E2: =Data!E1 -> sample 4 | F2: =Data!F1 -> sample 5 | G2: =Data!G1 -> sample 6 | H2: =Data!H1 -> sample 7 | I2: =Data!I1 -> sample 8 | J2: =Data!J1 -> sample 9 | K2: =Data!K1 -> sample 10 | L2: =Data!L1 -> sample 11 | M2: =Data!M1 -> sample 12 | N2: =Data!N1 -> sample 13 | O2: =Data!O1 -> sample 14 | P2: =Data!P1 -> sample 15 | Q2: =Data!Q1 -> sample 16 | R2: =Data!R1 -> sample 17 | S2: =Data!S1 -> sample 18 | T2: =Data!T1 -> sample 19 | U2: =Data!U1 -> sample 19 | V2: =Data!V1 -> sample 19 | W2: =Data!W1 -> sample 19
A3: =IF(Data!A2>0,Data!A2,NA()) -> 375.1996765 | B3: =Data!B2-Calculations!B$1 -> 1.174642723 | C3: =Data!C2-Calculations!C$1 -> 3.002520069 | D3: =Data!D2-Calculations!D$1 -> 2.996324182 | E3: =Data!E2-Calculations!E$1 -> 2.986912035 | F3: =Data!F2-Calculations!F$1 -> 3.006300428 | G3: =Data!G2-Calculations!G$1 -> 2.988304373 | H3: =Data!H2-Calculations!H$1 -> 2.978305636 | I3: =Data!I2-Calculations!I$1 -> 3.003968592 | J3: =Data!J2-Calculations!J$1 -> 3.007511648 | K3: =Data!K2-Calculations!K$1 -> 2.945958447 | L3: =Data!L2-Calculations!L$1 -> 2.914346745 | M3: =Data!M2-Calculations!M$1 -> 0 | N3: =Data!N2-Calculations!N$1 -> 0 | O3: =Data!O2-Calculations!O$1 -> 0 | P3: =Data!P2-Calculations!P$1 -> 0 | Q3: =Data!Q2-Calculations!Q$1 -> 0 | R3: =Data!R2-Calculations!R$1 -> 0 | S3: =Data!S2-Calculations!S$1 -> 0 | T3: =Data!T2-Calculations!T$1 -> 0 | U3: =Data!U2-Calculations!U$1 -> 0 | V3: =Data!V2-Calculations!V$1 -> 0 | W3: =Data!W2-Calculations!W$1 -> 0
A4: =IF(Data!A3>0,Data!A3,NA()) -> 375.5446777 | B4: =Data!B3-Calculations!B$1 -> 1.190076319 | C4: =Data!C3-Calculations!C$1 -> 3.002520069 | D4: =Data!D3-Calculations!D$1 -> 2.996324182 | E4: =Data!E3-Calculations!E$1 -> 2.986912035 | F4: =Data!F3-Calculations!F$1 -> 3.006300428 | G4: =Data!G3-Calculations!G$1 -> 2.988304373 | H4: =Data!H3-Calculations!H$1 -> 2.978305636 | I4: =Data!I3-Calculations!I$1 -> 3.003968592 | J4: =Data!J3-Calculations!J$1 -> 3.007511648 | K4: =Data!K3-Calculations!K$1 -> 2.945958447 | L4: =Data!L3-Calculations!L$1 -> 2.914346745 | M4: =Data!M3-Calculations!M$1 -> 0 | N4: =Data!N3-Calculations!N$1 -> 0 | O4: =Data!O3-Calculations!O$1 -> 0 | P4: =Data!P3-Calculations!P$1 -> 0 | Q4: =Data!Q3-Calculations!Q$1 -> 0 | R4: =Data!R3-Calculations!R$1 -> 0 | S4: =Data!S3-Calculations!S$1 -> 0 | T4: =Data!T3-Calculations!T$1 -> 0 | U4: =Data!U3-Calculations!U$1 -> 0 | V4: =Data!V3-Calculations!V$1 -> 0 | W4: =Data!W3-Calculations!W$1 -> 0
A5: =IF(Data!A4>0,Data!A4,NA()) -> 375.8896179 | B5: =Data!B4-Calculations!B$1 -> 1.186346662 | C5: =Data!C4-Calculations!C$1 -> 3.002520069 | D5: =Data!D4-Calculations!D$1 -> 2.996324182 | E5: =Data!E4-Calculations!E$1 -> 2.986912035 | F5: =Data!F4-Calculations!F$1 -> 3.006300428 | G5: =Data!G4-Calculations!G$1 -> 2.988304373 | H5: =Data!H4-Calculations!H$1 -> 2.978305636 | I5: =Data!I4-Calculations!I$1 -> 3.003968592 | J5: =Data!J4-Calculations!J$1 -> 3.007511648 | K5: =Data!K4-Calculations!K$1 -> 2.945958447 | L5: =Data!L4-Calculations!L$1 -> 2.914346745 | M5: =Data!M4-Calculations!M$1 -> 0 | N5: =Data!N4-Calculations!N$1 -> 0 | O5: =Data!O4-Calculations!O$1 -> 0 | P5: =Data!P4-Calculations!P$1 -> 0 | Q5: =Data!Q4-Calculations!Q$1 -> 0 | R5: =Data!R4-Calculations!R$1 -> 0 | S5: =Data!S4-Calculations!S$1 -> 0 | T5: =Data!T4-Calculations!T$1 -> 0 | U5: =Data!U4-Calculations!U$1 -> 0 | V5: =Data!V4-Calculations!V$1 -> 0 | W5: =Data!W4-Calculations!W$1 -> 0
A6: =IF(Data!A5>0,Data!A5,NA()) -> 376.2345886 | B6: =Data!B5-Calculations!B$1 -> 1.15014786 | C6: =Data!C5-Calculations!C$1 -> 3.002520069 | D6: =Data!D5-Calculations!D$1 -> 2.996324182 | E6: =Data!E5-Calculations!E$1 -> 2.986912035 | F6: =Data!F5-Calculations!F$1 -> 3.006300428 | G6: =Data!G5-Calculations!G$1 -> 2.988304373 | H6: =Data!H5-Calculations!H$1 -> 2.978305636 | I6: =Data!I5-Calculations!I$1 -> 3.003968592 | J6: =Data!J5-Calculations!J$1 -> 3.007511648 | K6: =Data!K5-Calculations!K$1 -> 2.945958447 | L6: =Data!L5-Calculations!L$1 -> 2.914346745 | M6: =Data!M5-Calculations!M$1 -> 0 | N6: =Data!N5-Calculations!N$1 -> 0 | O6: =Data!O5-Calculations!O$1 -> 0 | P6: =Data!P5-Calculations!P$1 -> 0 | Q6: =Data!Q5-Calculations!Q$1 -> 0 | R6: =Data!R5-Calculations!R$1 -> 0 | S6: =Data!S5-Calculations!S$1 -> 0 | T6: =Data!T5-Calculations!T$1 -> 0 | U6: =Data!U5-Calculations!U$1 -> 0 | V6: =Data!V5-Calculations!V$1 -> 0 | W6: =Data!W5-Calculations!W$1 -> 0
A7: =IF(Data!A6>0,Data!A6,NA()) -> 376.5794067 | B7: =Data!B6-Calculations!B$1 -> 1.13698298 | C7: =Data!C6-Calculations!C$1 -> 3.002520069 | D7: =Data!D6-Calculations!D$1 -> 2.996324182 | E7: =Data!E6-Calculations!E$1 -> 2.986912035 | F7: =Data!F6-Calculations!F$1 -> 3.006300428 | G7: =Data!G6-Calculations!G$1 -> 2.988304373 | H7: =Data!H6-Calculations!H$1 -> 2.978305636 | I7: =Data!I6-Calculations!I$1 -> 3.003968592 | J7: =Data!J6-Calculations!J$1 -> 3.007511648 | K7: =Data!K6-Calculations!K$1 -> 2.945958447 | L7: =Data!L6-Calculations!L$1 -> 2.914346745 | M7: =Data!M6-Calculations!M$1 -> 0 | N7: =Data!N6-Calculations!N$1 -> 0 | O7: =Data!O6-Calculations!O$1 -> 0 | P7: =Data!P6-Calculations!P$1 -> 0 | Q7: =Data!Q6-Calculations!Q$1 -> 0 | R7: =Data!R6-Calculations!R$1 -> 0 | S7: =Data!S6-Calculations!S$1 -> 0 | T7: =Data!T6-Calculations!T$1 -> 0 | U7: =Data!U6-Calculations!U$1 -> 0 | V7: =Data!V6-Calculations!V$1 -> 0 | W7: =Data!W6-Calculations!W$1 -> 0
A8: =IF(Data!A7>0,Data!A7,NA()) -> 376.9242859 | B8: =Data!B7-Calculations!B$1 -> 1.149337666 | C8: =Data!C7-Calculations!C$1 -> 3.002520069 | D8: =Data!D7-Calculations!D$1 -> 2.996324182 | E8: =Data!E7-Calculations!E$1 -> 2.986912035 | F8: =Data!F7-Calculations!F$1 -> 3.006300428 | G8: =Data!G7-Calculations!G$1 -> 2.988304373 | H8: =Data!H7-Calculations!H$1 -> 2.978305636 | I8: =Data!I7-Calculations!I$1 -> 3.003968592 | J8: =Data!J7-Calculations!J$1 -> 3.007511648 | K8: =Data!K7-Calculations!K$1 -> 2.945958447 | L8: =Data!L7-Calculations!L$1 -> 2.914346745 | M8: =Data!M7-Calculations!M$1 -> 0 | N8: =Data!N7-Calculations!N$1 -> 0 | O8: =Data!O7-Calculations!O$1 -> 0 | P8: =Data!P7-Calculations!P$1 -> 0 | Q8: =Data!Q7-Calculations!Q$1 -> 0 | R8: =Data!R7-Calculations!R$1 -> 0 | S8: =Data!S7-Calculations!S$1 -> 0 | T8: =Data!T7-Calculations!T$1 -> 0 | U8: =Data!U7-Calculations!U$1 -> 0 | V8: =Data!V7-Calculations!V$1 -> 0 | W8: =Data!W7-Calculations!W$1 -> 0
A9: =IF(Data!A8>0,Data!A8,NA()) -> 377.269104 | B9: =Data!B8-Calculations!B$1 -> 1.201097563 | C9: =Data!C8-Calculations!C$1 -> 3.002520069 | D9: =Data!D8-Calculations!D$1 -> 2.996324182 | E9: =Data!E8-Calculations!E$1 -> 2.986912035 | F9: =Data!F8-Calculations!F$1 -> 3.006300428 | G9: =Data!G8-Calculations!G$1 -> 2.988304373 | H9: =Data!H8-Calculations!H$1 -> 2.978305636 | I9: =Data!I8-Calculations!I$1 -> 3.003968592 | J9: =Data!J8-Calculations!J$1 -> 3.007511648 | K9: =Data!K8-Calculations!K$1 -> 2.945958447 | L9: =Data!L8-Calculations!L$1 -> 2.914346745 | M9: =Data!M8-Calculations!M$1 -> 0 | N9: =Data!N8-Calculations!N$1 -> 0 | O9: =Data!O8-Calculations!O$1 -> 0 | P9: =Data!P8-Calculations!P$1 -> 0 | Q9: =Data!Q8-Calculations!Q$1 -> 0 | R9: =Data!R8-Calculations!R$1 -> 0 | S9: =Data!S8-Calculations!S$1 -> 0 | T9: =Data!T8-Calculations!T$1 -> 0 | U9: =Data!U8-Calculations!U$1 -> 0 | V9: =Data!V8-Calculations!V$1 -> 0 | W9: =Data!W8-Calculations!W$1 -> 0
A10: =IF(Data!A9>0,Data!A9,NA()) -> 377.6139221 | B10: =Data!B9-Calculations!B$1 -> 1.224396184 | C10: =Data!C9-Calculations!C$1 -> 3.002520069 | D10: =Data!D9-Calculations!D$1 -> 2.996324182 | E10: =Data!E9-Calculations!E$1 -> 2.986912035 | F10: =Data!F9-Calculations!F$1 -> 3.006300428 | G10: =Data!G9-Calculations!G$1 -> 2.988304373 | H10: =Data!H9-Calculations!H$1 -> 2.978305636 | I10: =Data!I9-Calculations!I$1 -> 3.003968592 | J10: =Data!J9-Calculations!J$1 -> 3.007511648 | K10: =Data!K9-Calculations!K$1 -> 2.945958447 | L10: =Data!L9-Calculations!L$1 -> 2.914346745 | M10: =Data!M9-Calculations!M$1 -> 0 | N10: =Data!N9-Calculations!N$1 -> 0 | O10: =Data!O9-Calculations!O$1 -> 0 | P10: =Data!P9-Calculations!P$1 -> 0 | Q10: =Data!Q9-Calculations!Q$1 -> 0 | R10: =Data!R9-Calculations!R$1 -> 0 | S10: =Data!S9-Calculations!S$1 -> 0 | T10: =Data!T9-Calculations!T$1 -> 0 | U10: =Data!U9-Calculations!U$1 -> 0 | V10: =Data!V9-Calculations!V$1 -> 0 | W10: =Data!W9-Calculations!W$1 -> 0
A11: =IF(Data!A10>0,Data!A10,NA()) -> 377.9586487 | B11: =Data!B10-Calculations!B$1 -> 1.226125122 | C11: =Data!C10-Calculations!C$1 -> 3.002520069 | D11: =Data!D10-Calculations!D$1 -> 2.996324182 | E11: =Data!E10-Calculations!E$1 -> 2.986912035 | F11: =Data!F10-Calculations!F$1 -> 3.006300428 | G11: =Data!G10-Calculations!G$1 -> 2.988304373 | H11: =Data!H10-Calculations!H$1 -> 2.978305636 | I11: =Data!I10-Calculations!I$1 -> 3.003968592 | J11: =Data!J10-Calculations!J$1 -> 3.007511648 | K11: =Data!K10-Calculations!K$1 -> 2.945958447 | L11: =Data!L10-Calculations!L$1 -> 2.914346745 | M11: =Data!M10-Calculations!M$1 -> 0 | N11: =Data!N10-Calculations!N$1 -> 0 | O11: =Data!O10-Calculations!O$1 -> 0 | P11: =Data!P10-Calculations!P$1 -> 0 | Q11: =Data!Q10-Calculations!Q$1 -> 0 | R11: =Data!R10-Calculations!R$1 -> 0 | S11: =Data!S10-Calculations!S$1 -> 0 | T11: =Data!T10-Calculations!T$1 -> 0 | U11: =Data!U10-Calculations!U$1 -> 0 | V11: =Data!V10-Calculations!V$1 -> 0 | W11: =Data!W10-Calculations!W$1 -> 0
A12: =IF(Data!A11>0,Data!A11,NA()) -> 378.3034058 | B12: =Data!B11-Calculations!B$1 -> 1.264942141 | C12: =Data!C11-Calculations!C$1 -> 3.002520069 | D12: =Data!D11-Calculations!D$1 -> 2.996324182 | E12: =Data!E11-Calculations!E$1 -> 2.986912035 | F12: =Data!F11-Calculations!F$1 -> 3.006300428 | G12: =Data!G11-Calculations!G$1 -> 2.988304373 | H12: =Data!H11-Calculations!H$1 -> 2.978305636 | I12: =Data!I11-Calculations!I$1 -> 3.003968592 | J12: =Data!J11-Calculations!J$1 -> 3.007511648 | K12: =Data!K11-Calculations!K$1 -> 2.945958447 | L12: =Data!L11-Calculations!L$1 -> 2.914346745 | M12: =Data!M11-Calculations!M$1 -> 0 | N12: =Data!N11-Calculations!N$1 -> 0 | O12: =Data!O11-Calculations!O$1 -> 0 | P12: =Data!P11-Calculations!P$1 -> 0 | Q12: =Data!Q11-Calculations!Q$1 -> 0 | R12: =Data!R11-Calculations!R$1 -> 0 | S12: =Data!S11-Calculations!S$1 -> 0 | T12: =Data!T11-Calculations!T$1 -> 0 | U12: =Data!U11-Calculations!U$1 -> 0 | V12: =Data!V11-Calculations!V$1 -> 0 | W12: =Data!W11-Calculations!W$1 -> 0
A13: =IF(Data!A12>0,Data!A12,NA()) -> 378.6481018 | B13: =Data!B12-Calculations!B$1 -> 1.262346096 | C13: =Data!C12-Calculations!C$1 -> 3.002520069 | D13: =Data!D12-Calculations!D$1 -> 2.996324182 | E13: =Data!E12-Calculations!E$1 -> 2.986912035 | F13: =Data!F12-Calculations!F$1 -> 3.006300428 | G13: =Data!G12-Calculations!G$1 -> 2.988304373 | H13: =Data!H12-Calculations!H$1 -> 2.978305636 | I13: =Data!I12-Calculations!I$1 -> 3.003968592 | J13: =Data!J12-Calculations!J$1 -> 3.007511648 | K13: =Data!K12-Calculations!K$1 -> 2.945958447 | L13: =Data!L12-Calculations!L$1 -> 2.914346745 | M13: =Data!M12-Calculations!M$1 -> 0 | N13: =Data!N12-Calculations!N$1 -> 0 | O13: =Data!O12-Calculations!O$1 -> 0 | P13: =Data!P12-Calculations!P$1 -> 0 | Q13: =Data!Q12-Calculations!Q$1 -> 0 | R13: =Data!R12-Calculations!R$1 -> 0 | S13: =Data!S12-Calculations!S$1 -> 0 | T13: =Data!T12-Calculations!T$1 -> 0 | U13: =Data!U12-Calculations!U$1 -> 0 | V13: =Data!V12-Calculations!V$1 -> 0 | W13: =Data!W12-Calculations!W$1 -> 0
A14: =IF(Data!A13>0,Data!A13,NA()) -> 378.9927673 | B14: =Data!B13-Calculations!B$1 -> 1.332396209 | C14: =Data!C13-Calculations!C$1 -> 3.002520069 | D14: =Data!D13-Calculations!D$1 -> 2.996324182 | E14: =Data!E13-Calculations!E$1 -> 2.986912035 | F14: =Data!F13-Calculations!F$1 -> 3.006300428 | G14: =Data!G13-Calculations!G$1 -> 2.988304373 | H14: =Data!H13-Calculations!H$1 -> 2.978305636 | I14: =Data!I13-Calculations!I$1 -> 3.003968592 | J14: =Data!J13-Calculations!J$1 -> 3.007511648 | K14: =Data!K13-Calculations!K$1 -> 2.945958447 | L14: =Data!L13-Calculations!L$1 -> 2.914346745 | M14: =Data!M13-Calculations!M$1 -> 0 | N14: =Data!N13-Calculations!N$1 -> 0 | O14: =Data!O13-Calculations!O$1 -> 0 | P14: =Data!P13-Calculations!P$1 -> 0 | Q14: =Data!Q13-Calculations!Q$1 -> 0 | R14: =Data!R13-Calculations!R$1 -> 0 | S14: =Data!S13-Calculations!S$1 -> 0 | T14: =Data!T13-Calculations!T$1 -> 0 | U14: =Data!U13-Calculations!U$1 -> 0 | V14: =Data!V13-Calculations!V$1 -> 0 | W14: =Data!W13-Calculations!W$1 -> 0
A15: =IF(Data!A14>0,Data!A14,NA()) -> 379.3374023 | B15: =Data!B14-Calculations!B$1 -> 1.293639657 | C15: =Data!C14-Calculations!C$1 -> 2.341751252 | D15: =Data!D14-Calculations!D$1 -> 2.996324182 | E15: =Data!E14-Calculations!E$1 -> 2.986912035 | F15: =Data!F14-Calculations!F$1 -> 3.006300428 | G15: =Data!G14-Calculations!G$1 -> 2.988304373 | H15: =Data!H14-Calculations!H$1 -> 2.978305636 | I15: =Data!I14-Calculations!I$1 -> 3.003968592 | J15: =Data!J14-Calculations!J$1 -> 3.007511648 | K15: =Data!K14-Calculations!K$1 -> 2.945958447 | L15: =Data!L14-Calculations!L$1 -> 2.914346745 | M15: =Data!M14-Calculations!M$1 -> 0 | N15: =Data!N14-Calculations!N$1 -> 0 | O15: =Data!O14-Calculations!O$1 -> 0 | P15: =Data!P14-Calculations!P$1 -> 0 | Q15: =Data!Q14-Calculations!Q$1 -> 0 | R15: =Data!R14-Calculations!R$1 -> 0 | S15: =Data!S14-Calculations!S$1 -> 0 | T15: =Data!T14-Calculations!T$1 -> 0 | U15: =Data!U14-Calculations!U$1 -> 0 | V15: =Data!V14-Calculations!V$1 -> 0 | W15: =Data!W14-Calculations!W$1 -> 0
A16: =IF(Data!A15>0,Data!A15,NA()) -> 379.6819763 | B16: =Data!B15-Calculations!B$1 -> 1.299034295 | C16: =Data!C15-Calculations!C$1 -> 2.441136985 | D16: =Data!D15-Calculations!D$1 -> 2.996324182 | E16: =Data!E15-Calculations!E$1 -> 2.986912035 | F16: =Data!F15-Calculations!F$1 -> 3.006300428 | G16: =Data!G15-Calculations!G$1 -> 2.988304373 | H16: =Data!H15-Calculations!H$1 -> 2.978305636 | I16: =Data!I15-Calculations!I$1 -> 3.003968592 | J16: =Data!J15-Calculations!J$1 -> 3.007511648 | K16: =Data!K15-Calculations!K$1 -> 2.945958447 | L16: =Data!L15-Calculations!L$1 -> 2.914346745 | M16: =Data!M15-Calculations!M$1 -> 0 | N16: =Data!N15-Calculations!N$1 -> 0 | O16: =Data!O15-Calculations!O$1 -> 0 | P16: =Data!P15-Calculations!P$1 -> 0 | Q16: =Data!Q15-Calculations!Q$1 -> 0 | R16: =Data!R15-Calculations!R$1 -> 0 | S16: =Data!S15-Calculations!S$1 -> 0 | T16: =Data!T15-Calculations!T$1 -> 0 | U16: =Data!U15-Calculations!U$1 -> 0 | V16: =Data!V15-Calculations!V$1 -> 0 | W16: =Data!W15-Calculations!W$1 -> 0
A17: =IF(Data!A16>0,Data!A16,NA()) -> 380.0265808 | B17: =Data!B16-Calculations!B$1 -> 1.281545576 | C17: =Data!C16-Calculations!C$1 -> 3.002520069 | D17: =Data!D16-Calculations!D$1 -> 2.996324182 | E17: =Data!E16-Calculations!E$1 -> 2.986912035 | F17: =Data!F16-Calculations!F$1 -> 3.006300428 | G17: =Data!G16-Calculations!G$1 -> 2.988304373 | H17: =Data!H16-Calculations!H$1 -> 2.978305636 | I17: =Data!I16-Calculations!I$1 -> 3.003968592 | J17: =Data!J16-Calculations!J$1 -> 3.007511648 | K17: =Data!K16-Calculations!K$1 -> 2.945958447 | L17: =Data!L16-Calculations!L$1 -> 2.914346745 | M17: =Data!M16-Calculations!M$1 -> 0 | N17: =Data!N16-Calculations!N$1 -> 0 | O17: =Data!O16-Calculations!O$1 -> 0 | P17: =Data!P16-Calculations!P$1 -> 0 | Q17: =Data!Q16-Calculations!Q$1 -> 0 | R17: =Data!R16-Calculations!R$1 -> 0 | S17: =Data!S16-Calculations!S$1 -> 0 | T17: =Data!T16-Calculations!T$1 -> 0 | U17: =Data!U16-Calculations!U$1 -> 0 | V17: =Data!V16-Calculations!V$1 -> 0 | W17: =Data!W16-Calculations!W$1 -> 0
A18: =IF(Data!A17>0,Data!A17,NA()) -> 380.3710938 | B18: =Data!B17-Calculations!B$1 -> 1.287185321 | C18: =Data!C17-Calculations!C$1 -> 3.002520069 | D18: =Data!D17-Calculations!D$1 -> 2.996324182 | E18: =Data!E17-Calculations!E$1 -> 2.986912035 | F18: =Data!F17-Calculations!F$1 -> 3.006300428 | G18: =Data!G17-Calculations!G$1 -> 2.988304373 | H18: =Data!H17-Calculations!H$1 -> 2.978305636 | I18: =Data!I17-Calculations!I$1 -> 3.003968592 | J18: =Data!J17-Calculations!J$1 -> 3.007511648 | K18: =Data!K17-Calculations!K$1 -> 2.945958447 | L18: =Data!L17-Calculations!L$1 -> 2.914346745 | M18: =Data!M17-Calculations!M$1 -> 0 | N18: =Data!N17-Calculations!N$1 -> 0 | O18: =Data!O17-Calculations!O$1 -> 0 | P18: =Data!P17-Calculations!P$1 -> 0 | Q18: =Data!Q17-Calculations!Q$1 -> 0 | R18: =Data!R17-Calculations!R$1 -> 0 | S18: =Data!S17-Calculations!S$1 -> 0 | T18: =Data!T17-Calculations!T$1 -> 0 | U18: =Data!U17-Calculations!U$1 -> 0 | V18: =Data!V17-Calculations!V$1 -> 0 | W18: =Data!W17-Calculations!W$1 -> 0
A19: =IF(Data!A18>0,Data!A18,NA()) -> 380.7156067 | B19: =Data!B18-Calculations!B$1 -> 1.291454355 | C19: =Data!C18-Calculations!C$1 -> 3.002520069 | D19: =Data!D18-Calculations!D$1 -> 2.996324182 | E19: =Data!E18-Calculations!E$1 -> 2.986912035 | F19: =Data!F18-Calculations!F$1 -> 3.006300428 | G19: =Data!G18-Calculations!G$1 -> 2.988304373 | H19: =Data!H18-Calculations!H$1 -> 2.978305636 | I19: =Data!I18-Calculations!I$1 -> 3.003968592 | J19: =Data!J18-Calculations!J$1 -> 3.007511648 | K19: =Data!K18-Calculations!K$1 -> 2.945958447 | L19: =Data!L18-Calculations!L$1 -> 2.914346745 | M19: =Data!M18-Calculations!M$1 -> 0 | N19: =Data!N18-Calculations!N$1 -> 0 | O19: =Data!O18-Calculations!O$1 -> 0 | P19: =Data!P18-Calculations!P$1 -> 0 | Q19: =Data!Q18-Calculations!Q$1 -> 0 | R19: =Data!R18-Calculations!R$1 -> 0 | S19: =Data!S18-Calculations!S$1 -> 0 | T19: =Data!T18-Calculations!T$1 -> 0 | U19: =Data!U18-Calculations!U$1 -> 0 | V19: =Data!V18-Calculations!V$1 -> 0 | W19: =Data!W18-Calculations!W$1 -> 0
A20: =IF(Data!A19>0,Data!A19,NA()) -> 381.0600586 | B20: =Data!B19-Calculations!B$1 -> 1.317199455 | C20: =Data!C19-Calculations!C$1 -> 3.002520069 | D20: =Data!D19-Calculations!D$1 -> 2.996324182 | E20: =Data!E19-Calculations!E$1 -> 2.986912035 | F20: =Data!F19-Calculations!F$1 -> 3.006300428 | G20: =Data!G19-Calculations!G$1 -> 2.988304373 | H20: =Data!H19-Calculations!H$1 -> 2.978305636 | I20: =Data!I19-Calculations!I$1 -> 3.003968592 | J20: =Data!J19-Calculations!J$1 -> 3.007511648 | K20: =Data!K19-Calculations!K$1 -> 2.945958447 | L20: =Data!L19-Calculations!L$1 -> 2.914346745 | M20: =Data!M19-Calculations!M$1 -> 0 | N20: =Data!N19-Calculations!N$1 -> 0 | O20: =Data!O19-Calculations!O$1 -> 0 | P20: =Data!P19-Calculations!P$1 -> 0 | Q20: =Data!Q19-Calculations!Q$1 -> 0 | R20: =Data!R19-Calculations!R$1 -> 0 | S20: =Data!S19-Calculations!S$1 -> 0 | T20: =Data!T19-Calculations!T$1 -> 0 | U20: =Data!U19-Calculations!U$1 -> 0 | V20: =Data!V19-Calculations!V$1 -> 0 | W20: =Data!W19-Calculations!W$1 -> 0
A21: =IF(Data!A20>0,Data!A20,NA()) -> 381.40448 | B21: =Data!B20-Calculations!B$1 -> 1.374692874 | C21: =Data!C20-Calculations!C$1 -> 3.002520069 | D21: =Data!D20-Calculations!D$1 -> 2.996324182 | E21: =Data!E20-Calculations!E$1 -> 2.986912035 | F21: =Data!F20-Calculations!F$1 -> 3.006300428 | G21: =Data!G20-Calculations!G$1 -> 2.988304373 | H21: =Data!H20-Calculations!H$1 -> 2.978305636 | I21: =Data!I20-Calculations!I$1 -> 3.003968592 | J21: =Data!J20-Calculations!J$1 -> 3.007511648 | K21: =Data!K20-Calculations!K$1 -> 2.945958447 | L21: =Data!L20-Calculations!L$1 -> 2.914346745 | M21: =Data!M20-Calculations!M$1 -> 0 | N21: =Data!N20-Calculations!N$1 -> 0 | O21: =Data!O20-Calculations!O$1 -> 0 | P21: =Data!P20-Calculations!P$1 -> 0 | Q21: =Data!Q20-Calculations!Q$1 -> 0 | R21: =Data!R20-Calculations!R$1 -> 0 | S21: =Data!S20-Calculations!S$1 -> 0 | T21: =Data!T20-Calculations!T$1 -> 0 | U21: =Data!U20-Calculations!U$1 -> 0 | V21: =Data!V20-Calculations!V$1 -> 0 | W21: =Data!W20-Calculations!W$1 -> 0
A22: =IF(Data!A21>0,Data!A21,NA()) -> 381.7489319 | B22: =Data!B21-Calculations!B$1 -> 1.398599641 | C22: =Data!C21-Calculations!C$1 -> 3.002520069 | D22: =Data!D21-Calculations!D$1 -> 2.996324182 | E22: =Data!E21-Calculations!E$1 -> 2.986912035 | F22: =Data!F21-Calculations!F$1 -> 3.006300428 | G22: =Data!G21-Calculations!G$1 -> 2.988304373 | H22: =Data!H21-Calculations!H$1 -> 2.978305636 | I22: =Data!I21-Calculations!I$1 -> 3.003968592 | J22: =Data!J21-Calculations!J$1 -> 3.007511648 | K22: =Data!K21-Calculations!K$1 -> 2.945958447 | L22: =Data!L21-Calculations!L$1 -> 2.914346745 | M22: =Data!M21-Calculations!M$1 -> 0 | N22: =Data!N21-Calculations!N$1 -> 0 | O22: =Data!O21-Calculations!O$1 -> 0 | P22: =Data!P21-Calculations!P$1 -> 0 | Q22: =Data!Q21-Calculations!Q$1 -> 0 | R22: =Data!R21-Calculations!R$1 -> 0 | S22: =Data!S21-Calculations!S$1 -> 0 | T22: =Data!T21-Calculations!T$1 -> 0 | U22: =Data!U21-Calculations!U$1 -> 0 | V22: =Data!V21-Calculations!V$1 -> 0 | W22: =Data!W21-Calculations!W$1 -> 0
A23: =IF(Data!A22>0,Data!A22,NA()) -> 382.0932922 | B23: =Data!B22-Calculations!B$1 -> 1.378722307 | C23: =Data!C22-Calculations!C$1 -> 3.002520069 | D23: =Data!D22-Calculations!D$1 -> 2.996324182 | E23: =Data!E22-Calculations!E$1 -> 2.986912035 | F23: =Data!F22-Calculations!F$1 -> 3.006300428 | G23: =Data!G22-Calculations!G$1 -> 2.988304373 | H23: =Data!H22-Calculations!H$1 -> 2.978305636 | I23: =Data!I22-Calculations!I$1 -> 3.003968592 | J23: =Data!J22-Calculations!J$1 -> 3.007511648 | K23: =Data!K22-Calculations!K$1 -> 2.945958447 | L23: =Data!L22-Calculations!L$1 -> 2.914346745 | M23: =Data!M22-Calculations!M$1 -> 0 | N23: =Data!N22-Calculations!N$1 -> 0 | O23: =Data!O22-Calculations!O$1 -> 0 | P23: =Data!P22-Calculations!P$1 -> 0 | Q23: =Data!Q22-Calculations!Q$1 -> 0 | R23: =Data!R22-Calculations!R$1 -> 0 | S23: =Data!S22-Calculations!S$1 -> 0 | T23: =Data!T22-Calculations!T$1 -> 0 | U23: =Data!U22-Calculations!U$1 -> 0 | V23: =Data!V22-Calculations!V$1 -> 0 | W23: =Data!W22-Calculations!W$1 -> 0
A24: =IF(Data!A23>0,Data!A23,NA()) -> 382.4376221 | B24: =Data!B23-Calculations!B$1 -> 1.360660907 | C24: =Data!C23-Calculations!C$1 -> 3.002520069 | D24: =Data!D23-Calculations!D$1 -> 2.996324182 | E24: =Data!E23-Calculations!E$1 -> 2.986912035 | F24: =Data!F23-Calculations!F$1 -> 3.006300428 | G24: =Data!G23-Calculations!G$1 -> 2.988304373 | H24: =Data!H23-Calculations!H$1 -> 2.978305636 | I24: =Data!I23-Calculations!I$1 -> 3.003968592 | J24: =Data!J23-Calculations!J$1 -> 3.007511648 | K24: =Data!K23-Calculations!K$1 -> 2.945958447 | L24: =Data!L23-Calculations!L$1 -> 2.914346745 | M24: =Data!M23-Calculations!M$1 -> 0 | N24: =Data!N23-Calculations!N$1 -> 0 | O24: =Data!O23-Calculations!O$1 -> 0 | P24: =Data!P23-Calculations!P$1 -> 0 | Q24: =Data!Q23-Calculations!Q$1 -> 0 | R24: =Data!R23-Calculations!R$1 -> 0 | S24: =Data!S23-Calculations!S$1 -> 0 | T24: =Data!T23-Calculations!T$1 -> 0 | U24: =Data!U23-Calculations!U$1 -> 0 | V24: =Data!V23-Calculations!V$1 -> 0 | W24: =Data!W23-Calculations!W$1 -> 0
A25: =IF(Data!A24>0,Data!A24,NA()) -> 382.7819519 | B25: =Data!B24-Calculations!B$1 -> 1.392693303 | C25: =Data!C24-Calculations!C$1 -> 3.002520069 | D25: =Data!D24-Calculations!D$1 -> 2.996324182 | E25: =Data!E24-Calculations!E$1 -> 2.986912035 | F25: =Data!F24-Calculations!F$1 -> 3.006300428 | G25: =Data!G24-Calculations!G$1 -> 2.988304373 | H25: =Data!H24-Calculations!H$1 -> 2.978305636 | I25: =Data!I24-Calculations!I$1 -> 3.003968592 | J25: =Data!J24-Calculations!J$1 -> 3.007511648 | K25: =Data!K24-Calculations!K$1 -> 2.945958447 | L25: =Data!L24-Calculations!L$1 -> 2.914346745 | M25: =Data!M24-Calculations!M$1 -> 0 | N25: =Data!N24-Calculations!N$1 -> 0 | O25: =Data!O24-Calculations!O$1 -> 0 | P25: =Data!P24-Calculations!P$1 -> 0 | Q25: =Data!Q24-Calculations!Q$1 -> 0 | R25: =Data!R24-Calculations!R$1 -> 0 | S25: =Data!S24-Calculations!S$1 -> 0 | T25: =Data!T24-Calculations!T$1 -> 0 | U25: =Data!U24-Calculations!U$1 -> 0 | V25: =Data!V24-Calculations!V$1 -> 0 | W25: =Data!W24-Calculations!W$1 -> 0
A26: =IF(Data!A25>0,Data!A25,NA()) -> 383.1262207 | B26: =Data!B25-Calculations!B$1 -> 1.478864016 | C26: =Data!C25-Calculations!C$1 -> 3.002520069 | D26: =Data!D25-Calculations!D$1 -> 2.996324182 | E26: =Data!E25-Calculations!E$1 -> 2.986912035 | F26: =Data!F25-Calculations!F$1 -> 3.006300428 | G26: =Data!G25-Calculations!G$1 -> 2.988304373 | H26: =Data!H25-Calculations!H$1 -> 2.978305636 | I26: =Data!I25-Calculations!I$1 -> 3.003968592 | J26: =Data!J25-Calculations!J$1 -> 3.007511648 | K26: =Data!K25-Calculations!K$1 -> 2.945958447 | L26: =Data!L25-Calculations!L$1 -> 2.914346745 | M26: =Data!M25-Calculations!M$1 -> 0 | N26: =Data!N25-Calculations!N$1 -> 0 | O26: =Data!O25-Calculations!O$1 -> 0 | P26: =Data!P25-Calculations!P$1 -> 0 | Q26: =Data!Q25-Calculations!Q$1 -> 0 | R26: =Data!R25-Calculations!R$1 -> 0 | S26: =Data!S25-Calculations!S$1 -> 0 | T26: =Data!T25-Calculations!T$1 -> 0 | U26: =Data!U25-Calculations!U$1 -> 0 | V26: =Data!V25-Calculations!V$1 -> 0 | W26: =Data!W25-Calculations!W$1 -> 0
A27: =IF(Data!A26>0,Data!A26,NA()) -> 383.470459 | B27: =Data!B26-Calculations!B$1 -> 1.519086713 | C27: =Data!C26-Calculations!C$1 -> 3.002520069 | D27: =Data!D26-Calculations!D$1 -> 2.996324182 | E27: =Data!E26-Calculations!E$1 -> 2.986912035 | F27: =Data!F26-Calculations!F$1 -> 3.006300428 | G27: =Data!G26-Calculations!G$1 -> 2.988304373 | H27: =Data!H26-Calculations!H$1 -> 2.978305636 | I27: =Data!I26-Calculations!I$1 -> 3.003968592 | J27: =Data!J26-Calculations!J$1 -> 3.007511648 | K27: =Data!K26-Calculations!K$1 -> 2.945958447 | L27: =Data!L26-Calculations!L$1 -> 2.914346745 | M27: =Data!M26-Calculations!M$1 -> 0 | N27: =Data!N26-Calculations!N$1 -> 0 | O27: =Data!O26-Calculations!O$1 -> 0 | P27: =Data!P26-Calculations!P$1 -> 0 | Q27: =Data!Q26-Calculations!Q$1 -> 0 | R27: =Data!R26-Calculations!R$1 -> 0 | S27: =Data!S26-Calculations!S$1 -> 0 | T27: =Data!T26-Calculations!T$1 -> 0 | U27: =Data!U26-Calculations!U$1 -> 0 | V27: =Data!V26-Calculations!V$1 -> 0 | W27: =Data!W26-Calculations!W$1 -> 0
A28: =IF(Data!A27>0,Data!A27,NA()) -> 383.8146667 | B28: =Data!B27-Calculations!B$1 -> 1.54025505 | C28: =Data!C27-Calculations!C$1 -> 3.002520069 | D28: =Data!D27-Calculations!D$1 -> 2.996324182 | E28: =Data!E27-Calculations!E$1 -> 2.986912035 | F28: =Data!F27-Calculations!F$1 -> 3.006300428 | G28: =Data!G27-Calculations!G$1 -> 2.988304373 | H28: =Data!H27-Calculations!H$1 -> 2.978305636 | I28: =Data!I27-Calculations!I$1 -> 3.003968592 | J28: =Data!J27-Calculations!J$1 -> 3.007511648 | K28: =Data!K27-Calculations!K$1 -> 2.945958447 | L28: =Data!L27-Calculations!L$1 -> 2.914346745 | M28: =Data!M27-Calculations!M$1 -> 0 | N28: =Data!N27-Calculations!N$1 -> 0 | O28: =Data!O27-Calculations!O$1 -> 0 | P28: =Data!P27-Calculations!P$1 -> 0 | Q28: =Data!Q27-Calculations!Q$1 -> 0 | R28: =Data!R27-Calculations!R$1 -> 0 | S28: =Data!S27-Calculations!S$1 -> 0 | T28: =Data!T27-Calculations!T$1 -> 0 | U28: =Data!U27-Calculations!U$1 -> 0 | V28: =Data!V27-Calculations!V$1 -> 0 | W28: =Data!W27-Calculations!W$1 -> 0
A29: =IF(Data!A28>0,Data!A28,NA()) -> 384.1588745 | B29: =Data!B28-Calculations!B$1 -> 1.537065549 | C29: =Data!C28-Calculations!C$1 -> 3.002520069 | D29: =Data!D28-Calculations!D$1 -> 2.996324182 | E29: =Data!E28-Calculations!E$1 -> 2.986912035 | F29: =Data!F28-Calculations!F$1 -> 3.006300428 | G29: =Data!G28-Calculations!G$1 -> 2.988304373 | H29: =Data!H28-Calculations!H$1 -> 2.978305636 | I29: =Data!I28-Calculations!I$1 -> 3.003968592 | J29: =Data!J28-Calculations!J$1 -> 3.007511648 | K29: =Data!K28-Calculations!K$1 -> 2.945958447 | L29: =Data!L28-Calculations!L$1 -> 2.914346745 | M29: =Data!M28-Calculations!M$1 -> 0 | N29: =Data!N28-Calculations!N$1 -> 0 | O29: =Data!O28-Calculations!O$1 -> 0 | P29: =Data!P28-Calculations!P$1 -> 0 | Q29: =Data!Q28-Calculations!Q$1 -> 0 | R29: =Data!R28-Calculations!R$1 -> 0 | S29: =Data!S28-Calculations!S$1 -> 0 | T29: =Data!T28-Calculations!T$1 -> 0 | U29: =Data!U28-Calculations!U$1 -> 0 | V29: =Data!V28-Calculations!V$1 -> 0 | W29: =Data!W28-Calculations!W$1 -> 0
A30: =IF(Data!A29>0,Data!A29,NA()) -> 384.5029907 | B30: =Data!B29-Calculations!B$1 -> 1.546026586 | C30: =Data!C29-Calculations!C$1 -> 3.002520069 | D30: =Data!D29-Calculations!D$1 -> 2.996324182 | E30: =Data!E29-Calculations!E$1 -> 2.986912035 | F30: =Data!F29-Calculations!F$1 -> 3.006300428 | G30: =Data!G29-Calculations!G$1 -> 2.988304373 | H30: =Data!H29-Calculations!H$1 -> 2.978305636 | I30: =Data!I29-Calculations!I$1 -> 3.003968592 | J30: =Data!J29-Calculations!J$1 -> 3.007511648 | K30: =Data!K29-Calculations!K$1 -> 2.945958447 | L30: =Data!L29-Calculations!L$1 -> 2.914346745 | M30: =Data!M29-Calculations!M$1 -> 0 | N30: =Data!N29-Calculations!N$1 -> 0 | O30: =Data!O29-Calculations!O$1 -> 0 | P30: =Data!P29-Calculations!P$1 -> 0 | Q30: =Data!Q29-Calculations!Q$1 -> 0 | R30: =Data!R29-Calculations!R$1 -> 0 | S30: =Data!S29-Calculations!S$1 -> 0 | T30: =Data!T29-Calculations!T$1 -> 0 | U30: =Data!U29-Calculations!U$1 -> 0 | V30: =Data!V29-Calculations!V$1 -> 0 | W30: =Data!W29-Calculations!W$1 -> 0
A31: =IF(Data!A30>0,Data!A30,NA()) -> 384.8471375 | B31: =Data!B30-Calculations!B$1 -> 1.532050518 | C31: =Data!C30-Calculations!C$1 -> 3.002520069 | D31: =Data!D30-Calculations!D$1 -> 2.996324182 | E31: =Data!E30-Calculations!E$1 -> 2.986912035 | F31: =Data!F30-Calculations!F$1 -> 3.006300428 | G31: =Data!G30-Calculations!G$1 -> 2.988304373 | H31: =Data!H30-Calculations!H$1 -> 2.978305636 | I31: =Data!I30-Calculations!I$1 -> 3.003968592 | J31: =Data!J30-Calculations!J$1 -> 3.007511648 | K31: =Data!K30-Calculations!K$1 -> 2.945958447 | L31: =Data!L30-Calculations!L$1 -> 2.914346745 | M31: =Data!M30-Calculations!M$1 -> 0 | N31: =Data!N30-Calculations!N$1 -> 0 | O31: =Data!O30-Calculations!O$1 -> 0 | P31: =Data!P30-Calculations!P$1 -> 0 | Q31: =Data!Q30-Calculations!Q$1 -> 0 | R31: =Data!R30-Calculations!R$1 -> 0 | S31: =Data!S30-Calculations!S$1 -> 0 | T31: =Data!T30-Calculations!T$1 -> 0 | U31: =Data!U30-Calculations!U$1 -> 0 | V31: =Data!V30-Calculations!V$1 -> 0 | W31: =Data!W30-Calculations!W$1 -> 0
A32: =IF(Data!A31>0,Data!A31,NA()) -> 385.1911926 | B32: =Data!B31-Calculations!B$1 -> 1.549331218 | C32: =Data!C31-Calculations!C$1 -> 3.002520069 | D32: =Data!D31-Calculations!D$1 -> 2.996324182 | E32: =Data!E31-Calculations!E$1 -> 2.986912035 | F32: =Data!F31-Calculations!F$1 -> 3.006300428 | G32: =Data!G31-Calculations!G$1 -> 2.988304373 | H32: =Data!H31-Calculations!H$1 -> 2.978305636 | I32: =Data!I31-Calculations!I$1 -> 3.003968592 | J32: =Data!J31-Calculations!J$1 -> 3.007511648 | K32: =Data!K31-Calculations!K$1 -> 2.945958447 | L32: =Data!L31-Calculations!L$1 -> 2.914346745 | M32: =Data!M31-Calculations!M$1 -> 0 | N32: =Data!N31-Calculations!N$1 -> 0 | O32: =Data!O31-Calculations!O$1 -> 0 | P32: =Data!P31-Calculations!P$1 -> 0 | Q32: =Data!Q31-Calculations!Q$1 -> 0 | R32: =Data!R31-Calculations!R$1 -> 0 | S32: =Data!S31-Calculations!S$1 -> 0 | T32: =Data!T31-Calculations!T$1 -> 0 | U32: =Data!U31-Calculations!U$1 -> 0 | V32: =Data!V31-Calculations!V$1 -> 0 | W32: =Data!W31-Calculations!W$1 -> 0
A33: =IF(Data!A32>0,Data!A32,NA()) -> 385.5352478 | B33: =Data!B32-Calculations!B$1 -> 1.578721701 | C33: =Data!C32-Calculations!C$1 -> 3.002520069 | D33: =Data!D32-Calculations!D$1 -> 2.996324182 | E33: =Data!E32-Calculations!E$1 -> 2.986912035 | F33: =Data!F32-Calculations!F$1 -> 3.006300428 | G33: =Data!G32-Calculations!G$1 -> 2.988304373 | H33: =Data!H32-Calculations!H$1 -> 2.978305636 | I33: =Data!I32-Calculations!I$1 -> 3.003968592 | J33: =Data!J32-Calculations!J$1 -> 3.007511648 | K33: =Data!K32-Calculations!K$1 -> 2.945958447 | L33: =Data!L32-Calculations!L$1 -> 2.914346745 | M33: =Data!M32-Calculations!M$1 -> 0 | N33: =Data!N32-Calculations!N$1 -> 0 | O33: =Data!O32-Calculations!O$1 -> 0 | P33: =Data!P32-Calculations!P$1 -> 0 | Q33: =Data!Q32-Calculations!Q$1 -> 0 | R33: =Data!R32-Calculations!R$1 -> 0 | S33: =Data!S32-Calculations!S$1 -> 0 | T33: =Data!T32-Calculations!T$1 -> 0 | U33: =Data!U32-Calculations!U$1 -> 0 | V33: =Data!V32-Calculations!V$1 -> 0 | W33: =Data!W32-Calculations!W$1 -> 0
A34: =IF(Data!A33>0,Data!A33,NA()) -> 385.8792725 | B34: =Data!B33-Calculations!B$1 -> 1.666431258 | C34: =Data!C33-Calculations!C$1 -> 3.002520069 | D34: =Data!D33-Calculations!D$1 -> 2.996324182 | E34: =Data!E33-Calculations!E$1 -> 2.986912035 | F34: =Data!F33-Calculations!F$1 -> 3.006300428 | G34: =Data!G33-Calculations!G$1 -> 2.988304373 | H34: =Data!H33-Calculations!H$1 -> 2.978305636 | I34: =Data!I33-Calculations!I$1 -> 3.003968592 | J34: =Data!J33-Calculations!J$1 -> 3.007511648 | K34: =Data!K33-Calculations!K$1 -> 2.945958447 | L34: =Data!L33-Calculations!L$1 -> 2.914346745 | M34: =Data!M33-Calculations!M$1 -> 0 | N34: =Data!N33-Calculations!N$1 -> 0 | O34: =Data!O33-Calculations!O$1 -> 0 | P34: =Data!P33-Calculations!P$1 -> 0 | Q34: =Data!Q33-Calculations!Q$1 -> 0 | R34: =Data!R33-Calculations!R$1 -> 0 | S34: =Data!S33-Calculations!S$1 -> 0 | T34: =Data!T33-Calculations!T$1 -> 0 | U34: =Data!U33-Calculations!U$1 -> 0 | V34: =Data!V33-Calculations!V$1 -> 0 | W34: =Data!W33-Calculations!W$1 -> 0
A35: =IF(Data!A34>0,Data!A34,NA()) -> 386.2232666 | B35: =Data!B34-Calculations!B$1 -> 1.718789285 | C35: =Data!C34-Calculations!C$1 -> 3.002520069 | D35: =Data!D34-Calculations!D$1 -> 2.996324182 | E35: =Data!E34-Calculations!E$1 -> 2.986912035 | F35: =Data!F34-Calculations!F$1 -> 3.006300428 | G35: =Data!G34-Calculations!G$1 -> 2.988304373 | H35: =Data!H34-Calculations!H$1 -> 2.978305636 | I35: =Data!I34-Calculations!I$1 -> 3.003968592 | J35: =Data!J34-Calculations!J$1 -> 3.007511648 | K35: =Data!K34-Calculations!K$1 -> 2.945958447 | L35: =Data!L34-Calculations!L$1 -> 2.914346745 | M35: =Data!M34-Calculations!M$1 -> 0 | N35: =Data!N34-Calculations!N$1 -> 0 | O35: =Data!O34-Calculations!O$1 -> 0 | P35: =Data!P34-Calculations!P$1 -> 0 | Q35: =Data!Q34-Calculations!Q$1 -> 0 | R35: =Data!R34-Calculations!R$1 -> 0 | S35: =Data!S34-Calculations!S$1 -> 0 | T35: =Data!T34-Calculations!T$1 -> 0 | U35: =Data!U34-Calculations!U$1 -> 0 | V35: =Data!V34-Calculations!V$1 -> 0 | W35: =Data!W34-Calculations!W$1 -> 0
A36: =IF(Data!A35>0,Data!A35,NA()) -> 386.5671997 | B36: =Data!B35-Calculations!B$1 -> 1.709452347 | C36: =Data!C35-Calculations!C$1 -> 3.002520069 | D36: =Data!D35-Calculations!D$1 -> 2.996324182 | E36: =Data!E35-Calculations!E$1 -> 2.986912035 | F36: =Data!F35-Calculations!F$1 -> 3.006300428 | G36: =Data!G35-Calculations!G$1 -> 2.988304373 | H36: =Data!H35-Calculations!H$1 -> 2.978305636 | I36: =Data!I35-Calculations!I$1 -> 3.003968592 | J36: =Data!J35-Calculations!J$1 -> 3.007511648 | K36: =Data!K35-Calculations!K$1 -> 2.945958447 | L36: =Data!L35-Calculations!L$1 -> 2.914346745 | M36: =Data!M35-Calculations!M$1 -> 0 | N36: =Data!N35-Calculations!N$1 -> 0 | O36: =Data!O35-Calculations!O$1 -> 0 | P36: =Data!P35-Calculations!P$1 -> 0 | Q36: =Data!Q35-Calculations!Q$1 -> 0 | R36: =Data!R35-Calculations!R$1 -> 0 | S36: =Data!S35-Calculations!S$1 -> 0 | T36: =Data!T35-Calculations!T$1 -> 0 | U36: =Data!U35-Calculations!U$1 -> 0 | V36: =Data!V35-Calculations!V$1 -> 0 | W36: =Data!W35-Calculations!W$1 -> 0
A37: =IF(Data!A36>0,Data!A36,NA()) -> 386.9111633 | B37: =Data!B36-Calculations!B$1 -> 1.719856563 | C37: =Data!C36-Calculations!C$1 -> 3.002520069 | D37: =Data!D36-Calculations!D$1 -> 2.996324182 | E37: =Data!E36-Calculations!E$1 -> 2.986912035 | F37: =Data!F36-Calculations!F$1 -> 3.006300428 | G37: =Data!G36-Calculations!G$1 -> 2.988304373 | H37: =Data!H36-Calculations!H$1 -> 2.978305636 | I37: =Data!I36-Calculations!I$1 -> 3.003968592 | J37: =Data!J36-Calculations!J$1 -> 3.007511648 | K37: =Data!K36-Calculations!K$1 -> 2.945958447 | L37: =Data!L36-Calculations!L$1 -> 2.914346745 | M37: =Data!M36-Calculations!M$1 -> 0 | N37: =Data!N36-Calculations!N$1 -> 0 | O37: =Data!O36-Calculations!O$1 -> 0 | P37: =Data!P36-Calculations!P$1 -> 0 | Q37: =Data!Q36-Calculations!Q$1 -> 0 | R37: =Data!R36-Calculations!R$1 -> 0 | S37: =Data!S36-Calculations!S$1 -> 0 | T37: =Data!T36-Calculations!T$1 -> 0 | U37: =Data!U36-Calculations!U$1 -> 0 | V37: =Data!V36-Calculations!V$1 -> 0 | W37: =Data!W36-Calculations!W$1 -> 0
A38: =IF(Data!A37>0,Data!A37,NA()) -> 387.2550049 | B38: =Data!B37-Calculations!B$1 -> 1.668199285 | C38: =Data!C37-Calculations!C$1 -> 3.002520069 | D38: =Data!D37-Calculations!D$1 -> 2.996324182 | E38: =Data!E37-Calculations!E$1 -> 2.986912035 | F38: =Data!F37-Calculations!F$1 -> 3.006300428 | G38: =Data!G37-Calculations!G$1 -> 2.988304373 | H38: =Data!H37-Calculations!H$1 -> 2.978305636 | I38: =Data!I37-Calculations!I$1 -> 3.003968592 | J38: =Data!J37-Calculations!J$1 -> 3.007511648 | K38: =Data!K37-Calculations!K$1 -> 2.945958447 | L38: =Data!L37-Calculations!L$1 -> 2.914346745 | M38: =Data!M37-Calculations!M$1 -> 0 | N38: =Data!N37-Calculations!N$1 -> 0 | O38: =Data!O37-Calculations!O$1 -> 0 | P38: =Data!P37-Calculations!P$1 -> 0 | Q38: =Data!Q37-Calculations!Q$1 -> 0 | R38: =Data!R37-Calculations!R$1 -> 0 | S38: =Data!S37-Calculations!S$1 -> 0 | T38: =Data!T37-Calculations!T$1 -> 0 | U38: =Data!U37-Calculations!U$1 -> 0 | V38: =Data!V37-Calculations!V$1 -> 0 | W38: =Data!W37-Calculations!W$1 -> 0
A39: =IF(Data!A38>0,Data!A38,NA()) -> 387.598877 | B39: =Data!B38-Calculations!B$1 -> 1.693535247 | C39: =Data!C38-Calculations!C$1 -> 3.002520069 | D39: =Data!D38-Calculations!D$1 -> 2.996324182 | E39: =Data!E38-Calculations!E$1 -> 2.986912035 | F39: =Data!F38-Calculations!F$1 -> 3.006300428 | G39: =Data!G38-Calculations!G$1 -> 2.988304373 | H39: =Data!H38-Calculations!H$1 -> 2.978305636 | I39: =Data!I38-Calculations!I$1 -> 3.003968592 | J39: =Data!J38-Calculations!J$1 -> 3.007511648 | K39: =Data!K38-Calculations!K$1 -> 2.945958447 | L39: =Data!L38-Calculations!L$1 -> 2.914346745 | M39: =Data!M38-Calculations!M$1 -> 0 | N39: =Data!N38-Calculations!N$1 -> 0 | O39: =Data!O38-Calculations!O$1 -> 0 | P39: =Data!P38-Calculations!P$1 -> 0 | Q39: =Data!Q38-Calculations!Q$1 -> 0 | R39: =Data!R38-Calculations!R$1 -> 0 | S39: =Data!S38-Calculations!S$1 -> 0 | T39: =Data!T38-Calculations!T$1 -> 0 | U39: =Data!U38-Calculations!U$1 -> 0 | V39: =Data!V38-Calculations!V$1 -> 0 | W39: =Data!W38-Calculations!W$1 -> 0
A40: =IF(Data!A39>0,Data!A39,NA()) -> 387.9426575 | B40: =Data!B39-Calculations!B$1 -> 1.69890451 | C40: =Data!C39-Calculations!C$1 -> 3.002520069 | D40: =Data!D39-Calculations!D$1 -> 2.996324182 | E40: =Data!E39-Calculations!E$1 -> 2.986912035 | F40: =Data!F39-Calculations!F$1 -> 3.006300428 | G40: =Data!G39-Calculations!G$1 -> 2.988304373 | H40: =Data!H39-Calculations!H$1 -> 2.978305636 | I40: =Data!I39-Calculations!I$1 -> 3.003968592 | J40: =Data!J39-Calculations!J$1 -> 3.007511648 | K40: =Data!K39-Calculations!K$1 -> 2.945958447 | L40: =Data!L39-Calculations!L$1 -> 2.914346745 | M40: =Data!M39-Calculations!M$1 -> 0 | N40: =Data!N39-Calculations!N$1 -> 0 | O40: =Data!O39-Calculations!O$1 -> 0 | P40: =Data!P39-Calculations!P$1 -> 0 | Q40: =Data!Q39-Calculations!Q$1 -> 0 | R40: =Data!R39-Calculations!R$1 -> 0 | S40: =Data!S39-Calculations!S$1 -> 0 | T40: =Data!T39-Calculations!T$1 -> 0 | U40: =Data!U39-Calculations!U$1 -> 0 | V40: =Data!V39-Calculations!V$1 -> 0 | W40: =Data!W39-Calculations!W$1 -> 0
A41: =IF(Data!A40>0,Data!A40,NA()) -> 388.286499 | B41: =Data!B40-Calculations!B$1 -> 1.787862966 | C41: =Data!C40-Calculations!C$1 -> 3.002520069 | D41: =Data!D40-Calculations!D$1 -> 2.996324182 | E41: =Data!E40-Calculations!E$1 -> 2.986912035 | F41: =Data!F40-Calculations!F$1 -> 3.006300428 | G41: =Data!G40-Calculations!G$1 -> 2.988304373 | H41: =Data!H40-Calculations!H$1 -> 2.978305636 | I41: =Data!I40-Calculations!I$1 -> 3.003968592 | J41: =Data!J40-Calculations!J$1 -> 3.007511648 | K41: =Data!K40-Calculations!K$1 -> 2.945958447 | L41: =Data!L40-Calculations!L$1 -> 2.914346745 | M41: =Data!M40-Calculations!M$1 -> 0 | N41: =Data!N40-Calculations!N$1 -> 0 | O41: =Data!O40-Calculations!O$1 -> 0 | P41: =Data!P40-Calculations!P$1 -> 0 | Q41: =Data!Q40-Calculations!Q$1 -> 0 | R41: =Data!R40-Calculations!R$1 -> 0 | S41: =Data!S40-Calculations!S$1 -> 0 | T41: =Data!T40-Calculations!T$1 -> 0 | U41: =Data!U40-Calculations!U$1 -> 0 | V41: =Data!V40-Calculations!V$1 -> 0 | W41: =Data!W40-Calculations!W$1 -> 0
A42: =IF(Data!A41>0,Data!A41,NA()) -> 388.630249 | B42: =Data!B41-Calculations!B$1 -> 1.815798272 | C42: =Data!C41-Calculations!C$1 -> 3.002520069 | D42: =Data!D41-Calculations!D$1 -> 2.996324182 | E42: =Data!E41-Calculations!E$1 -> 2.986912035 | F42: =Data!F41-Calculations!F$1 -> 3.006300428 | G42: =Data!G41-Calculations!G$1 -> 2.988304373 | H42: =Data!H41-Calculations!H$1 -> 2.978305636 | I42: =Data!I41-Calculations!I$1 -> 3.003968592 | J42: =Data!J41-Calculations!J$1 -> 3.007511648 | K42: =Data!K41-Calculations!K$1 -> 2.945958447 | L42: =Data!L41-Calculations!L$1 -> 2.914346745 | M42: =Data!M41-Calculations!M$1 -> 0 | N42: =Data!N41-Calculations!N$1 -> 0 | O42: =Data!O41-Calculations!O$1 -> 0 | P42: =Data!P41-Calculations!P$1 -> 0 | Q42: =Data!Q41-Calculations!Q$1 -> 0 | R42: =Data!R41-Calculations!R$1 -> 0 | S42: =Data!S41-Calculations!S$1 -> 0 | T42: =Data!T41-Calculations!T$1 -> 0 | U42: =Data!U41-Calculations!U$1 -> 0 | V42: =Data!V41-Calculations!V$1 -> 0 | W42: =Data!W41-Calculations!W$1 -> 0
A43: =IF(Data!A42>0,Data!A42,NA()) -> 388.9739685 | B43: =Data!B42-Calculations!B$1 -> 1.806345384 | C43: =Data!C42-Calculations!C$1 -> 3.002520069 | D43: =Data!D42-Calculations!D$1 -> 2.996324182 | E43: =Data!E42-Calculations!E$1 -> 2.986912035 | F43: =Data!F42-Calculations!F$1 -> 3.006300428 | G43: =Data!G42-Calculations!G$1 -> 2.988304373 | H43: =Data!H42-Calculations!H$1 -> 2.978305636 | I43: =Data!I42-Calculations!I$1 -> 3.003968592 | J43: =Data!J42-Calculations!J$1 -> 3.007511648 | K43: =Data!K42-Calculations!K$1 -> 2.945958447 | L43: =Data!L42-Calculations!L$1 -> 2.914346745 | M43: =Data!M42-Calculations!M$1 -> 0 | N43: =Data!N42-Calculations!N$1 -> 0 | O43: =Data!O42-Calculations!O$1 -> 0 | P43: =Data!P42-Calculations!P$1 -> 0 | Q43: =Data!Q42-Calculations!Q$1 -> 0 | R43: =Data!R42-Calculations!R$1 -> 0 | S43: =Data!S42-Calculations!S$1 -> 0 | T43: =Data!T42-Calculations!T$1 -> 0 | U43: =Data!U42-Calculations!U$1 -> 0 | V43: =Data!V42-Calculations!V$1 -> 0 | W43: =Data!W42-Calculations!W$1 -> 0
A44: =IF(Data!A43>0,Data!A43,NA()) -> 389.3176575 | B44: =Data!B43-Calculations!B$1 -> 1.83159527 | C44: =Data!C43-Calculations!C$1 -> 3.002520069 | D44: =Data!D43-Calculations!D$1 -> 2.996324182 | E44: =Data!E43-Calculations!E$1 -> 2.986912035 | F44: =Data!F43-Calculations!F$1 -> 3.006300428 | G44: =Data!G43-Calculations!G$1 -> 2.988304373 | H44: =Data!H43-Calculations!H$1 -> 2.978305636 | I44: =Data!I43-Calculations!I$1 -> 3.003968592 | J44: =Data!J43-Calculations!J$1 -> 3.007511648 | K44: =Data!K43-Calculations!K$1 -> 2.945958447 | L44: =Data!L43-Calculations!L$1 -> 2.914346745 | M44: =Data!M43-Calculations!M$1 -> 0 | N44: =Data!N43-Calculations!N$1 -> 0 | O44: =Data!O43-Calculations!O$1 -> 0 | P44: =Data!P43-Calculations!P$1 -> 0 | Q44: =Data!Q43-Calculations!Q$1 -> 0 | R44: =Data!R43-Calculations!R$1 -> 0 | S44: =Data!S43-Calculations!S$1 -> 0 | T44: =Data!T43-Calculations!T$1 -> 0 | U44: =Data!U43-Calculations!U$1 -> 0 | V44: =Data!V43-Calculations!V$1 -> 0 | W44: =Data!W43-Calculations!W$1 -> 0
A45: =IF(Data!A44>0,Data!A44,NA()) -> 389.6613464 | B45: =Data!B44-Calculations!B$1 -> 1.82879675 | C45: =Data!C44-Calculations!C$1 -> 3.002520069 | D45: =Data!D44-Calculations!D$1 -> 2.996324182 | E45: =Data!E44-Calculations!E$1 -> 2.986912035 | F45: =Data!F44-Calculations!F$1 -> 3.006300428 | G45: =Data!G44-Calculations!G$1 -> 2.988304373 | H45: =Data!H44-Calculations!H$1 -> 2.978305636 | I45: =Data!I44-Calculations!I$1 -> 3.003968592 | J45: =Data!J44-Calculations!J$1 -> 3.007511648 | K45: =Data!K44-Calculations!K$1 -> 2.945958447 | L45: =Data!L44-Calculations!L$1 -> 2.914346745 | M45: =Data!M44-Calculations!M$1 -> 0 | N45: =Data!N44-Calculations!N$1 -> 0 | O45: =Data!O44-Calculations!O$1 -> 0 | P45: =Data!P44-Calculations!P$1 -> 0 | Q45: =Data!Q44-Calculations!Q$1 -> 0 | R45: =Data!R44-Calculations!R$1 -> 0 | S45: =Data!S44-Calculations!S$1 -> 0 | T45: =Data!T44-Calculations!T$1 -> 0 | U45: =Data!U44-Calculations!U$1 -> 0 | V45: =Data!V44-Calculations!V$1 -> 0 | W45: =Data!W44-Calculations!W$1 -> 0
A46: =IF(Data!A45>0,Data!A45,NA()) -> 390.0049744 | B46: =Data!B45-Calculations!B$1 -> 1.868123779 | C46: =Data!C45-Calculations!C$1 -> 3.002520069 | D46: =Data!D45-Calculations!D$1 -> 2.996324182 | E46: =Data!E45-Calculations!E$1 -> 2.986912035 | F46: =Data!F45-Calculations!F$1 -> 3.006300428 | G46: =Data!G45-Calculations!G$1 -> 2.988304373 | H46: =Data!H45-Calculations!H$1 -> 2.978305636 | I46: =Data!I45-Calculations!I$1 -> 3.003968592 | J46: =Data!J45-Calculations!J$1 -> 3.007511648 | K46: =Data!K45-Calculations!K$1 -> 2.945958447 | L46: =Data!L45-Calculations!L$1 -> 2.914346745 | M46: =Data!M45-Calculations!M$1 -> 0 | N46: =Data!N45-Calculations!N$1 -> 0 | O46: =Data!O45-Calculations!O$1 -> 0 | P46: =Data!P45-Calculations!P$1 -> 0 | Q46: =Data!Q45-Calculations!Q$1 -> 0 | R46: =Data!R45-Calculations!R$1 -> 0 | S46: =Data!S45-Calculations!S$1 -> 0 | T46: =Data!T45-Calculations!T$1 -> 0 | U46: =Data!U45-Calculations!U$1 -> 0 | V46: =Data!V45-Calculations!V$1 -> 0 | W46: =Data!W45-Calculations!W$1 -> 0
A47: =IF(Data!A46>0,Data!A46,NA()) -> 390.3485413 | B47: =Data!B46-Calculations!B$1 -> 1.837887397 | C47: =Data!C46-Calculations!C$1 -> 3.002520069 | D47: =Data!D46-Calculations!D$1 -> 2.996324182 | E47: =Data!E46-Calculations!E$1 -> 2.986912035 | F47: =Data!F46-Calculations!F$1 -> 3.006300428 | G47: =Data!G46-Calculations!G$1 -> 2.988304373 | H47: =Data!H46-Calculations!H$1 -> 2.978305636 | I47: =Data!I46-Calculations!I$1 -> 3.003968592 | J47: =Data!J46-Calculations!J$1 -> 3.007511648 | K47: =Data!K46-Calculations!K$1 -> 2.945958447 | L47: =Data!L46-Calculations!L$1 -> 2.914346745 | M47: =Data!M46-Calculations!M$1 -> 0 | N47: =Data!N46-Calculations!N$1 -> 0 | O47: =Data!O46-Calculations!O$1 -> 0 | P47: =Data!P46-Calculations!P$1 -> 0 | Q47: =Data!Q46-Calculations!Q$1 -> 0 | R47: =Data!R46-Calculations!R$1 -> 0 | S47: =Data!S46-Calculations!S$1 -> 0 | T47: =Data!T46-Calculations!T$1 -> 0 | U47: =Data!U46-Calculations!U$1 -> 0 | V47: =Data!V46-Calculations!V$1 -> 0 | W47: =Data!W46-Calculations!W$1 -> 0
A48: =IF(Data!A47>0,Data!A47,NA()) -> 390.6921082 | B48: =Data!B47-Calculations!B$1 -> 1.836211829 | C48: =Data!C47-Calculations!C$1 -> 3.002520069 | D48: =Data!D47-Calculations!D$1 -> 2.996324182 | E48: =Data!E47-Calculations!E$1 -> 2.986912035 | F48: =Data!F47-Calculations!F$1 -> 3.006300428 | G48: =Data!G47-Calculations!G$1 -> 2.988304373 | H48: =Data!H47-Calculations!H$1 -> 2.978305636 | I48: =Data!I47-Calculations!I$1 -> 3.003968592 | J48: =Data!J47-Calculations!J$1 -> 3.007511648 | K48: =Data!K47-Calculations!K$1 -> 2.945958447 | L48: =Data!L47-Calculations!L$1 -> 2.914346745 | M48: =Data!M47-Calculations!M$1 -> 0 | N48: =Data!N47-Calculations!N$1 -> 0 | O48: =Data!O47-Calculations!O$1 -> 0 | P48: =Data!P47-Calculations!P$1 -> 0 | Q48: =Data!Q47-Calculations!Q$1 -> 0 | R48: =Data!R47-Calculations!R$1 -> 0 | S48: =Data!S47-Calculations!S$1 -> 0 | T48: =Data!T47-Calculations!T$1 -> 0 | U48: =Data!U47-Calculations!U$1 -> 0 | V48: =Data!V47-Calculations!V$1 -> 0 | W48: =Data!W47-Calculations!W$1 -> 0
A49: =IF(Data!A48>0,Data!A48,NA()) -> 391.0356445 | B49: =Data!B48-Calculations!B$1 -> 1.857352328 | C49: =Data!C48-Calculations!C$1 -> 3.002520069 | D49: =Data!D48-Calculations!D$1 -> 2.996324182 | E49: =Data!E48-Calculations!E$1 -> 2.986912035 | F49: =Data!F48-Calculations!F$1 -> 3.006300428 | G49: =Data!G48-Calculations!G$1 -> 2.988304373 | H49: =Data!H48-Calculations!H$1 -> 2.978305636 | I49: =Data!I48-Calculations!I$1 -> 3.003968592 | J49: =Data!J48-Calculations!J$1 -> 3.007511648 | K49: =Data!K48-Calculations!K$1 -> 2.945958447 | L49: =Data!L48-Calculations!L$1 -> 2.914346745 | M49: =Data!M48-Calculations!M$1 -> 0 | N49: =Data!N48-Calculations!N$1 -> 0 | O49: =Data!O48-Calculations!O$1 -> 0 | P49: =Data!P48-Calculations!P$1 -> 0 | Q49: =Data!Q48-Calculations!Q$1 -> 0 | R49: =Data!R48-Calculations!R$1 -> 0 | S49: =Data!S48-Calculations!S$1 -> 0 | T49: =Data!T48-Calculations!T$1 -> 0 | U49: =Data!U48-Calculations!U$1 -> 0 | V49: =Data!V48-Calculations!V$1 -> 0 | W49: =Data!W48-Calculations!W$1 -> 0
A50: =IF(Data!A49>0,Data!A49,NA()) -> 391.3791504 | B50: =Data!B49-Calculations!B$1 -> 1.81774791 | C50: =Data!C49-Calculations!C$1 -> 3.002520069 | D50: =Data!D49-Calculations!D$1 -> 2.996324182 | E50: =Data!E49-Calculations!E$1 -> 2.986912035 | F50: =Data!F49-Calculations!F$1 -> 3.006300428 | G50: =Data!G49-Calculations!G$1 -> 2.988304373 | H50: =Data!H49-Calculations!H$1 -> 2.978305636 | I50: =Data!I49-Calculations!I$1 -> 3.003968592 | J50: =Data!J49-Calculations!J$1 -> 3.007511648 | K50: =Data!K49-Calculations!K$1 -> 2.945958447 | L50: =Data!L49-Calculations!L$1 -> 2.914346745 | M50: =Data!M49-Calculations!M$1 -> 0 | N50: =Data!N49-Calculations!N$1 -> 0 | O50: =Data!O49-Calculations!O$1 -> 0 | P50: =Data!P49-Calculations!P$1 -> 0 | Q50: =Data!Q49-Calculations!Q$1 -> 0 | R50: =Data!R49-Calculations!R$1 -> 0 | S50: =Data!S49-Calculations!S$1 -> 0 | T50: =Data!T49-Calculations!T$1 -> 0 | U50: =Data!U49-Calculations!U$1 -> 0 | V50: =Data!V49-Calculations!V$1 -> 0 | W50: =Data!W49-Calculations!W$1 -> 0
A51: =IF(Data!A50>0,Data!A50,NA()) -> 391.7225952 | B51: =Data!B50-Calculations!B$1 -> 1.867710902 | C51: =Data!C50-Calculations!C$1 -> 3.002520069 | D51: =Data!D50-Calculations!D$1 -> 2.996324182 | E51: =Data!E50-Calculations!E$1 -> 2.986912035 | F51: =Data!F50-Calculations!F$1 -> 3.006300428 | G51: =Data!G50-Calculations!G$1 -> 2.988304373 | H51: =Data!H50-Calculations!H$1 -> 2.978305636 | I51: =Data!I50-Calculations!I$1 -> 3.003968592 | J51: =Data!J50-Calculations!J$1 -> 3.007511648 | K51: =Data!K50-Calculations!K$1 -> 2.945958447 | L51: =Data!L50-Calculations!L$1 -> 2.914346745 | M51: =Data!M50-Calculations!M$1 -> 0 | N51: =Data!N50-Calculations!N$1 -> 0 | O51: =Data!O50-Calculations!O$1 -> 0 | P51: =Data!P50-Calculations!P$1 -> 0 | Q51: =Data!Q50-Calculations!Q$1 -> 0 | R51: =Data!R50-Calculations!R$1 -> 0 | S51: =Data!S50-Calculations!S$1 -> 0 | T51: =Data!T50-Calculations!T$1 -> 0 | U51: =Data!U50-Calculations!U$1 -> 0 | V51: =Data!V50-Calculations!V$1 -> 0 | W51: =Data!W50-Calculations!W$1 -> 0
A52: =IF(Data!A51>0,Data!A51,NA()) -> 392.06604 | B52: =Data!B51-Calculations!B$1 -> 1.846641934 | C52: =Data!C51-Calculations!C$1 -> 3.002520069 | D52: =Data!D51-Calculations!D$1 -> 2.996324182 | E52: =Data!E51-Calculations!E$1 -> 2.986912035 | F52: =Data!F51-Calculations!F$1 -> 3.006300428 | G52: =Data!G51-Calculations!G$1 -> 2.988304373 | H52: =Data!H51-Calculations!H$1 -> 2.978305636 | I52: =Data!I51-Calculations!I$1 -> 3.003968592 | J52: =Data!J51-Calculations!J$1 -> 3.007511648 | K52: =Data!K51-Calculations!K$1 -> 2.945958447 | L52: =Data!L51-Calculations!L$1 -> 2.914346745 | M52: =Data!M51-Calculations!M$1 -> 0 | N52: =Data!N51-Calculations!N$1 -> 0 | O52: =Data!O51-Calculations!O$1 -> 0 | P52: =Data!P51-Calculations!P$1 -> 0 | Q52: =Data!Q51-Calculations!Q$1 -> 0 | R52: =Data!R51-Calculations!R$1 -> 0 | S52: =Data!S51-Calculations!S$1 -> 0 | T52: =Data!T51-Calculations!T$1 -> 0 | U52: =Data!U51-Calculations!U$1 -> 0 | V52: =Data!V51-Calculations!V$1 -> 0 | W52: =Data!W51-Calculations!W$1 -> 0
A53: =IF(Data!A52>0,Data!A52,NA()) -> 392.4094543 | B53: =Data!B52-Calculations!B$1 -> 1.912321881 | C53: =Data!C52-Calculations!C$1 -> 3.002520069 | D53: =Data!D52-Calculations!D$1 -> 2.996324182 | E53: =Data!E52-Calculations!E$1 -> 2.986912035 | F53: =Data!F52-Calculations!F$1 -> 3.006300428 | G53: =Data!G52-Calculations!G$1 -> 2.988304373 | H53: =Data!H52-Calculations!H$1 -> 2.978305636 | I53: =Data!I52-Calculations!I$1 -> 3.003968592 | J53: =Data!J52-Calculations!J$1 -> 3.007511648 | K53: =Data!K52-Calculations!K$1 -> 2.945958447 | L53: =Data!L52-Calculations!L$1 -> 2.914346745 | M53: =Data!M52-Calculations!M$1 -> 0 | N53: =Data!N52-Calculations!N$1 -> 0 | O53: =Data!O52-Calculations!O$1 -> 0 | P53: =Data!P52-Calculations!P$1 -> 0 | Q53: =Data!Q52-Calculations!Q$1 -> 0 | R53: =Data!R52-Calculations!R$1 -> 0 | S53: =Data!S52-Calculations!S$1 -> 0 | T53: =Data!T52-Calculations!T$1 -> 0 | U53: =Data!U52-Calculations!U$1 -> 0 | V53: =Data!V52-Calculations!V$1 -> 0 | W53: =Data!W52-Calculations!W$1 -> 0
A54: =IF(Data!A53>0,Data!A53,NA()) -> 392.7528076 | B54: =Data!B53-Calculations!B$1 -> 1.912370314 | C54: =Data!C53-Calculations!C$1 -> 3.905862624 | D54: =Data!D53-Calculations!D$1 -> 2.996324182 | E54: =Data!E53-Calculations!E$1 -> 2.986912035 | F54: =Data!F53-Calculations!F$1 -> 3.006300428 | G54: =Data!G53-Calculations!G$1 -> 2.988304373 | H54: =Data!H53-Calculations!H$1 -> 2.978305636 | I54: =Data!I53-Calculations!I$1 -> 3.003968592 | J54: =Data!J53-Calculations!J$1 -> 3.007511648 | K54: =Data!K53-Calculations!K$1 -> 2.945958447 | L54: =Data!L53-Calculations!L$1 -> 2.914346745 | M54: =Data!M53-Calculations!M$1 -> 0 | N54: =Data!N53-Calculations!N$1 -> 0 | O54: =Data!O53-Calculations!O$1 -> 0 | P54: =Data!P53-Calculations!P$1 -> 0 | Q54: =Data!Q53-Calculations!Q$1 -> 0 | R54: =Data!R53-Calculations!R$1 -> 0 | S54: =Data!S53-Calculations!S$1 -> 0 | T54: =Data!T53-Calculations!T$1 -> 0 | U54: =Data!U53-Calculations!U$1 -> 0 | V54: =Data!V53-Calculations!V$1 -> 0 | W54: =Data!W53-Calculations!W$1 -> 0
A55: =IF(Data!A54>0,Data!A54,NA()) -> 393.0961304 | B55: =Data!B54-Calculations!B$1 -> 1.981219289 | C55: =Data!C54-Calculations!C$1 -> 3.002520069 | D55: =Data!D54-Calculations!D$1 -> 2.996324182 | E55: =Data!E54-Calculations!E$1 -> 2.986912035 | F55: =Data!F54-Calculations!F$1 -> 3.006300428 | G55: =Data!G54-Calculations!G$1 -> 2.988304373 | H55: =Data!H54-Calculations!H$1 -> 2.978305636 | I55: =Data!I54-Calculations!I$1 -> 3.003968592 | J55: =Data!J54-Calculations!J$1 -> 3.007511648 | K55: =Data!K54-Calculations!K$1 -> 2.945958447 | L55: =Data!L54-Calculations!L$1 -> 2.914346745 | M55: =Data!M54-Calculations!M$1 -> 0 | N55: =Data!N54-Calculations!N$1 -> 0 | O55: =Data!O54-Calculations!O$1 -> 0 | P55: =Data!P54-Calculations!P$1 -> 0 | Q55: =Data!Q54-Calculations!Q$1 -> 0 | R55: =Data!R54-Calculations!R$1 -> 0 | S55: =Data!S54-Calculations!S$1 -> 0 | T55: =Data!T54-Calculations!T$1 -> 0 | U55: =Data!U54-Calculations!U$1 -> 0 | V55: =Data!V54-Calculations!V$1 -> 0 | W55: =Data!W54-Calculations!W$1 -> 0
A56: =IF(Data!A55>0,Data!A55,NA()) -> 393.4394531 | B56: =Data!B55-Calculations!B$1 -> 1.971815423 | C56: =Data!C55-Calculations!C$1 -> 3.002520069 | D56: =Data!D55-Calculations!D$1 -> 2.996324182 | E56: =Data!E55-Calculations!E$1 -> 2.986912035 | F56: =Data!F55-Calculations!F$1 -> 3.006300428 | G56: =Data!G55-Calculations!G$1 -> 2.988304373 | H56: =Data!H55-Calculations!H$1 -> 2.978305636 | I56: =Data!I55-Calculations!I$1 -> 3.003968592 | J56: =Data!J55-Calculations!J$1 -> 3.007511648 | K56: =Data!K55-Calculations!K$1 -> 2.945958447 | L56: =Data!L55-Calculations!L$1 -> 2.914346745 | M56: =Data!M55-Calculations!M$1 -> 0 | N56: =Data!N55-Calculations!N$1 -> 0 | O56: =Data!O55-Calculations!O$1 -> 0 | P56: =Data!P55-Calculations!P$1 -> 0 | Q56: =Data!Q55-Calculations!Q$1 -> 0 | R56: =Data!R55-Calculations!R$1 -> 0 | S56: =Data!S55-Calculations!S$1 -> 0 | T56: =Data!T55-Calculations!T$1 -> 0 | U56: =Data!U55-Calculations!U$1 -> 0 | V56: =Data!V55-Calculations!V$1 -> 0 | W56: =Data!W55-Calculations!W$1 -> 0
A57: =IF(Data!A56>0,Data!A56,NA()) -> 393.7827148 | B57: =Data!B56-Calculations!B$1 -> 1.951086551 | C57: =Data!C56-Calculations!C$1 -> 3.002520069 | D57: =Data!D56-Calculations!D$1 -> 2.996324182 | E57: =Data!E56-Calculations!E$1 -> 2.986912035 | F57: =Data!F56-Calculations!F$1 -> 3.006300428 | G57: =Data!G56-Calculations!G$1 -> 2.988304373 | H57: =Data!H56-Calculations!H$1 -> 2.978305636 | I57: =Data!I56-Calculations!I$1 -> 3.003968592 | J57: =Data!J56-Calculations!J$1 -> 3.007511648 | K57: =Data!K56-Calculations!K$1 -> 2.945958447 | L57: =Data!L56-Calculations!L$1 -> 2.914346745 | M57: =Data!M56-Calculations!M$1 -> 0 | N57: =Data!N56-Calculations!N$1 -> 0 | O57: =Data!O56-Calculations!O$1 -> 0 | P57: =Data!P56-Calculations!P$1 -> 0 | Q57: =Data!Q56-Calculations!Q$1 -> 0 | R57: =Data!R56-Calculations!R$1 -> 0 | S57: =Data!S56-Calculations!S$1 -> 0 | T57: =Data!T56-Calculations!T$1 -> 0 | U57: =Data!U56-Calculations!U$1 -> 0 | V57: =Data!V56-Calculations!V$1 -> 0 | W57: =Data!W56-Calculations!W$1 -> 0
A58: =IF(Data!A57>0,Data!A57,NA()) -> 394.1259766 | B58: =Data!B57-Calculations!B$1 -> 1.937936779 | C58: =Data!C57-Calculations!C$1 -> 3.8326649 | D58: =Data!D57-Calculations!D$1 -> 2.996324182 | E58: =Data!E57-Calculations!E$1 -> 2.986912035 | F58: =Data!F57-Calculations!F$1 -> 3.006300428 | G58: =Data!G57-Calculations!G$1 -> 2.988304373 | H58: =Data!H57-Calculations!H$1 -> 2.978305636 | I58: =Data!I57-Calculations!I$1 -> 3.003968592 | J58: =Data!J57-Calculations!J$1 -> 3.007511648 | K58: =Data!K57-Calculations!K$1 -> 2.945958447 | L58: =Data!L57-Calculations!L$1 -> 2.914346745 | M58: =Data!M57-Calculations!M$1 -> 0 | N58: =Data!N57-Calculations!N$1 -> 0 | O58: =Data!O57-Calculations!O$1 -> 0 | P58: =Data!P57-Calculations!P$1 -> 0 | Q58: =Data!Q57-Calculations!Q$1 -> 0 | R58: =Data!R57-Calculations!R$1 -> 0 | S58: =Data!S57-Calculations!S$1 -> 0 | T58: =Data!T57-Calculations!T$1 -> 0 | U58: =Data!U57-Calculations!U$1 -> 0 | V58: =Data!V57-Calculations!V$1 -> 0 | W58: =Data!W57-Calculations!W$1 -> 0
A59: =IF(Data!A58>0,Data!A58,NA()) -> 394.4691772 | B59: =Data!B58-Calculations!B$1 -> 1.944013505 | C59: =Data!C58-Calculations!C$1 -> 3.776478516 | D59: =Data!D58-Calculations!D$1 -> 2.996324182 | E59: =Data!E58-Calculations!E$1 -> 2.986912035 | F59: =Data!F58-Calculations!F$1 -> 3.006300428 | G59: =Data!G58-Calculations!G$1 -> 2.988304373 | H59: =Data!H58-Calculations!H$1 -> 2.978305636 | I59: =Data!I58-Calculations!I$1 -> 3.003968592 | J59: =Data!J58-Calculations!J$1 -> 3.007511648 | K59: =Data!K58-Calculations!K$1 -> 2.945958447 | L59: =Data!L58-Calculations!L$1 -> 2.914346745 | M59: =Data!M58-Calculations!M$1 -> 0 | N59: =Data!N58-Calculations!N$1 -> 0 | O59: =Data!O58-Calculations!O$1 -> 0 | P59: =Data!P58-Calculations!P$1 -> 0 | Q59: =Data!Q58-Calculations!Q$1 -> 0 | R59: =Data!R58-Calculations!R$1 -> 0 | S59: =Data!S58-Calculations!S$1 -> 0 | T59: =Data!T58-Calculations!T$1 -> 0 | U59: =Data!U58-Calculations!U$1 -> 0 | V59: =Data!V58-Calculations!V$1 -> 0 | W59: =Data!W58-Calculations!W$1 -> 0
A60: =IF(Data!A59>0,Data!A59,NA()) -> 394.8123474 | B60: =Data!B59-Calculations!B$1 -> 1.946504741 | C60: =Data!C59-Calculations!C$1 -> 2.968138318 | D60: =Data!D59-Calculations!D$1 -> 2.996324182 | E60: =Data!E59-Calculations!E$1 -> 2.986912035 | F60: =Data!F59-Calculations!F$1 -> 3.006300428 | G60: =Data!G59-Calculations!G$1 -> 2.988304373 | H60: =Data!H59-Calculations!H$1 -> 2.978305636 | I60: =Data!I59-Calculations!I$1 -> 3.003968592 | J60: =Data!J59-Calculations!J$1 -> 3.007511648 | K60: =Data!K59-Calculations!K$1 -> 2.945958447 | L60: =Data!L59-Calculations!L$1 -> 2.914346745 | M60: =Data!M59-Calculations!M$1 -> 0 | N60: =Data!N59-Calculations!N$1 -> 0 | O60: =Data!O59-Calculations!O$1 -> 0 | P60: =Data!P59-Calculations!P$1 -> 0 | Q60: =Data!Q59-Calculations!Q$1 -> 0 | R60: =Data!R59-Calculations!R$1 -> 0 | S60: =Data!S59-Calculations!S$1 -> 0 | T60: =Data!T59-Calculations!T$1 -> 0 | U60: =Data!U59-Calculations!U$1 -> 0 | V60: =Data!V59-Calculations!V$1 -> 0 | W60: =Data!W59-Calculations!W$1 -> 0
A61: =IF(Data!A60>0,Data!A60,NA()) -> 395.1554565 | B61: =Data!B60-Calculations!B$1 -> 1.93616247 | C61: =Data!C60-Calculations!C$1 -> 2.711685179 | D61: =Data!D60-Calculations!D$1 -> 2.996324182 | E61: =Data!E60-Calculations!E$1 -> 2.986912035 | F61: =Data!F60-Calculations!F$1 -> 3.006300428 | G61: =Data!G60-Calculations!G$1 -> 2.988304373 | H61: =Data!H60-Calculations!H$1 -> 2.978305636 | I61: =Data!I60-Calculations!I$1 -> 3.003968592 | J61: =Data!J60-Calculations!J$1 -> 3.007511648 | K61: =Data!K60-Calculations!K$1 -> 2.945958447 | L61: =Data!L60-Calculations!L$1 -> 2.914346745 | M61: =Data!M60-Calculations!M$1 -> 0 | N61: =Data!N60-Calculations!N$1 -> 0 | O61: =Data!O60-Calculations!O$1 -> 0 | P61: =Data!P60-Calculations!P$1 -> 0 | Q61: =Data!Q60-Calculations!Q$1 -> 0 | R61: =Data!R60-Calculations!R$1 -> 0 | S61: =Data!S60-Calculations!S$1 -> 0 | T61: =Data!T60-Calculations!T$1 -> 0 | U61: =Data!U60-Calculations!U$1 -> 0 | V61: =Data!V60-Calculations!V$1 -> 0 | W61: =Data!W60-Calculations!W$1 -> 0
A62: =IF(Data!A61>0,Data!A61,NA()) -> 395.4985962 | B62: =Data!B61-Calculations!B$1 -> 1.963484326 | C62: =Data!C61-Calculations!C$1 -> 2.974735158 | D62: =Data!D61-Calculations!D$1 -> 2.996324182 | E62: =Data!E61-Calculations!E$1 -> 2.986912035 | F62: =Data!F61-Calculations!F$1 -> 3.006300428 | G62: =Data!G61-Calculations!G$1 -> 2.988304373 | H62: =Data!H61-Calculations!H$1 -> 2.978305636 | I62: =Data!I61-Calculations!I$1 -> 3.003968592 | J62: =Data!J61-Calculations!J$1 -> 3.007511648 | K62: =Data!K61-Calculations!K$1 -> 2.945958447 | L62: =Data!L61-Calculations!L$1 -> 2.914346745 | M62: =Data!M61-Calculations!M$1 -> 0 | N62: =Data!N61-Calculations!N$1 -> 0 | O62: =Data!O61-Calculations!O$1 -> 0 | P62: =Data!P61-Calculations!P$1 -> 0 | Q62: =Data!Q61-Calculations!Q$1 -> 0 | R62: =Data!R61-Calculations!R$1 -> 0 | S62: =Data!S61-Calculations!S$1 -> 0 | T62: =Data!T61-Calculations!T$1 -> 0 | U62: =Data!U61-Calculations!U$1 -> 0 | V62: =Data!V61-Calculations!V$1 -> 0 | W62: =Data!W61-Calculations!W$1 -> 0
A63: =IF(Data!A62>0,Data!A62,NA()) -> 395.8416443 | B63: =Data!B62-Calculations!B$1 -> 2.009960538 | C63: =Data!C62-Calculations!C$1 -> 3.337569123 | D63: =Data!D62-Calculations!D$1 -> 2.996324182 | E63: =Data!E62-Calculations!E$1 -> 2.986912035 | F63: =Data!F62-Calculations!F$1 -> 3.006300428 | G63: =Data!G62-Calculations!G$1 -> 2.988304373 | H63: =Data!H62-Calculations!H$1 -> 2.978305636 | I63: =Data!I62-Calculations!I$1 -> 3.003968592 | J63: =Data!J62-Calculations!J$1 -> 3.007511648 | K63: =Data!K62-Calculations!K$1 -> 2.945958447 | L63: =Data!L62-Calculations!L$1 -> 2.914346745 | M63: =Data!M62-Calculations!M$1 -> 0 | N63: =Data!N62-Calculations!N$1 -> 0 | O63: =Data!O62-Calculations!O$1 -> 0 | P63: =Data!P62-Calculations!P$1 -> 0 | Q63: =Data!Q62-Calculations!Q$1 -> 0 | R63: =Data!R62-Calculations!R$1 -> 0 | S63: =Data!S62-Calculations!S$1 -> 0 | T63: =Data!T62-Calculations!T$1 -> 0 | U63: =Data!U62-Calculations!U$1 -> 0 | V63: =Data!V62-Calculations!V$1 -> 0 | W63: =Data!W62-Calculations!W$1 -> 0
A64: =IF(Data!A63>0,Data!A63,NA()) -> 396.1847229 | B64: =Data!B63-Calculations!B$1 -> 2.031451193 | C64: =Data!C63-Calculations!C$1 -> 3.002520069 | D64: =Data!D63-Calculations!D$1 -> 2.996324182 | E64: =Data!E63-Calculations!E$1 -> 2.986912035 | F64: =Data!F63-Calculations!F$1 -> 3.006300428 | G64: =Data!G63-Calculations!G$1 -> 2.988304373 | H64: =Data!H63-Calculations!H$1 -> 2.978305636 | I64: =Data!I63-Calculations!I$1 -> 3.003968592 | J64: =Data!J63-Calculations!J$1 -> 3.007511648 | K64: =Data!K63-Calculations!K$1 -> 2.945958447 | L64: =Data!L63-Calculations!L$1 -> 2.914346745 | M64: =Data!M63-Calculations!M$1 -> 0 | N64: =Data!N63-Calculations!N$1 -> 0 | O64: =Data!O63-Calculations!O$1 -> 0 | P64: =Data!P63-Calculations!P$1 -> 0 | Q64: =Data!Q63-Calculations!Q$1 -> 0 | R64: =Data!R63-Calculations!R$1 -> 0 | S64: =Data!S63-Calculations!S$1 -> 0 | T64: =Data!T63-Calculations!T$1 -> 0 | U64: =Data!U63-Calculations!U$1 -> 0 | V64: =Data!V63-Calculations!V$1 -> 0 | W64: =Data!W63-Calculations!W$1 -> 0
A65: =IF(Data!A64>0,Data!A64,NA()) -> 396.5276794 | B65: =Data!B64-Calculations!B$1 -> 2.084259909 | C65: =Data!C64-Calculations!C$1 -> 3.002520069 | D65: =Data!D64-Calculations!D$1 -> 2.996324182 | E65: =Data!E64-Calculations!E$1 -> 2.986912035 | F65: =Data!F64-Calculations!F$1 -> 3.006300428 | G65: =Data!G64-Calculations!G$1 -> 2.988304373 | H65: =Data!H64-Calculations!H$1 -> 2.978305636 | I65: =Data!I64-Calculations!I$1 -> 3.003968592 | J65: =Data!J64-Calculations!J$1 -> 3.007511648 | K65: =Data!K64-Calculations!K$1 -> 2.945958447 | L65: =Data!L64-Calculations!L$1 -> 2.914346745 | M65: =Data!M64-Calculations!M$1 -> 0 | N65: =Data!N64-Calculations!N$1 -> 0 | O65: =Data!O64-Calculations!O$1 -> 0 | P65: =Data!P64-Calculations!P$1 -> 0 | Q65: =Data!Q64-Calculations!Q$1 -> 0 | R65: =Data!R64-Calculations!R$1 -> 0 | S65: =Data!S64-Calculations!S$1 -> 0 | T65: =Data!T64-Calculations!T$1 -> 0 | U65: =Data!U64-Calculations!U$1 -> 0 | V65: =Data!V64-Calculations!V$1 -> 0 | W65: =Data!W64-Calculations!W$1 -> 0
A66: =IF(Data!A65>0,Data!A65,NA()) -> 396.870697 | B66: =Data!B65-Calculations!B$1 -> 2.081585726 | C66: =Data!C65-Calculations!C$1 -> 3.002520069 | D66: =Data!D65-Calculations!D$1 -> 2.996324182 | E66: =Data!E65-Calculations!E$1 -> 2.986912035 | F66: =Data!F65-Calculations!F$1 -> 3.006300428 | G66: =Data!G65-Calculations!G$1 -> 2.988304373 | H66: =Data!H65-Calculations!H$1 -> 2.978305636 | I66: =Data!I65-Calculations!I$1 -> 3.003968592 | J66: =Data!J65-Calculations!J$1 -> 3.007511648 | K66: =Data!K65-Calculations!K$1 -> 2.945958447 | L66: =Data!L65-Calculations!L$1 -> 2.914346745 | M66: =Data!M65-Calculations!M$1 -> 0 | N66: =Data!N65-Calculations!N$1 -> 0 | O66: =Data!O65-Calculations!O$1 -> 0 | P66: =Data!P65-Calculations!P$1 -> 0 | Q66: =Data!Q65-Calculations!Q$1 -> 0 | R66: =Data!R65-Calculations!R$1 -> 0 | S66: =Data!S65-Calculations!S$1 -> 0 | T66: =Data!T65-Calculations!T$1 -> 0 | U66: =Data!U65-Calculations!U$1 -> 0 | V66: =Data!V65-Calculations!V$1 -> 0 | W66: =Data!W65-Calculations!W$1 -> 0
A67: =IF(Data!A66>0,Data!A66,NA()) -> 397.213623 | B67: =Data!B66-Calculations!B$1 -> 1.953849742 | C67: =Data!C66-Calculations!C$1 -> 2.91083597 | D67: =Data!D66-Calculations!D$1 -> 2.996324182 | E67: =Data!E66-Calculations!E$1 -> 2.986912035 | F67: =Data!F66-Calculations!F$1 -> 3.006300428 | G67: =Data!G66-Calculations!G$1 -> 2.988304373 | H67: =Data!H66-Calculations!H$1 -> 2.978305636 | I67: =Data!I66-Calculations!I$1 -> 3.003968592 | J67: =Data!J66-Calculations!J$1 -> 3.007511648 | K67: =Data!K66-Calculations!K$1 -> 2.945958447 | L67: =Data!L66-Calculations!L$1 -> 2.914346745 | M67: =Data!M66-Calculations!M$1 -> 0 | N67: =Data!N66-Calculations!N$1 -> 0 | O67: =Data!O66-Calculations!O$1 -> 0 | P67: =Data!P66-Calculations!P$1 -> 0 | Q67: =Data!Q66-Calculations!Q$1 -> 0 | R67: =Data!R66-Calculations!R$1 -> 0 | S67: =Data!S66-Calculations!S$1 -> 0 | T67: =Data!T66-Calculations!T$1 -> 0 | U67: =Data!U66-Calculations!U$1 -> 0 | V67: =Data!V66-Calculations!V$1 -> 0 | W67: =Data!W66-Calculations!W$1 -> 0
A68: =IF(Data!A67>0,Data!A67,NA()) -> 397.5565491 | B68: =Data!B67-Calculations!B$1 -> 1.859928071 | C68: =Data!C67-Calculations!C$1 -> 2.483968951 | D68: =Data!D67-Calculations!D$1 -> 2.664168667 | E68: =Data!E67-Calculations!E$1 -> 2.986912035 | F68: =Data!F67-Calculations!F$1 -> 3.006300428 | G68: =Data!G67-Calculations!G$1 -> 2.988304373 | H68: =Data!H67-Calculations!H$1 -> 2.978305636 | I68: =Data!I67-Calculations!I$1 -> 3.003968592 | J68: =Data!J67-Calculations!J$1 -> 3.007511648 | K68: =Data!K67-Calculations!K$1 -> 2.945958447 | L68: =Data!L67-Calculations!L$1 -> 2.914346745 | M68: =Data!M67-Calculations!M$1 -> 0 | N68: =Data!N67-Calculations!N$1 -> 0 | O68: =Data!O67-Calculations!O$1 -> 0 | P68: =Data!P67-Calculations!P$1 -> 0 | Q68: =Data!Q67-Calculations!Q$1 -> 0 | R68: =Data!R67-Calculations!R$1 -> 0 | S68: =Data!S67-Calculations!S$1 -> 0 | T68: =Data!T67-Calculations!T$1 -> 0 | U68: =Data!U67-Calculations!U$1 -> 0 | V68: =Data!V67-Calculations!V$1 -> 0 | W68: =Data!W67-Calculations!W$1 -> 0
A69: =IF(Data!A68>0,Data!A68,NA()) -> 397.8993835 | B69: =Data!B68-Calculations!B$1 -> 1.823318259 | C69: =Data!C68-Calculations!C$1 -> 2.395789151 | D69: =Data!D68-Calculations!D$1 -> 2.551490202 | E69: =Data!E68-Calculations!E$1 -> 2.986912035 | F69: =Data!F68-Calculations!F$1 -> 3.006300428 | G69: =Data!G68-Calculations!G$1 -> 2.988304373 | H69: =Data!H68-Calculations!H$1 -> 2.978305636 | I69: =Data!I68-Calculations!I$1 -> 3.003968592 | J69: =Data!J68-Calculations!J$1 -> 3.007511648 | K69: =Data!K68-Calculations!K$1 -> 2.945958447 | L69: =Data!L68-Calculations!L$1 -> 2.914346745 | M69: =Data!M68-Calculations!M$1 -> 0 | N69: =Data!N68-Calculations!N$1 -> 0 | O69: =Data!O68-Calculations!O$1 -> 0 | P69: =Data!P68-Calculations!P$1 -> 0 | Q69: =Data!Q68-Calculations!Q$1 -> 0 | R69: =Data!R68-Calculations!R$1 -> 0 | S69: =Data!S68-Calculations!S$1 -> 0 | T69: =Data!T68-Calculations!T$1 -> 0 | U69: =Data!U68-Calculations!U$1 -> 0 | V69: =Data!V68-Calculations!V$1 -> 0 | W69: =Data!W68-Calculations!W$1 -> 0
A70: =IF(Data!A69>0,Data!A69,NA()) -> 398.2422485 | B70: =Data!B69-Calculations!B$1 -> 1.859234079 | C70: =Data!C69-Calculations!C$1 -> 2.394366112 | D70: =Data!D69-Calculations!D$1 -> 2.703532485 | E70: =Data!E69-Calculations!E$1 -> 2.986912035 | F70: =Data!F69-Calculations!F$1 -> 3.006300428 | G70: =Data!G69-Calculations!G$1 -> 2.988304373 | H70: =Data!H69-Calculations!H$1 -> 2.978305636 | I70: =Data!I69-Calculations!I$1 -> 3.003968592 | J70: =Data!J69-Calculations!J$1 -> 3.007511648 | K70: =Data!K69-Calculations!K$1 -> 2.945958447 | L70: =Data!L69-Calculations!L$1 -> 2.914346745 | M70: =Data!M69-Calculations!M$1 -> 0 | N70: =Data!N69-Calculations!N$1 -> 0 | O70: =Data!O69-Calculations!O$1 -> 0 | P70: =Data!P69-Calculations!P$1 -> 0 | Q70: =Data!Q69-Calculations!Q$1 -> 0 | R70: =Data!R69-Calculations!R$1 -> 0 | S70: =Data!S69-Calculations!S$1 -> 0 | T70: =Data!T69-Calculations!T$1 -> 0 | U70: =Data!U69-Calculations!U$1 -> 0 | V70: =Data!V69-Calculations!V$1 -> 0 | W70: =Data!W69-Calculations!W$1 -> 0
A71: =IF(Data!A70>0,Data!A70,NA()) -> 398.5850525 | B71: =Data!B70-Calculations!B$1 -> 1.866530866 | C71: =Data!C70-Calculations!C$1 -> 2.419859548 | D71: =Data!D70-Calculations!D$1 -> 2.876065258 | E71: =Data!E70-Calculations!E$1 -> 2.986912035 | F71: =Data!F70-Calculations!F$1 -> 3.006300428 | G71: =Data!G70-Calculations!G$1 -> 2.988304373 | H71: =Data!H70-Calculations!H$1 -> 2.978305636 | I71: =Data!I70-Calculations!I$1 -> 3.003968592 | J71: =Data!J70-Calculations!J$1 -> 3.007511648 | K71: =Data!K70-Calculations!K$1 -> 2.945958447 | L71: =Data!L70-Calculations!L$1 -> 2.914346745 | M71: =Data!M70-Calculations!M$1 -> 0 | N71: =Data!N70-Calculations!N$1 -> 0 | O71: =Data!O70-Calculations!O$1 -> 0 | P71: =Data!P70-Calculations!P$1 -> 0 | Q71: =Data!Q70-Calculations!Q$1 -> 0 | R71: =Data!R70-Calculations!R$1 -> 0 | S71: =Data!S70-Calculations!S$1 -> 0 | T71: =Data!T70-Calculations!T$1 -> 0 | U71: =Data!U70-Calculations!U$1 -> 0 | V71: =Data!V70-Calculations!V$1 -> 0 | W71: =Data!W70-Calculations!W$1 -> 0
A72: =IF(Data!A71>0,Data!A71,NA()) -> 398.9278259 | B72: =Data!B71-Calculations!B$1 -> 1.861109467 | C72: =Data!C71-Calculations!C$1 -> 2.314163025 | D72: =Data!D71-Calculations!D$1 -> 2.81676497 | E72: =Data!E71-Calculations!E$1 -> 2.986912035 | F72: =Data!F71-Calculations!F$1 -> 3.006300428 | G72: =Data!G71-Calculations!G$1 -> 2.988304373 | H72: =Data!H71-Calculations!H$1 -> 2.978305636 | I72: =Data!I71-Calculations!I$1 -> 3.003968592 | J72: =Data!J71-Calculations!J$1 -> 3.007511648 | K72: =Data!K71-Calculations!K$1 -> 2.945958447 | L72: =Data!L71-Calculations!L$1 -> 2.914346745 | M72: =Data!M71-Calculations!M$1 -> 0 | N72: =Data!N71-Calculations!N$1 -> 0 | O72: =Data!O71-Calculations!O$1 -> 0 | P72: =Data!P71-Calculations!P$1 -> 0 | Q72: =Data!Q71-Calculations!Q$1 -> 0 | R72: =Data!R71-Calculations!R$1 -> 0 | S72: =Data!S71-Calculations!S$1 -> 0 | T72: =Data!T71-Calculations!T$1 -> 0 | U72: =Data!U71-Calculations!U$1 -> 0 | V72: =Data!V71-Calculations!V$1 -> 0 | W72: =Data!W71-Calculations!W$1 -> 0
A73: =IF(Data!A72>0,Data!A72,NA()) -> 399.2705688 | B73: =Data!B72-Calculations!B$1 -> 1.869931904 | C73: =Data!C72-Calculations!C$1 -> 2.294759359 | D73: =Data!D72-Calculations!D$1 -> 2.925385569 | E73: =Data!E72-Calculations!E$1 -> 2.986912035 | F73: =Data!F72-Calculations!F$1 -> 3.006300428 | G73: =Data!G72-Calculations!G$1 -> 2.988304373 | H73: =Data!H72-Calculations!H$1 -> 2.978305636 | I73: =Data!I72-Calculations!I$1 -> 3.003968592 | J73: =Data!J72-Calculations!J$1 -> 3.007511648 | K73: =Data!K72-Calculations!K$1 -> 2.945958447 | L73: =Data!L72-Calculations!L$1 -> 2.914346745 | M73: =Data!M72-Calculations!M$1 -> 0 | N73: =Data!N72-Calculations!N$1 -> 0 | O73: =Data!O72-Calculations!O$1 -> 0 | P73: =Data!P72-Calculations!P$1 -> 0 | Q73: =Data!Q72-Calculations!Q$1 -> 0 | R73: =Data!R72-Calculations!R$1 -> 0 | S73: =Data!S72-Calculations!S$1 -> 0 | T73: =Data!T72-Calculations!T$1 -> 0 | U73: =Data!U72-Calculations!U$1 -> 0 | V73: =Data!V72-Calculations!V$1 -> 0 | W73: =Data!W72-Calculations!W$1 -> 0
A74: =IF(Data!A73>0,Data!A73,NA()) -> 399.6132812 | B74: =Data!B73-Calculations!B$1 -> 1.84891856 | C74: =Data!C73-Calculations!C$1 -> 2.321291794 | D74: =Data!D73-Calculations!D$1 -> 2.793829519 | E74: =Data!E73-Calculations!E$1 -> 2.986912035 | F74: =Data!F73-Calculations!F$1 -> 3.006300428 | G74: =Data!G73-Calculations!G$1 -> 2.988304373 | H74: =Data!H73-Calculations!H$1 -> 2.978305636 | I74: =Data!I73-Calculations!I$1 -> 3.003968592 | J74: =Data!J73-Calculations!J$1 -> 3.007511648 | K74: =Data!K73-Calculations!K$1 -> 2.945958447 | L74: =Data!L73-Calculations!L$1 -> 2.914346745 | M74: =Data!M73-Calculations!M$1 -> 0 | N74: =Data!N73-Calculations!N$1 -> 0 | O74: =Data!O73-Calculations!O$1 -> 0 | P74: =Data!P73-Calculations!P$1 -> 0 | Q74: =Data!Q73-Calculations!Q$1 -> 0 | R74: =Data!R73-Calculations!R$1 -> 0 | S74: =Data!S73-Calculations!S$1 -> 0 | T74: =Data!T73-Calculations!T$1 -> 0 | U74: =Data!U73-Calculations!U$1 -> 0 | V74: =Data!V73-Calculations!V$1 -> 0 | W74: =Data!W73-Calculations!W$1 -> 0
A75: =IF(Data!A74>0,Data!A74,NA()) -> 399.9559631 | B75: =Data!B74-Calculations!B$1 -> 1.833693041 | C75: =Data!C74-Calculations!C$1 -> 2.332417915 | D75: =Data!D74-Calculations!D$1 -> 2.870288204 | E75: =Data!E74-Calculations!E$1 -> 2.986912035 | F75: =Data!F74-Calculations!F$1 -> 3.006300428 | G75: =Data!G74-Calculations!G$1 -> 2.988304373 | H75: =Data!H74-Calculations!H$1 -> 2.978305636 | I75: =Data!I74-Calculations!I$1 -> 3.003968592 | J75: =Data!J74-Calculations!J$1 -> 3.007511648 | K75: =Data!K74-Calculations!K$1 -> 2.945958447 | L75: =Data!L74-Calculations!L$1 -> 2.914346745 | M75: =Data!M74-Calculations!M$1 -> 0 | N75: =Data!N74-Calculations!N$1 -> 0 | O75: =Data!O74-Calculations!O$1 -> 0 | P75: =Data!P74-Calculations!P$1 -> 0 | Q75: =Data!Q74-Calculations!Q$1 -> 0 | R75: =Data!R74-Calculations!R$1 -> 0 | S75: =Data!S74-Calculations!S$1 -> 0 | T75: =Data!T74-Calculations!T$1 -> 0 | U75: =Data!U74-Calculations!U$1 -> 0 | V75: =Data!V74-Calculations!V$1 -> 0 | W75: =Data!W74-Calculations!W$1 -> 0
A76: =IF(Data!A75>0,Data!A75,NA()) -> 400.2986145 | B76: =Data!B75-Calculations!B$1 -> 1.81243422 | C76: =Data!C75-Calculations!C$1 -> 2.289837262 | D76: =Data!D75-Calculations!D$1 -> 2.848568823 | E76: =Data!E75-Calculations!E$1 -> 2.986912035 | F76: =Data!F75-Calculations!F$1 -> 3.006300428 | G76: =Data!G75-Calculations!G$1 -> 2.988304373 | H76: =Data!H75-Calculations!H$1 -> 2.978305636 | I76: =Data!I75-Calculations!I$1 -> 3.003968592 | J76: =Data!J75-Calculations!J$1 -> 3.007511648 | K76: =Data!K75-Calculations!K$1 -> 2.945958447 | L76: =Data!L75-Calculations!L$1 -> 2.914346745 | M76: =Data!M75-Calculations!M$1 -> 0 | N76: =Data!N75-Calculations!N$1 -> 0 | O76: =Data!O75-Calculations!O$1 -> 0 | P76: =Data!P75-Calculations!P$1 -> 0 | Q76: =Data!Q75-Calculations!Q$1 -> 0 | R76: =Data!R75-Calculations!R$1 -> 0 | S76: =Data!S75-Calculations!S$1 -> 0 | T76: =Data!T75-Calculations!T$1 -> 0 | U76: =Data!U75-Calculations!U$1 -> 0 | V76: =Data!V75-Calculations!V$1 -> 0 | W76: =Data!W75-Calculations!W$1 -> 0
A77: =IF(Data!A76>0,Data!A76,NA()) -> 400.6412354 | B77: =Data!B76-Calculations!B$1 -> 1.803680871 | C77: =Data!C76-Calculations!C$1 -> 2.251459624 | D77: =Data!D76-Calculations!D$1 -> 2.683449282 | E77: =Data!E76-Calculations!E$1 -> 2.986912035 | F77: =Data!F76-Calculations!F$1 -> 3.006300428 | G77: =Data!G76-Calculations!G$1 -> 2.988304373 | H77: =Data!H76-Calculations!H$1 -> 2.978305636 | I77: =Data!I76-Calculations!I$1 -> 3.003968592 | J77: =Data!J76-Calculations!J$1 -> 3.007511648 | K77: =Data!K76-Calculations!K$1 -> 2.945958447 | L77: =Data!L76-Calculations!L$1 -> 2.914346745 | M77: =Data!M76-Calculations!M$1 -> 0 | N77: =Data!N76-Calculations!N$1 -> 0 | O77: =Data!O76-Calculations!O$1 -> 0 | P77: =Data!P76-Calculations!P$1 -> 0 | Q77: =Data!Q76-Calculations!Q$1 -> 0 | R77: =Data!R76-Calculations!R$1 -> 0 | S77: =Data!S76-Calculations!S$1 -> 0 | T77: =Data!T76-Calculations!T$1 -> 0 | U77: =Data!U76-Calculations!U$1 -> 0 | V77: =Data!V76-Calculations!V$1 -> 0 | W77: =Data!W76-Calculations!W$1 -> 0
A78: =IF(Data!A77>0,Data!A77,NA()) -> 400.9838257 | B78: =Data!B77-Calculations!B$1 -> 1.792510729 | C78: =Data!C77-Calculations!C$1 -> 2.207146132 | D78: =Data!D77-Calculations!D$1 -> 2.522526286 | E78: =Data!E77-Calculations!E$1 -> 2.986912035 | F78: =Data!F77-Calculations!F$1 -> 3.006300428 | G78: =Data!G77-Calculations!G$1 -> 2.988304373 | H78: =Data!H77-Calculations!H$1 -> 2.978305636 | I78: =Data!I77-Calculations!I$1 -> 3.003968592 | J78: =Data!J77-Calculations!J$1 -> 3.007511648 | K78: =Data!K77-Calculations!K$1 -> 2.945958447 | L78: =Data!L77-Calculations!L$1 -> 2.914346745 | M78: =Data!M77-Calculations!M$1 -> 0 | N78: =Data!N77-Calculations!N$1 -> 0 | O78: =Data!O77-Calculations!O$1 -> 0 | P78: =Data!P77-Calculations!P$1 -> 0 | Q78: =Data!Q77-Calculations!Q$1 -> 0 | R78: =Data!R77-Calculations!R$1 -> 0 | S78: =Data!S77-Calculations!S$1 -> 0 | T78: =Data!T77-Calculations!T$1 -> 0 | U78: =Data!U77-Calculations!U$1 -> 0 | V78: =Data!V77-Calculations!V$1 -> 0 | W78: =Data!W77-Calculations!W$1 -> 0
A79: =IF(Data!A78>0,Data!A78,NA()) -> 401.326355 | B79: =Data!B78-Calculations!B$1 -> 1.766228424 | C79: =Data!C78-Calculations!C$1 -> 2.199419049 | D79: =Data!D78-Calculations!D$1 -> 2.427304475 | E79: =Data!E78-Calculations!E$1 -> 2.986912035 | F79: =Data!F78-Calculations!F$1 -> 3.006300428 | G79: =Data!G78-Calculations!G$1 -> 2.988304373 | H79: =Data!H78-Calculations!H$1 -> 2.978305636 | I79: =Data!I78-Calculations!I$1 -> 3.003968592 | J79: =Data!J78-Calculations!J$1 -> 3.007511648 | K79: =Data!K78-Calculations!K$1 -> 2.945958447 | L79: =Data!L78-Calculations!L$1 -> 2.914346745 | M79: =Data!M78-Calculations!M$1 -> 0 | N79: =Data!N78-Calculations!N$1 -> 0 | O79: =Data!O78-Calculations!O$1 -> 0 | P79: =Data!P78-Calculations!P$1 -> 0 | Q79: =Data!Q78-Calculations!Q$1 -> 0 | R79: =Data!R78-Calculations!R$1 -> 0 | S79: =Data!S78-Calculations!S$1 -> 0 | T79: =Data!T78-Calculations!T$1 -> 0 | U79: =Data!U78-Calculations!U$1 -> 0 | V79: =Data!V78-Calculations!V$1 -> 0 | W79: =Data!W78-Calculations!W$1 -> 0
A80: =IF(Data!A79>0,Data!A79,NA()) -> 401.6688843 | B80: =Data!B79-Calculations!B$1 -> 1.746437196 | C80: =Data!C79-Calculations!C$1 -> 2.161101998 | D80: =Data!D79-Calculations!D$1 -> 2.420441435 | E80: =Data!E79-Calculations!E$1 -> 2.986912035 | F80: =Data!F79-Calculations!F$1 -> 3.006300428 | G80: =Data!G79-Calculations!G$1 -> 2.988304373 | H80: =Data!H79-Calculations!H$1 -> 2.978305636 | I80: =Data!I79-Calculations!I$1 -> 3.003968592 | J80: =Data!J79-Calculations!J$1 -> 3.007511648 | K80: =Data!K79-Calculations!K$1 -> 2.945958447 | L80: =Data!L79-Calculations!L$1 -> 2.914346745 | M80: =Data!M79-Calculations!M$1 -> 0 | N80: =Data!N79-Calculations!N$1 -> 0 | O80: =Data!O79-Calculations!O$1 -> 0 | P80: =Data!P79-Calculations!P$1 -> 0 | Q80: =Data!Q79-Calculations!Q$1 -> 0 | R80: =Data!R79-Calculations!R$1 -> 0 | S80: =Data!S79-Calculations!S$1 -> 0 | T80: =Data!T79-Calculations!T$1 -> 0 | U80: =Data!U79-Calculations!U$1 -> 0 | V80: =Data!V79-Calculations!V$1 -> 0 | W80: =Data!W79-Calculations!W$1 -> 0
A81: =IF(Data!A80>0,Data!A80,NA()) -> 402.0113525 | B81: =Data!B80-Calculations!B$1 -> 1.734354468 | C81: =Data!C80-Calculations!C$1 -> 2.129468245 | D81: =Data!D80-Calculations!D$1 -> 2.41309493 | E81: =Data!E80-Calculations!E$1 -> 2.986912035 | F81: =Data!F80-Calculations!F$1 -> 3.006300428 | G81: =Data!G80-Calculations!G$1 -> 2.988304373 | H81: =Data!H80-Calculations!H$1 -> 2.978305636 | I81: =Data!I80-Calculations!I$1 -> 3.003968592 | J81: =Data!J80-Calculations!J$1 -> 3.007511648 | K81: =Data!K80-Calculations!K$1 -> 2.945958447 | L81: =Data!L80-Calculations!L$1 -> 2.914346745 | M81: =Data!M80-Calculations!M$1 -> 0 | N81: =Data!N80-Calculations!N$1 -> 0 | O81: =Data!O80-Calculations!O$1 -> 0 | P81: =Data!P80-Calculations!P$1 -> 0 | Q81: =Data!Q80-Calculations!Q$1 -> 0 | R81: =Data!R80-Calculations!R$1 -> 0 | S81: =Data!S80-Calculations!S$1 -> 0 | T81: =Data!T80-Calculations!T$1 -> 0 | U81: =Data!U80-Calculations!U$1 -> 0 | V81: =Data!V80-Calculations!V$1 -> 0 | W81: =Data!W80-Calculations!W$1 -> 0
A82: =IF(Data!A81>0,Data!A81,NA()) -> 402.3537903 | B82: =Data!B81-Calculations!B$1 -> 1.728854932 | C82: =Data!C81-Calculations!C$1 -> 2.06426367 | D82: =Data!D81-Calculations!D$1 -> 2.377684192 | E82: =Data!E81-Calculations!E$1 -> 3.119769957 | F82: =Data!F81-Calculations!F$1 -> 3.006300428 | G82: =Data!G81-Calculations!G$1 -> 2.988304373 | H82: =Data!H81-Calculations!H$1 -> 2.978305636 | I82: =Data!I81-Calculations!I$1 -> 3.003968592 | J82: =Data!J81-Calculations!J$1 -> 3.007511648 | K82: =Data!K81-Calculations!K$1 -> 2.945958447 | L82: =Data!L81-Calculations!L$1 -> 2.914346745 | M82: =Data!M81-Calculations!M$1 -> 0 | N82: =Data!N81-Calculations!N$1 -> 0 | O82: =Data!O81-Calculations!O$1 -> 0 | P82: =Data!P81-Calculations!P$1 -> 0 | Q82: =Data!Q81-Calculations!Q$1 -> 0 | R82: =Data!R81-Calculations!R$1 -> 0 | S82: =Data!S81-Calculations!S$1 -> 0 | T82: =Data!T81-Calculations!T$1 -> 0 | U82: =Data!U81-Calculations!U$1 -> 0 | V82: =Data!V81-Calculations!V$1 -> 0 | W82: =Data!W81-Calculations!W$1 -> 0
A83: =IF(Data!A82>0,Data!A82,NA()) -> 402.696228 | B83: =Data!B82-Calculations!B$1 -> 1.715181661 | C83: =Data!C82-Calculations!C$1 -> 2.052338311 | D83: =Data!D82-Calculations!D$1 -> 2.367335996 | E83: =Data!E82-Calculations!E$1 -> 3.05785523 | F83: =Data!F82-Calculations!F$1 -> 3.006300428 | G83: =Data!G82-Calculations!G$1 -> 2.988304373 | H83: =Data!H82-Calculations!H$1 -> 2.978305636 | I83: =Data!I82-Calculations!I$1 -> 3.003968592 | J83: =Data!J82-Calculations!J$1 -> 3.007511648 | K83: =Data!K82-Calculations!K$1 -> 2.945958447 | L83: =Data!L82-Calculations!L$1 -> 2.914346745 | M83: =Data!M82-Calculations!M$1 -> 0 | N83: =Data!N82-Calculations!N$1 -> 0 | O83: =Data!O82-Calculations!O$1 -> 0 | P83: =Data!P82-Calculations!P$1 -> 0 | Q83: =Data!Q82-Calculations!Q$1 -> 0 | R83: =Data!R82-Calculations!R$1 -> 0 | S83: =Data!S82-Calculations!S$1 -> 0 | T83: =Data!T82-Calculations!T$1 -> 0 | U83: =Data!U82-Calculations!U$1 -> 0 | V83: =Data!V82-Calculations!V$1 -> 0 | W83: =Data!W82-Calculations!W$1 -> 0
A84: =IF(Data!A83>0,Data!A83,NA()) -> 403.0386047 | B84: =Data!B83-Calculations!B$1 -> 1.708359374 | C84: =Data!C83-Calculations!C$1 -> 2.039591346 | D84: =Data!D83-Calculations!D$1 -> 2.316416648 | E84: =Data!E83-Calculations!E$1 -> 3.045059395 | F84: =Data!F83-Calculations!F$1 -> 3.006300428 | G84: =Data!G83-Calculations!G$1 -> 2.988304373 | H84: =Data!H83-Calculations!H$1 -> 2.978305636 | I84: =Data!I83-Calculations!I$1 -> 3.003968592 | J84: =Data!J83-Calculations!J$1 -> 3.007511648 | K84: =Data!K83-Calculations!K$1 -> 2.945958447 | L84: =Data!L83-Calculations!L$1 -> 2.914346745 | M84: =Data!M83-Calculations!M$1 -> 0 | N84: =Data!N83-Calculations!N$1 -> 0 | O84: =Data!O83-Calculations!O$1 -> 0 | P84: =Data!P83-Calculations!P$1 -> 0 | Q84: =Data!Q83-Calculations!Q$1 -> 0 | R84: =Data!R83-Calculations!R$1 -> 0 | S84: =Data!S83-Calculations!S$1 -> 0 | T84: =Data!T83-Calculations!T$1 -> 0 | U84: =Data!U83-Calculations!U$1 -> 0 | V84: =Data!V83-Calculations!V$1 -> 0 | W84: =Data!W83-Calculations!W$1 -> 0
A85: =IF(Data!A84>0,Data!A84,NA()) -> 403.3809509 | B85: =Data!B84-Calculations!B$1 -> 1.709370794 | C85: =Data!C84-Calculations!C$1 -> 2.053139669 | D85: =Data!D84-Calculations!D$1 -> 2.31459892 | E85: =Data!E84-Calculations!E$1 -> 3.389272646 | F85: =Data!F84-Calculations!F$1 -> 3.006300428 | G85: =Data!G84-Calculations!G$1 -> 2.988304373 | H85: =Data!H84-Calculations!H$1 -> 2.978305636 | I85: =Data!I84-Calculations!I$1 -> 3.003968592 | J85: =Data!J84-Calculations!J$1 -> 3.007511648 | K85: =Data!K84-Calculations!K$1 -> 2.945958447 | L85: =Data!L84-Calculations!L$1 -> 2.914346745 | M85: =Data!M84-Calculations!M$1 -> 0 | N85: =Data!N84-Calculations!N$1 -> 0 | O85: =Data!O84-Calculations!O$1 -> 0 | P85: =Data!P84-Calculations!P$1 -> 0 | Q85: =Data!Q84-Calculations!Q$1 -> 0 | R85: =Data!R84-Calculations!R$1 -> 0 | S85: =Data!S84-Calculations!S$1 -> 0 | T85: =Data!T84-Calculations!T$1 -> 0 | U85: =Data!U84-Calculations!U$1 -> 0 | V85: =Data!V84-Calculations!V$1 -> 0 | W85: =Data!W84-Calculations!W$1 -> 0
A86: =IF(Data!A85>0,Data!A85,NA()) -> 403.7232666 | B86: =Data!B85-Calculations!B$1 -> 1.711958957 | C86: =Data!C85-Calculations!C$1 -> 2.021276025 | D86: =Data!D85-Calculations!D$1 -> 2.297059809 | E86: =Data!E85-Calculations!E$1 -> 3.399726432 | F86: =Data!F85-Calculations!F$1 -> 3.006300428 | G86: =Data!G85-Calculations!G$1 -> 2.988304373 | H86: =Data!H85-Calculations!H$1 -> 2.978305636 | I86: =Data!I85-Calculations!I$1 -> 3.003968592 | J86: =Data!J85-Calculations!J$1 -> 3.007511648 | K86: =Data!K85-Calculations!K$1 -> 2.945958447 | L86: =Data!L85-Calculations!L$1 -> 2.914346745 | M86: =Data!M85-Calculations!M$1 -> 0 | N86: =Data!N85-Calculations!N$1 -> 0 | O86: =Data!O85-Calculations!O$1 -> 0 | P86: =Data!P85-Calculations!P$1 -> 0 | Q86: =Data!Q85-Calculations!Q$1 -> 0 | R86: =Data!R85-Calculations!R$1 -> 0 | S86: =Data!S85-Calculations!S$1 -> 0 | T86: =Data!T85-Calculations!T$1 -> 0 | U86: =Data!U85-Calculations!U$1 -> 0 | V86: =Data!V85-Calculations!V$1 -> 0 | W86: =Data!W85-Calculations!W$1 -> 0
A87: =IF(Data!A86>0,Data!A86,NA()) -> 404.0655518 | B87: =Data!B86-Calculations!B$1 -> 1.694057381 | C87: =Data!C86-Calculations!C$1 -> 2.006823932 | D87: =Data!D86-Calculations!D$1 -> 2.270972472 | E87: =Data!E86-Calculations!E$1 -> 3.1799866 | F87: =Data!F86-Calculations!F$1 -> 3.006300428 | G87: =Data!G86-Calculations!G$1 -> 2.988304373 | H87: =Data!H86-Calculations!H$1 -> 2.978305636 | I87: =Data!I86-Calculations!I$1 -> 3.003968592 | J87: =Data!J86-Calculations!J$1 -> 3.007511648 | K87: =Data!K86-Calculations!K$1 -> 2.945958447 | L87: =Data!L86-Calculations!L$1 -> 2.914346745 | M87: =Data!M86-Calculations!M$1 -> 0 | N87: =Data!N86-Calculations!N$1 -> 0 | O87: =Data!O86-Calculations!O$1 -> 0 | P87: =Data!P86-Calculations!P$1 -> 0 | Q87: =Data!Q86-Calculations!Q$1 -> 0 | R87: =Data!R86-Calculations!R$1 -> 0 | S87: =Data!S86-Calculations!S$1 -> 0 | T87: =Data!T86-Calculations!T$1 -> 0 | U87: =Data!U86-Calculations!U$1 -> 0 | V87: =Data!V86-Calculations!V$1 -> 0 | W87: =Data!W86-Calculations!W$1 -> 0
A88: =IF(Data!A87>0,Data!A87,NA()) -> 404.4077759 | B88: =Data!B87-Calculations!B$1 -> 1.657804228 | C88: =Data!C87-Calculations!C$1 -> 1.954107189 | D88: =Data!D87-Calculations!D$1 -> 2.210631509 | E88: =Data!E87-Calculations!E$1 -> 2.614022176 | F88: =Data!F87-Calculations!F$1 -> 3.006300428 | G88: =Data!G87-Calculations!G$1 -> 2.988304373 | H88: =Data!H87-Calculations!H$1 -> 2.978305636 | I88: =Data!I87-Calculations!I$1 -> 3.003968592 | J88: =Data!J87-Calculations!J$1 -> 3.007511648 | K88: =Data!K87-Calculations!K$1 -> 2.945958447 | L88: =Data!L87-Calculations!L$1 -> 2.914346745 | M88: =Data!M87-Calculations!M$1 -> 0 | N88: =Data!N87-Calculations!N$1 -> 0 | O88: =Data!O87-Calculations!O$1 -> 0 | P88: =Data!P87-Calculations!P$1 -> 0 | Q88: =Data!Q87-Calculations!Q$1 -> 0 | R88: =Data!R87-Calculations!R$1 -> 0 | S88: =Data!S87-Calculations!S$1 -> 0 | T88: =Data!T87-Calculations!T$1 -> 0 | U88: =Data!U87-Calculations!U$1 -> 0 | V88: =Data!V87-Calculations!V$1 -> 0 | W88: =Data!W87-Calculations!W$1 -> 0
A89: =IF(Data!A88>0,Data!A88,NA()) -> 404.750061 | B89: =Data!B88-Calculations!B$1 -> 1.636168076 | C89: =Data!C88-Calculations!C$1 -> 1.925488875 | D89: =Data!D88-Calculations!D$1 -> 2.146125029 | E89: =Data!E88-Calculations!E$1 -> 2.488600595 | F89: =Data!F88-Calculations!F$1 -> 3.197496125 | G89: =Data!G88-Calculations!G$1 -> 2.988304373 | H89: =Data!H88-Calculations!H$1 -> 2.978305636 | I89: =Data!I88-Calculations!I$1 -> 3.003968592 | J89: =Data!J88-Calculations!J$1 -> 3.007511648 | K89: =Data!K88-Calculations!K$1 -> 2.945958447 | L89: =Data!L88-Calculations!L$1 -> 2.914346745 | M89: =Data!M88-Calculations!M$1 -> 0 | N89: =Data!N88-Calculations!N$1 -> 0 | O89: =Data!O88-Calculations!O$1 -> 0 | P89: =Data!P88-Calculations!P$1 -> 0 | Q89: =Data!Q88-Calculations!Q$1 -> 0 | R89: =Data!R88-Calculations!R$1 -> 0 | S89: =Data!S88-Calculations!S$1 -> 0 | T89: =Data!T88-Calculations!T$1 -> 0 | U89: =Data!U88-Calculations!U$1 -> 0 | V89: =Data!V88-Calculations!V$1 -> 0 | W89: =Data!W88-Calculations!W$1 -> 0
A90: =IF(Data!A89>0,Data!A89,NA()) -> 405.0921936 | B90: =Data!B89-Calculations!B$1 -> 1.62363785 | C90: =Data!C89-Calculations!C$1 -> 1.902365779 | D90: =Data!D89-Calculations!D$1 -> 2.125630652 | E90: =Data!E89-Calculations!E$1 -> 2.471725347 | F90: =Data!F89-Calculations!F$1 -> 3.167180811 | G90: =Data!G89-Calculations!G$1 -> 2.988304373 | H90: =Data!H89-Calculations!H$1 -> 2.978305636 | I90: =Data!I89-Calculations!I$1 -> 3.003968592 | J90: =Data!J89-Calculations!J$1 -> 3.007511648 | K90: =Data!K89-Calculations!K$1 -> 2.945958447 | L90: =Data!L89-Calculations!L$1 -> 2.914346745 | M90: =Data!M89-Calculations!M$1 -> 0 | N90: =Data!N89-Calculations!N$1 -> 0 | O90: =Data!O89-Calculations!O$1 -> 0 | P90: =Data!P89-Calculations!P$1 -> 0 | Q90: =Data!Q89-Calculations!Q$1 -> 0 | R90: =Data!R89-Calculations!R$1 -> 0 | S90: =Data!S89-Calculations!S$1 -> 0 | T90: =Data!T89-Calculations!T$1 -> 0 | U90: =Data!U89-Calculations!U$1 -> 0 | V90: =Data!V89-Calculations!V$1 -> 0 | W90: =Data!W89-Calculations!W$1 -> 0
A91: =IF(Data!A90>0,Data!A90,NA()) -> 405.4343567 | B91: =Data!B90-Calculations!B$1 -> 1.612016143 | C91: =Data!C90-Calculations!C$1 -> 1.893048858 | D91: =Data!D90-Calculations!D$1 -> 2.109631998 | E91: =Data!E90-Calculations!E$1 -> 2.60509412 | F91: =Data!F90-Calculations!F$1 -> 3.76423022 | G91: =Data!G90-Calculations!G$1 -> 2.988304373 | H91: =Data!H90-Calculations!H$1 -> 2.978305636 | I91: =Data!I90-Calculations!I$1 -> 3.003968592 | J91: =Data!J90-Calculations!J$1 -> 3.007511648 | K91: =Data!K90-Calculations!K$1 -> 2.945958447 | L91: =Data!L90-Calculations!L$1 -> 2.914346745 | M91: =Data!M90-Calculations!M$1 -> 0 | N91: =Data!N90-Calculations!N$1 -> 0 | O91: =Data!O90-Calculations!O$1 -> 0 | P91: =Data!P90-Calculations!P$1 -> 0 | Q91: =Data!Q90-Calculations!Q$1 -> 0 | R91: =Data!R90-Calculations!R$1 -> 0 | S91: =Data!S90-Calculations!S$1 -> 0 | T91: =Data!T90-Calculations!T$1 -> 0 | U91: =Data!U90-Calculations!U$1 -> 0 | V91: =Data!V90-Calculations!V$1 -> 0 | W91: =Data!W90-Calculations!W$1 -> 0
A92: =IF(Data!A91>0,Data!A91,NA()) -> 405.7764587 | B92: =Data!B91-Calculations!B$1 -> 1.601980776 | C92: =Data!C91-Calculations!C$1 -> 1.871855777 | D92: =Data!D91-Calculations!D$1 -> 2.111412966 | E92: =Data!E91-Calculations!E$1 -> 2.619932679 | F92: =Data!F91-Calculations!F$1 -> 3.006300428 | G92: =Data!G91-Calculations!G$1 -> 2.988304373 | H92: =Data!H91-Calculations!H$1 -> 2.978305636 | I92: =Data!I91-Calculations!I$1 -> 3.003968592 | J92: =Data!J91-Calculations!J$1 -> 3.007511648 | K92: =Data!K91-Calculations!K$1 -> 2.945958447 | L92: =Data!L91-Calculations!L$1 -> 2.914346745 | M92: =Data!M91-Calculations!M$1 -> 0 | N92: =Data!N91-Calculations!N$1 -> 0 | O92: =Data!O91-Calculations!O$1 -> 0 | P92: =Data!P91-Calculations!P$1 -> 0 | Q92: =Data!Q91-Calculations!Q$1 -> 0 | R92: =Data!R91-Calculations!R$1 -> 0 | S92: =Data!S91-Calculations!S$1 -> 0 | T92: =Data!T91-Calculations!T$1 -> 0 | U92: =Data!U91-Calculations!U$1 -> 0 | V92: =Data!V91-Calculations!V$1 -> 0 | W92: =Data!W91-Calculations!W$1 -> 0
A93: =IF(Data!A92>0,Data!A92,NA()) -> 406.1185608 | B93: =Data!B92-Calculations!B$1 -> 1.584309234 | C93: =Data!C92-Calculations!C$1 -> 1.845327467 | D93: =Data!D92-Calculations!D$1 -> 2.06929978 | E93: =Data!E92-Calculations!E$1 -> 2.505874485 | F93: =Data!F92-Calculations!F$1 -> 3.006300428 | G93: =Data!G92-Calculations!G$1 -> 2.988304373 | H93: =Data!H92-Calculations!H$1 -> 2.978305636 | I93: =Data!I92-Calculations!I$1 -> 3.003968592 | J93: =Data!J92-Calculations!J$1 -> 3.007511648 | K93: =Data!K92-Calculations!K$1 -> 2.945958447 | L93: =Data!L92-Calculations!L$1 -> 2.914346745 | M93: =Data!M92-Calculations!M$1 -> 0 | N93: =Data!N92-Calculations!N$1 -> 0 | O93: =Data!O92-Calculations!O$1 -> 0 | P93: =Data!P92-Calculations!P$1 -> 0 | Q93: =Data!Q92-Calculations!Q$1 -> 0 | R93: =Data!R92-Calculations!R$1 -> 0 | S93: =Data!S92-Calculations!S$1 -> 0 | T93: =Data!T92-Calculations!T$1 -> 0 | U93: =Data!U92-Calculations!U$1 -> 0 | V93: =Data!V92-Calculations!V$1 -> 0 | W93: =Data!W92-Calculations!W$1 -> 0
A94: =IF(Data!A93>0,Data!A93,NA()) -> 406.4606018 | B94: =Data!B93-Calculations!B$1 -> 1.573272654 | C94: =Data!C93-Calculations!C$1 -> 1.840946097 | D94: =Data!D93-Calculations!D$1 -> 2.03923558 | E94: =Data!E93-Calculations!E$1 -> 2.472094754 | F94: =Data!F93-Calculations!F$1 -> 3.884480266 | G94: =Data!G93-Calculations!G$1 -> 2.988304373 | H94: =Data!H93-Calculations!H$1 -> 2.978305636 | I94: =Data!I93-Calculations!I$1 -> 3.003968592 | J94: =Data!J93-Calculations!J$1 -> 3.007511648 | K94: =Data!K93-Calculations!K$1 -> 2.945958447 | L94: =Data!L93-Calculations!L$1 -> 2.914346745 | M94: =Data!M93-Calculations!M$1 -> 0 | N94: =Data!N93-Calculations!N$1 -> 0 | O94: =Data!O93-Calculations!O$1 -> 0 | P94: =Data!P93-Calculations!P$1 -> 0 | Q94: =Data!Q93-Calculations!Q$1 -> 0 | R94: =Data!R93-Calculations!R$1 -> 0 | S94: =Data!S93-Calculations!S$1 -> 0 | T94: =Data!T93-Calculations!T$1 -> 0 | U94: =Data!U93-Calculations!U$1 -> 0 | V94: =Data!V93-Calculations!V$1 -> 0 | W94: =Data!W93-Calculations!W$1 -> 0
A95: =IF(Data!A94>0,Data!A94,NA()) -> 406.8026428 | B95: =Data!B94-Calculations!B$1 -> 1.553702186 | C95: =Data!C94-Calculations!C$1 -> 1.831944701 | D95: =Data!D94-Calculations!D$1 -> 2.009726444 | E95: =Data!E94-Calculations!E$1 -> 2.422457424 | F95: =Data!F94-Calculations!F$1 -> 3.947228952 | G95: =Data!G94-Calculations!G$1 -> 2.988304373 | H95: =Data!H94-Calculations!H$1 -> 2.978305636 | I95: =Data!I94-Calculations!I$1 -> 3.003968592 | J95: =Data!J94-Calculations!J$1 -> 3.007511648 | K95: =Data!K94-Calculations!K$1 -> 2.945958447 | L95: =Data!L94-Calculations!L$1 -> 2.914346745 | M95: =Data!M94-Calculations!M$1 -> 0 | N95: =Data!N94-Calculations!N$1 -> 0 | O95: =Data!O94-Calculations!O$1 -> 0 | P95: =Data!P94-Calculations!P$1 -> 0 | Q95: =Data!Q94-Calculations!Q$1 -> 0 | R95: =Data!R94-Calculations!R$1 -> 0 | S95: =Data!S94-Calculations!S$1 -> 0 | T95: =Data!T94-Calculations!T$1 -> 0 | U95: =Data!U94-Calculations!U$1 -> 0 | V95: =Data!V94-Calculations!V$1 -> 0 | W95: =Data!W94-Calculations!W$1 -> 0
A96: =IF(Data!A95>0,Data!A95,NA()) -> 407.1445923 | B96: =Data!B95-Calculations!B$1 -> 1.538591166 | C96: =Data!C95-Calculations!C$1 -> 1.810697836 | D96: =Data!D95-Calculations!D$1 -> 1.982642662 | E96: =Data!E95-Calculations!E$1 -> 2.406767436 | F96: =Data!F95-Calculations!F$1 -> 3.297195599 | G96: =Data!G95-Calculations!G$1 -> 2.988304373 | H96: =Data!H95-Calculations!H$1 -> 2.978305636 | I96: =Data!I95-Calculations!I$1 -> 3.003968592 | J96: =Data!J95-Calculations!J$1 -> 3.007511648 | K96: =Data!K95-Calculations!K$1 -> 2.945958447 | L96: =Data!L95-Calculations!L$1 -> 2.914346745 | M96: =Data!M95-Calculations!M$1 -> 0 | N96: =Data!N95-Calculations!N$1 -> 0 | O96: =Data!O95-Calculations!O$1 -> 0 | P96: =Data!P95-Calculations!P$1 -> 0 | Q96: =Data!Q95-Calculations!Q$1 -> 0 | R96: =Data!R95-Calculations!R$1 -> 0 | S96: =Data!S95-Calculations!S$1 -> 0 | T96: =Data!T95-Calculations!T$1 -> 0 | U96: =Data!U95-Calculations!U$1 -> 0 | V96: =Data!V95-Calculations!V$1 -> 0 | W96: =Data!W95-Calculations!W$1 -> 0
A97: =IF(Data!A96>0,Data!A96,NA()) -> 407.4865723 | B97: =Data!B96-Calculations!B$1 -> 1.529231777 | C97: =Data!C96-Calculations!C$1 -> 1.780419932 | D97: =Data!D96-Calculations!D$1 -> 1.970069836 | E97: =Data!E96-Calculations!E$1 -> 2.383194099 | F97: =Data!F96-Calculations!F$1 -> 3.273871911 | G97: =Data!G96-Calculations!G$1 -> 2.988304373 | H97: =Data!H96-Calculations!H$1 -> 2.978305636 | I97: =Data!I96-Calculations!I$1 -> 3.003968592 | J97: =Data!J96-Calculations!J$1 -> 3.007511648 | K97: =Data!K96-Calculations!K$1 -> 2.945958447 | L97: =Data!L96-Calculations!L$1 -> 2.914346745 | M97: =Data!M96-Calculations!M$1 -> 0 | N97: =Data!N96-Calculations!N$1 -> 0 | O97: =Data!O96-Calculations!O$1 -> 0 | P97: =Data!P96-Calculations!P$1 -> 0 | Q97: =Data!Q96-Calculations!Q$1 -> 0 | R97: =Data!R96-Calculations!R$1 -> 0 | S97: =Data!S96-Calculations!S$1 -> 0 | T97: =Data!T96-Calculations!T$1 -> 0 | U97: =Data!U96-Calculations!U$1 -> 0 | V97: =Data!V96-Calculations!V$1 -> 0 | W97: =Data!W96-Calculations!W$1 -> 0
A98: =IF(Data!A97>0,Data!A97,NA()) -> 407.8284607 | B98: =Data!B97-Calculations!B$1 -> 1.514410968 | C98: =Data!C97-Calculations!C$1 -> 1.756162307 | D98: =Data!D97-Calculations!D$1 -> 1.95366917 | E98: =Data!E97-Calculations!E$1 -> 2.337409552 | F98: =Data!F97-Calculations!F$1 -> 3.08572059 | G98: =Data!G97-Calculations!G$1 -> 2.988304373 | H98: =Data!H97-Calculations!H$1 -> 2.978305636 | I98: =Data!I97-Calculations!I$1 -> 3.003968592 | J98: =Data!J97-Calculations!J$1 -> 3.007511648 | K98: =Data!K97-Calculations!K$1 -> 2.945958447 | L98: =Data!L97-Calculations!L$1 -> 2.914346745 | M98: =Data!M97-Calculations!M$1 -> 0 | N98: =Data!N97-Calculations!N$1 -> 0 | O98: =Data!O97-Calculations!O$1 -> 0 | P98: =Data!P97-Calculations!P$1 -> 0 | Q98: =Data!Q97-Calculations!Q$1 -> 0 | R98: =Data!R97-Calculations!R$1 -> 0 | S98: =Data!S97-Calculations!S$1 -> 0 | T98: =Data!T97-Calculations!T$1 -> 0 | U98: =Data!U97-Calculations!U$1 -> 0 | V98: =Data!V97-Calculations!V$1 -> 0 | W98: =Data!W97-Calculations!W$1 -> 0
A99: =IF(Data!A98>0,Data!A98,NA()) -> 408.1703796 | B99: =Data!B98-Calculations!B$1 -> 1.506692154 | C99: =Data!C98-Calculations!C$1 -> 1.744014814 | D99: =Data!D98-Calculations!D$1 -> 1.946315659 | E99: =Data!E98-Calculations!E$1 -> 2.317197445 | F99: =Data!F98-Calculations!F$1 -> 3.178278664 | G99: =Data!G98-Calculations!G$1 -> 2.988304373 | H99: =Data!H98-Calculations!H$1 -> 2.978305636 | I99: =Data!I98-Calculations!I$1 -> 3.003968592 | J99: =Data!J98-Calculations!J$1 -> 3.007511648 | K99: =Data!K98-Calculations!K$1 -> 2.945958447 | L99: =Data!L98-Calculations!L$1 -> 2.914346745 | M99: =Data!M98-Calculations!M$1 -> 0 | N99: =Data!N98-Calculations!N$1 -> 0 | O99: =Data!O98-Calculations!O$1 -> 0 | P99: =Data!P98-Calculations!P$1 -> 0 | Q99: =Data!Q98-Calculations!Q$1 -> 0 | R99: =Data!R98-Calculations!R$1 -> 0 | S99: =Data!S98-Calculations!S$1 -> 0 | T99: =Data!T98-Calculations!T$1 -> 0 | U99: =Data!U98-Calculations!U$1 -> 0 | V99: =Data!V98-Calculations!V$1 -> 0 | W99: =Data!W98-Calculations!W$1 -> 0
A100: =IF(Data!A99>0,Data!A99,NA()) -> 408.512207 | B100: =Data!B99-Calculations!B$1 -> 1.488444736 | C100: =Data!C99-Calculations!C$1 -> 1.723151324 | D100: =Data!D99-Calculations!D$1 -> 1.934885751 | E100: =Data!E99-Calculations!E$1 -> 2.260957864 | F100: =Data!F99-Calculations!F$1 -> 2.97138147 | G100: =Data!G99-Calculations!G$1 -> 2.988304373 | H100: =Data!H99-Calculations!H$1 -> 2.978305636 | I100: =Data!I99-Calculations!I$1 -> 3.003968592 | J100: =Data!J99-Calculations!J$1 -> 3.007511648 | K100: =Data!K99-Calculations!K$1 -> 2.945958447 | L100: =Data!L99-Calculations!L$1 -> 2.914346745 | M100: =Data!M99-Calculations!M$1 -> 0 | N100: =Data!N99-Calculations!N$1 -> 0 | O100: =Data!O99-Calculations!O$1 -> 0 | P100: =Data!P99-Calculations!P$1 -> 0 | Q100: =Data!Q99-Calculations!Q$1 -> 0 | R100: =Data!R99-Calculations!R$1 -> 0 | S100: =Data!S99-Calculations!S$1 -> 0 | T100: =Data!T99-Calculations!T$1 -> 0 | U100: =Data!U99-Calculations!U$1 -> 0 | V100: =Data!V99-Calculations!V$1 -> 0 | W100: =Data!W99-Calculations!W$1 -> 0
A101: =IF(Data!A100>0,Data!A100,NA()) -> 408.8540344 | B101: =Data!B100-Calculations!B$1 -> 1.475525394 | C101: =Data!C100-Calculations!C$1 -> 1.701027817 | D101: =Data!D100-Calculations!D$1 -> 1.899376505 | E101: =Data!E100-Calculations!E$1 -> 2.231584167 | F101: =Data!F100-Calculations!F$1 -> 2.840320427 | G101: =Data!G100-Calculations!G$1 -> 2.988304373 | H101: =Data!H100-Calculations!H$1 -> 2.978305636 | I101: =Data!I100-Calculations!I$1 -> 3.003968592 | J101: =Data!J100-Calculations!J$1 -> 3.007511648 | K101: =Data!K100-Calculations!K$1 -> 2.945958447 | L101: =Data!L100-Calculations!L$1 -> 2.914346745 | M101: =Data!M100-Calculations!M$1 -> 0 | N101: =Data!N100-Calculations!N$1 -> 0 | O101: =Data!O100-Calculations!O$1 -> 0 | P101: =Data!P100-Calculations!P$1 -> 0 | Q101: =Data!Q100-Calculations!Q$1 -> 0 | R101: =Data!R100-Calculations!R$1 -> 0 | S101: =Data!S100-Calculations!S$1 -> 0 | T101: =Data!T100-Calculations!T$1 -> 0 | U101: =Data!U100-Calculations!U$1 -> 0 | V101: =Data!V100-Calculations!V$1 -> 0 | W101: =Data!W100-Calculations!W$1 -> 0
A102: =IF(Data!A101>0,Data!A101,NA()) -> 409.1958008 | B102: =Data!B101-Calculations!B$1 -> 1.455881685 | C102: =Data!C101-Calculations!C$1 -> 1.678288002 | D102: =Data!D101-Calculations!D$1 -> 1.877781407 | E102: =Data!E101-Calculations!E$1 -> 2.200713711 | F102: =Data!F101-Calculations!F$1 -> 2.762360364 | G102: =Data!G101-Calculations!G$1 -> 2.988304373 | H102: =Data!H101-Calculations!H$1 -> 2.978305636 | I102: =Data!I101-Calculations!I$1 -> 3.003968592 | J102: =Data!J101-Calculations!J$1 -> 3.007511648 | K102: =Data!K101-Calculations!K$1 -> 2.945958447 | L102: =Data!L101-Calculations!L$1 -> 2.914346745 | M102: =Data!M101-Calculations!M$1 -> 0 | N102: =Data!N101-Calculations!N$1 -> 0 | O102: =Data!O101-Calculations!O$1 -> 0 | P102: =Data!P101-Calculations!P$1 -> 0 | Q102: =Data!Q101-Calculations!Q$1 -> 0 | R102: =Data!R101-Calculations!R$1 -> 0 | S102: =Data!S101-Calculations!S$1 -> 0 | T102: =Data!T101-Calculations!T$1 -> 0 | U102: =Data!U101-Calculations!U$1 -> 0 | V102: =Data!V101-Calculations!V$1 -> 0 | W102: =Data!W101-Calculations!W$1 -> 0
A103: =IF(Data!A102>0,Data!A102,NA()) -> 409.5375977 | B103: =Data!B102-Calculations!B$1 -> 1.445014842 | C103: =Data!C102-Calculations!C$1 -> 1.664955475 | D103: =Data!D102-Calculations!D$1 -> 1.855477229 | E103: =Data!E102-Calculations!E$1 -> 2.187200518 | F103: =Data!F102-Calculations!F$1 -> 2.720785295 | G103: =Data!G102-Calculations!G$1 -> 2.988304373 | H103: =Data!H102-Calculations!H$1 -> 2.978305636 | I103: =Data!I102-Calculations!I$1 -> 3.003968592 | J103: =Data!J102-Calculations!J$1 -> 3.007511648 | K103: =Data!K102-Calculations!K$1 -> 2.945958447 | L103: =Data!L102-Calculations!L$1 -> 2.914346745 | M103: =Data!M102-Calculations!M$1 -> 0 | N103: =Data!N102-Calculations!N$1 -> 0 | O103: =Data!O102-Calculations!O$1 -> 0 | P103: =Data!P102-Calculations!P$1 -> 0 | Q103: =Data!Q102-Calculations!Q$1 -> 0 | R103: =Data!R102-Calculations!R$1 -> 0 | S103: =Data!S102-Calculations!S$1 -> 0 | T103: =Data!T102-Calculations!T$1 -> 0 | U103: =Data!U102-Calculations!U$1 -> 0 | V103: =Data!V102-Calculations!V$1 -> 0 | W103: =Data!W102-Calculations!W$1 -> 0
A104: =IF(Data!A103>0,Data!A103,NA()) -> 409.879303 | B104: =Data!B103-Calculations!B$1 -> 1.434290472 | C104: =Data!C103-Calculations!C$1 -> 1.652211447 | D104: =Data!D103-Calculations!D$1 -> 1.849397018 | E104: =Data!E103-Calculations!E$1 -> 2.172321919 | F104: =Data!F103-Calculations!F$1 -> 2.686989773 | G104: =Data!G103-Calculations!G$1 -> 2.988304373 | H104: =Data!H103-Calculations!H$1 -> 2.978305636 | I104: =Data!I103-Calculations!I$1 -> 3.003968592 | J104: =Data!J103-Calculations!J$1 -> 3.007511648 | K104: =Data!K103-Calculations!K$1 -> 2.945958447 | L104: =Data!L103-Calculations!L$1 -> 2.914346745 | M104: =Data!M103-Calculations!M$1 -> 0 | N104: =Data!N103-Calculations!N$1 -> 0 | O104: =Data!O103-Calculations!O$1 -> 0 | P104: =Data!P103-Calculations!P$1 -> 0 | Q104: =Data!Q103-Calculations!Q$1 -> 0 | R104: =Data!R103-Calculations!R$1 -> 0 | S104: =Data!S103-Calculations!S$1 -> 0 | T104: =Data!T103-Calculations!T$1 -> 0 | U104: =Data!U103-Calculations!U$1 -> 0 | V104: =Data!V103-Calculations!V$1 -> 0 | W104: =Data!W103-Calculations!W$1 -> 0
A105: =IF(Data!A104>0,Data!A104,NA()) -> 410.2209778 | B105: =Data!B104-Calculations!B$1 -> 1.422563055 | C105: =Data!C104-Calculations!C$1 -> 1.64336039 | D105: =Data!D104-Calculations!D$1 -> 1.850798183 | E105: =Data!E104-Calculations!E$1 -> 2.138932318 | F105: =Data!F104-Calculations!F$1 -> 2.655886814 | G105: =Data!G104-Calculations!G$1 -> 2.988304373 | H105: =Data!H104-Calculations!H$1 -> 2.978305636 | I105: =Data!I104-Calculations!I$1 -> 3.003968592 | J105: =Data!J104-Calculations!J$1 -> 3.007511648 | K105: =Data!K104-Calculations!K$1 -> 2.945958447 | L105: =Data!L104-Calculations!L$1 -> 2.914346745 | M105: =Data!M104-Calculations!M$1 -> 0 | N105: =Data!N104-Calculations!N$1 -> 0 | O105: =Data!O104-Calculations!O$1 -> 0 | P105: =Data!P104-Calculations!P$1 -> 0 | Q105: =Data!Q104-Calculations!Q$1 -> 0 | R105: =Data!R104-Calculations!R$1 -> 0 | S105: =Data!S104-Calculations!S$1 -> 0 | T105: =Data!T104-Calculations!T$1 -> 0 | U105: =Data!U104-Calculations!U$1 -> 0 | V105: =Data!V104-Calculations!V$1 -> 0 | W105: =Data!W104-Calculations!W$1 -> 0
A106: =IF(Data!A105>0,Data!A105,NA()) -> 410.5626221 | B106: =Data!B105-Calculations!B$1 -> 1.40565548 | C106: =Data!C105-Calculations!C$1 -> 1.633508681 | D106: =Data!D105-Calculations!D$1 -> 1.834613311 | E106: =Data!E105-Calculations!E$1 -> 2.107379633 | F106: =Data!F105-Calculations!F$1 -> 2.67740293 | G106: =Data!G105-Calculations!G$1 -> 2.988304373 | H106: =Data!H105-Calculations!H$1 -> 2.978305636 | I106: =Data!I105-Calculations!I$1 -> 3.003968592 | J106: =Data!J105-Calculations!J$1 -> 3.007511648 | K106: =Data!K105-Calculations!K$1 -> 2.945958447 | L106: =Data!L105-Calculations!L$1 -> 2.914346745 | M106: =Data!M105-Calculations!M$1 -> 0 | N106: =Data!N105-Calculations!N$1 -> 0 | O106: =Data!O105-Calculations!O$1 -> 0 | P106: =Data!P105-Calculations!P$1 -> 0 | Q106: =Data!Q105-Calculations!Q$1 -> 0 | R106: =Data!R105-Calculations!R$1 -> 0 | S106: =Data!S105-Calculations!S$1 -> 0 | T106: =Data!T105-Calculations!T$1 -> 0 | U106: =Data!U105-Calculations!U$1 -> 0 | V106: =Data!V105-Calculations!V$1 -> 0 | W106: =Data!W105-Calculations!W$1 -> 0
A107: =IF(Data!A106>0,Data!A106,NA()) -> 410.9042664 | B107: =Data!B106-Calculations!B$1 -> 1.390836389 | C107: =Data!C106-Calculations!C$1 -> 1.622065687 | D107: =Data!D106-Calculations!D$1 -> 1.818789325 | E107: =Data!E106-Calculations!E$1 -> 2.082692705 | F107: =Data!F106-Calculations!F$1 -> 2.631999267 | G107: =Data!G106-Calculations!G$1 -> 2.988304373 | H107: =Data!H106-Calculations!H$1 -> 2.978305636 | I107: =Data!I106-Calculations!I$1 -> 3.003968592 | J107: =Data!J106-Calculations!J$1 -> 3.007511648 | K107: =Data!K106-Calculations!K$1 -> 2.945958447 | L107: =Data!L106-Calculations!L$1 -> 2.914346745 | M107: =Data!M106-Calculations!M$1 -> 0 | N107: =Data!N106-Calculations!N$1 -> 0 | O107: =Data!O106-Calculations!O$1 -> 0 | P107: =Data!P106-Calculations!P$1 -> 0 | Q107: =Data!Q106-Calculations!Q$1 -> 0 | R107: =Data!R106-Calculations!R$1 -> 0 | S107: =Data!S106-Calculations!S$1 -> 0 | T107: =Data!T106-Calculations!T$1 -> 0 | U107: =Data!U106-Calculations!U$1 -> 0 | V107: =Data!V106-Calculations!V$1 -> 0 | W107: =Data!W106-Calculations!W$1 -> 0
A108: =IF(Data!A107>0,Data!A107,NA()) -> 411.2458191 | B108: =Data!B107-Calculations!B$1 -> 1.382064702 | C108: =Data!C107-Calculations!C$1 -> 1.60493307 | D108: =Data!D107-Calculations!D$1 -> 1.785993835 | E108: =Data!E107-Calculations!E$1 -> 2.073311781 | F108: =Data!F107-Calculations!F$1 -> 2.587427285 | G108: =Data!G107-Calculations!G$1 -> 2.988304373 | H108: =Data!H107-Calculations!H$1 -> 2.978305636 | I108: =Data!I107-Calculations!I$1 -> 3.003968592 | J108: =Data!J107-Calculations!J$1 -> 3.007511648 | K108: =Data!K107-Calculations!K$1 -> 2.945958447 | L108: =Data!L107-Calculations!L$1 -> 2.914346745 | M108: =Data!M107-Calculations!M$1 -> 0 | N108: =Data!N107-Calculations!N$1 -> 0 | O108: =Data!O107-Calculations!O$1 -> 0 | P108: =Data!P107-Calculations!P$1 -> 0 | Q108: =Data!Q107-Calculations!Q$1 -> 0 | R108: =Data!R107-Calculations!R$1 -> 0 | S108: =Data!S107-Calculations!S$1 -> 0 | T108: =Data!T107-Calculations!T$1 -> 0 | U108: =Data!U107-Calculations!U$1 -> 0 | V108: =Data!V107-Calculations!V$1 -> 0 | W108: =Data!W107-Calculations!W$1 -> 0
A109: =IF(Data!A108>0,Data!A108,NA()) -> 411.5873718 | B109: =Data!B108-Calculations!B$1 -> 1.369722208 | C109: =Data!C108-Calculations!C$1 -> 1.587873104 | D109: =Data!D108-Calculations!D$1 -> 1.772843458 | E109: =Data!E108-Calculations!E$1 -> 2.061519476 | F109: =Data!F108-Calculations!F$1 -> 2.537469164 | G109: =Data!G108-Calculations!G$1 -> 2.988304373 | H109: =Data!H108-Calculations!H$1 -> 2.978305636 | I109: =Data!I108-Calculations!I$1 -> 3.003968592 | J109: =Data!J108-Calculations!J$1 -> 3.007511648 | K109: =Data!K108-Calculations!K$1 -> 2.945958447 | L109: =Data!L108-Calculations!L$1 -> 2.914346745 | M109: =Data!M108-Calculations!M$1 -> 0 | N109: =Data!N108-Calculations!N$1 -> 0 | O109: =Data!O108-Calculations!O$1 -> 0 | P109: =Data!P108-Calculations!P$1 -> 0 | Q109: =Data!Q108-Calculations!Q$1 -> 0 | R109: =Data!R108-Calculations!R$1 -> 0 | S109: =Data!S108-Calculations!S$1 -> 0 | T109: =Data!T108-Calculations!T$1 -> 0 | U109: =Data!U108-Calculations!U$1 -> 0 | V109: =Data!V108-Calculations!V$1 -> 0 | W109: =Data!W108-Calculations!W$1 -> 0
A110: =IF(Data!A109>0,Data!A109,NA()) -> 411.928894 | B110: =Data!B109-Calculations!B$1 -> 1.357737088 | C110: =Data!C109-Calculations!C$1 -> 1.567198717 | D110: =Data!D109-Calculations!D$1 -> 1.758650325 | E110: =Data!E109-Calculations!E$1 -> 2.035461963 | F110: =Data!F109-Calculations!F$1 -> 2.527790945 | G110: =Data!G109-Calculations!G$1 -> 2.988304373 | H110: =Data!H109-Calculations!H$1 -> 2.978305636 | I110: =Data!I109-Calculations!I$1 -> 3.003968592 | J110: =Data!J109-Calculations!J$1 -> 3.007511648 | K110: =Data!K109-Calculations!K$1 -> 2.945958447 | L110: =Data!L109-Calculations!L$1 -> 2.914346745 | M110: =Data!M109-Calculations!M$1 -> 0 | N110: =Data!N109-Calculations!N$1 -> 0 | O110: =Data!O109-Calculations!O$1 -> 0 | P110: =Data!P109-Calculations!P$1 -> 0 | Q110: =Data!Q109-Calculations!Q$1 -> 0 | R110: =Data!R109-Calculations!R$1 -> 0 | S110: =Data!S109-Calculations!S$1 -> 0 | T110: =Data!T109-Calculations!T$1 -> 0 | U110: =Data!U109-Calculations!U$1 -> 0 | V110: =Data!V109-Calculations!V$1 -> 0 | W110: =Data!W109-Calculations!W$1 -> 0
A111: =IF(Data!A110>0,Data!A110,NA()) -> 412.2704163 | B111: =Data!B110-Calculations!B$1 -> 1.343090362 | C111: =Data!C110-Calculations!C$1 -> 1.555656405 | D111: =Data!D110-Calculations!D$1 -> 1.750948076 | E111: =Data!E110-Calculations!E$1 -> 2.013976196 | F111: =Data!F110-Calculations!F$1 -> 2.507768218 | G111: =Data!G110-Calculations!G$1 -> 2.988304373 | H111: =Data!H110-Calculations!H$1 -> 2.978305636 | I111: =Data!I110-Calculations!I$1 -> 3.003968592 | J111: =Data!J110-Calculations!J$1 -> 3.007511648 | K111: =Data!K110-Calculations!K$1 -> 2.945958447 | L111: =Data!L110-Calculations!L$1 -> 2.914346745 | M111: =Data!M110-Calculations!M$1 -> 0 | N111: =Data!N110-Calculations!N$1 -> 0 | O111: =Data!O110-Calculations!O$1 -> 0 | P111: =Data!P110-Calculations!P$1 -> 0 | Q111: =Data!Q110-Calculations!Q$1 -> 0 | R111: =Data!R110-Calculations!R$1 -> 0 | S111: =Data!S110-Calculations!S$1 -> 0 | T111: =Data!T110-Calculations!T$1 -> 0 | U111: =Data!U110-Calculations!U$1 -> 0 | V111: =Data!V110-Calculations!V$1 -> 0 | W111: =Data!W110-Calculations!W$1 -> 0
A112: =IF(Data!A111>0,Data!A111,NA()) -> 412.6118469 | B112: =Data!B111-Calculations!B$1 -> 1.335495979 | C112: =Data!C111-Calculations!C$1 -> 1.544016788 | D112: =Data!D111-Calculations!D$1 -> 1.739022752 | E112: =Data!E111-Calculations!E$1 -> 1.998537859 | F112: =Data!F111-Calculations!F$1 -> 2.457258397 | G112: =Data!G111-Calculations!G$1 -> 3.609521505 | H112: =Data!H111-Calculations!H$1 -> 2.978305636 | I112: =Data!I111-Calculations!I$1 -> 3.003968592 | J112: =Data!J111-Calculations!J$1 -> 3.007511648 | K112: =Data!K111-Calculations!K$1 -> 2.945958447 | L112: =Data!L111-Calculations!L$1 -> 2.914346745 | M112: =Data!M111-Calculations!M$1 -> 0 | N112: =Data!N111-Calculations!N$1 -> 0 | O112: =Data!O111-Calculations!O$1 -> 0 | P112: =Data!P111-Calculations!P$1 -> 0 | Q112: =Data!Q111-Calculations!Q$1 -> 0 | R112: =Data!R111-Calculations!R$1 -> 0 | S112: =Data!S111-Calculations!S$1 -> 0 | T112: =Data!T111-Calculations!T$1 -> 0 | U112: =Data!U111-Calculations!U$1 -> 0 | V112: =Data!V111-Calculations!V$1 -> 0 | W112: =Data!W111-Calculations!W$1 -> 0
A113: =IF(Data!A112>0,Data!A112,NA()) -> 412.9532776 | B113: =Data!B112-Calculations!B$1 -> 1.324328112 | C113: =Data!C112-Calculations!C$1 -> 1.535188069 | D113: =Data!D112-Calculations!D$1 -> 1.725086018 | E113: =Data!E112-Calculations!E$1 -> 1.989555825 | F113: =Data!F112-Calculations!F$1 -> 2.437078879 | G113: =Data!G112-Calculations!G$1 -> 3.507381962 | H113: =Data!H112-Calculations!H$1 -> 2.978305636 | I113: =Data!I112-Calculations!I$1 -> 3.003968592 | J113: =Data!J112-Calculations!J$1 -> 3.007511648 | K113: =Data!K112-Calculations!K$1 -> 2.945958447 | L113: =Data!L112-Calculations!L$1 -> 2.914346745 | M113: =Data!M112-Calculations!M$1 -> 0 | N113: =Data!N112-Calculations!N$1 -> 0 | O113: =Data!O112-Calculations!O$1 -> 0 | P113: =Data!P112-Calculations!P$1 -> 0 | Q113: =Data!Q112-Calculations!Q$1 -> 0 | R113: =Data!R112-Calculations!R$1 -> 0 | S113: =Data!S112-Calculations!S$1 -> 0 | T113: =Data!T112-Calculations!T$1 -> 0 | U113: =Data!U112-Calculations!U$1 -> 0 | V113: =Data!V112-Calculations!V$1 -> 0 | W113: =Data!W112-Calculations!W$1 -> 0
A114: =IF(Data!A113>0,Data!A113,NA()) -> 413.2946472 | B114: =Data!B113-Calculations!B$1 -> 1.313249801 | C114: =Data!C113-Calculations!C$1 -> 1.516107702 | D114: =Data!D113-Calculations!D$1 -> 1.706950608 | E114: =Data!E113-Calculations!E$1 -> 1.971645094 | F114: =Data!F113-Calculations!F$1 -> 2.370716066 | G114: =Data!G113-Calculations!G$1 -> 3.261035036 | H114: =Data!H113-Calculations!H$1 -> 2.978305636 | I114: =Data!I113-Calculations!I$1 -> 3.003968592 | J114: =Data!J113-Calculations!J$1 -> 3.007511648 | K114: =Data!K113-Calculations!K$1 -> 2.945958447 | L114: =Data!L113-Calculations!L$1 -> 2.914346745 | M114: =Data!M113-Calculations!M$1 -> 0 | N114: =Data!N113-Calculations!N$1 -> 0 | O114: =Data!O113-Calculations!O$1 -> 0 | P114: =Data!P113-Calculations!P$1 -> 0 | Q114: =Data!Q113-Calculations!Q$1 -> 0 | R114: =Data!R113-Calculations!R$1 -> 0 | S114: =Data!S113-Calculations!S$1 -> 0 | T114: =Data!T113-Calculations!T$1 -> 0 | U114: =Data!U113-Calculations!U$1 -> 0 | V114: =Data!V113-Calculations!V$1 -> 0 | W114: =Data!W113-Calculations!W$1 -> 0
A115: =IF(Data!A114>0,Data!A114,NA()) -> 413.6360168 | B115: =Data!B114-Calculations!B$1 -> 1.298393857 | C115: =Data!C114-Calculations!C$1 -> 1.505081358 | D115: =Data!D114-Calculations!D$1 -> 1.690140201 | E115: =Data!E114-Calculations!E$1 -> 1.953110226 | F115: =Data!F114-Calculations!F$1 -> 2.348699721 | G115: =Data!G114-Calculations!G$1 -> 3.169395811 | H115: =Data!H114-Calculations!H$1 -> 2.978305636 | I115: =Data!I114-Calculations!I$1 -> 3.003968592 | J115: =Data!J114-Calculations!J$1 -> 3.007511648 | K115: =Data!K114-Calculations!K$1 -> 2.945958447 | L115: =Data!L114-Calculations!L$1 -> 2.914346745 | M115: =Data!M114-Calculations!M$1 -> 0 | N115: =Data!N114-Calculations!N$1 -> 0 | O115: =Data!O114-Calculations!O$1 -> 0 | P115: =Data!P114-Calculations!P$1 -> 0 | Q115: =Data!Q114-Calculations!Q$1 -> 0 | R115: =Data!R114-Calculations!R$1 -> 0 | S115: =Data!S114-Calculations!S$1 -> 0 | T115: =Data!T114-Calculations!T$1 -> 0 | U115: =Data!U114-Calculations!U$1 -> 0 | V115: =Data!V114-Calculations!V$1 -> 0 | W115: =Data!W114-Calculations!W$1 -> 0
A116: =IF(Data!A115>0,Data!A115,NA()) -> 413.9773254 | B116: =Data!B115-Calculations!B$1 -> 1.28529448 | C116: =Data!C115-Calculations!C$1 -> 1.493812221 | D116: =Data!D115-Calculations!D$1 -> 1.681836916 | E116: =Data!E115-Calculations!E$1 -> 1.934321476 | F116: =Data!F115-Calculations!F$1 -> 2.315597971 | G116: =Data!G115-Calculations!G$1 -> 2.950913088 | H116: =Data!H115-Calculations!H$1 -> 2.978305636 | I116: =Data!I115-Calculations!I$1 -> 3.003968592 | J116: =Data!J115-Calculations!J$1 -> 3.007511648 | K116: =Data!K115-Calculations!K$1 -> 2.945958447 | L116: =Data!L115-Calculations!L$1 -> 2.914346745 | M116: =Data!M115-Calculations!M$1 -> 0 | N116: =Data!N115-Calculations!N$1 -> 0 | O116: =Data!O115-Calculations!O$1 -> 0 | P116: =Data!P115-Calculations!P$1 -> 0 | Q116: =Data!Q115-Calculations!Q$1 -> 0 | R116: =Data!R115-Calculations!R$1 -> 0 | S116: =Data!S115-Calculations!S$1 -> 0 | T116: =Data!T115-Calculations!T$1 -> 0 | U116: =Data!U115-Calculations!U$1 -> 0 | V116: =Data!V115-Calculations!V$1 -> 0 | W116: =Data!W115-Calculations!W$1 -> 0
A117: =IF(Data!A116>0,Data!A116,NA()) -> 414.3186035 | B117: =Data!B116-Calculations!B$1 -> 1.27125598 | C117: =Data!C116-Calculations!C$1 -> 1.480654018 | D117: =Data!D116-Calculations!D$1 -> 1.667368534 | E117: =Data!E116-Calculations!E$1 -> 1.923899607 | F117: =Data!F116-Calculations!F$1 -> 2.332739875 | G117: =Data!G116-Calculations!G$1 -> 2.929784786 | H117: =Data!H116-Calculations!H$1 -> 2.978305636 | I117: =Data!I116-Calculations!I$1 -> 3.003968592 | J117: =Data!J116-Calculations!J$1 -> 3.007511648 | K117: =Data!K116-Calculations!K$1 -> 2.945958447 | L117: =Data!L116-Calculations!L$1 -> 2.914346745 | M117: =Data!M116-Calculations!M$1 -> 0 | N117: =Data!N116-Calculations!N$1 -> 0 | O117: =Data!O116-Calculations!O$1 -> 0 | P117: =Data!P116-Calculations!P$1 -> 0 | Q117: =Data!Q116-Calculations!Q$1 -> 0 | R117: =Data!R116-Calculations!R$1 -> 0 | S117: =Data!S116-Calculations!S$1 -> 0 | T117: =Data!T116-Calculations!T$1 -> 0 | U117: =Data!U116-Calculations!U$1 -> 0 | V117: =Data!V116-Calculations!V$1 -> 0 | W117: =Data!W116-Calculations!W$1 -> 0
A118: =IF(Data!A117>0,Data!A117,NA()) -> 414.6598816 | B118: =Data!B117-Calculations!B$1 -> 1.26314206 | C118: =Data!C117-Calculations!C$1 -> 1.467698984 | D118: =Data!D117-Calculations!D$1 -> 1.658034656 | E118: =Data!E117-Calculations!E$1 -> 1.91367209 | F118: =Data!F117-Calculations!F$1 -> 2.308530861 | G118: =Data!G117-Calculations!G$1 -> 2.879845588 | H118: =Data!H117-Calculations!H$1 -> 2.978305636 | I118: =Data!I117-Calculations!I$1 -> 3.003968592 | J118: =Data!J117-Calculations!J$1 -> 3.007511648 | K118: =Data!K117-Calculations!K$1 -> 2.945958447 | L118: =Data!L117-Calculations!L$1 -> 2.914346745 | M118: =Data!M117-Calculations!M$1 -> 0 | N118: =Data!N117-Calculations!N$1 -> 0 | O118: =Data!O117-Calculations!O$1 -> 0 | P118: =Data!P117-Calculations!P$1 -> 0 | Q118: =Data!Q117-Calculations!Q$1 -> 0 | R118: =Data!R117-Calculations!R$1 -> 0 | S118: =Data!S117-Calculations!S$1 -> 0 | T118: =Data!T117-Calculations!T$1 -> 0 | U118: =Data!U117-Calculations!U$1 -> 0 | V118: =Data!V117-Calculations!V$1 -> 0 | W118: =Data!W117-Calculations!W$1 -> 0
A119: =IF(Data!A118>0,Data!A118,NA()) -> 415.0010681 | B119: =Data!B118-Calculations!B$1 -> 1.251682037 | C119: =Data!C118-Calculations!C$1 -> 1.45821953 | D119: =Data!D118-Calculations!D$1 -> 1.641261421 | E119: =Data!E118-Calculations!E$1 -> 1.911708741 | F119: =Data!F118-Calculations!F$1 -> 2.277112811 | G119: =Data!G118-Calculations!G$1 -> 2.93033304 | H119: =Data!H118-Calculations!H$1 -> 2.978305636 | I119: =Data!I118-Calculations!I$1 -> 3.003968592 | J119: =Data!J118-Calculations!J$1 -> 3.007511648 | K119: =Data!K118-Calculations!K$1 -> 2.945958447 | L119: =Data!L118-Calculations!L$1 -> 2.914346745 | M119: =Data!M118-Calculations!M$1 -> 0 | N119: =Data!N118-Calculations!N$1 -> 0 | O119: =Data!O118-Calculations!O$1 -> 0 | P119: =Data!P118-Calculations!P$1 -> 0 | Q119: =Data!Q118-Calculations!Q$1 -> 0 | R119: =Data!R118-Calculations!R$1 -> 0 | S119: =Data!S118-Calculations!S$1 -> 0 | T119: =Data!T118-Calculations!T$1 -> 0 | U119: =Data!U118-Calculations!U$1 -> 0 | V119: =Data!V118-Calculations!V$1 -> 0 | W119: =Data!W118-Calculations!W$1 -> 0
A120: =IF(Data!A119>0,Data!A119,NA()) -> 415.3422852 | B120: =Data!B119-Calculations!B$1 -> 1.244007597 | C120: =Data!C119-Calculations!C$1 -> 1.453048865 | D120: =Data!D119-Calculations!D$1 -> 1.638785556 | E120: =Data!E119-Calculations!E$1 -> 1.900779771 | F120: =Data!F119-Calculations!F$1 -> 2.254172722 | G120: =Data!G119-Calculations!G$1 -> 2.899145591 | H120: =Data!H119-Calculations!H$1 -> 2.978305636 | I120: =Data!I119-Calculations!I$1 -> 3.003968592 | J120: =Data!J119-Calculations!J$1 -> 3.007511648 | K120: =Data!K119-Calculations!K$1 -> 2.945958447 | L120: =Data!L119-Calculations!L$1 -> 2.914346745 | M120: =Data!M119-Calculations!M$1 -> 0 | N120: =Data!N119-Calculations!N$1 -> 0 | O120: =Data!O119-Calculations!O$1 -> 0 | P120: =Data!P119-Calculations!P$1 -> 0 | Q120: =Data!Q119-Calculations!Q$1 -> 0 | R120: =Data!R119-Calculations!R$1 -> 0 | S120: =Data!S119-Calculations!S$1 -> 0 | T120: =Data!T119-Calculations!T$1 -> 0 | U120: =Data!U119-Calculations!U$1 -> 0 | V120: =Data!V119-Calculations!V$1 -> 0 | W120: =Data!W119-Calculations!W$1 -> 0
A121: =IF(Data!A120>0,Data!A120,NA()) -> 415.6834106 | B121: =Data!B120-Calculations!B$1 -> 1.232959443 | C121: =Data!C120-Calculations!C$1 -> 1.440577652 | D121: =Data!D120-Calculations!D$1 -> 1.624838278 | E121: =Data!E120-Calculations!E$1 -> 1.887267226 | F121: =Data!F120-Calculations!F$1 -> 2.247774623 | G121: =Data!G120-Calculations!G$1 -> 2.839845125 | H121: =Data!H120-Calculations!H$1 -> 2.978305636 | I121: =Data!I120-Calculations!I$1 -> 3.003968592 | J121: =Data!J120-Calculations!J$1 -> 3.007511648 | K121: =Data!K120-Calculations!K$1 -> 2.945958447 | L121: =Data!L120-Calculations!L$1 -> 2.914346745 | M121: =Data!M120-Calculations!M$1 -> 0 | N121: =Data!N120-Calculations!N$1 -> 0 | O121: =Data!O120-Calculations!O$1 -> 0 | P121: =Data!P120-Calculations!P$1 -> 0 | Q121: =Data!Q120-Calculations!Q$1 -> 0 | R121: =Data!R120-Calculations!R$1 -> 0 | S121: =Data!S120-Calculations!S$1 -> 0 | T121: =Data!T120-Calculations!T$1 -> 0 | U121: =Data!U120-Calculations!U$1 -> 0 | V121: =Data!V120-Calculations!V$1 -> 0 | W121: =Data!W120-Calculations!W$1 -> 0
A122: =IF(Data!A121>0,Data!A121,NA()) -> 416.0245667 | B122: =Data!B121-Calculations!B$1 -> 1.224933029 | C122: =Data!C121-Calculations!C$1 -> 1.429802644 | D122: =Data!D121-Calculations!D$1 -> 1.613848973 | E122: =Data!E121-Calculations!E$1 -> 1.870618726 | F122: =Data!F121-Calculations!F$1 -> 2.234619501 | G122: =Data!G121-Calculations!G$1 -> 2.829626065 | H122: =Data!H121-Calculations!H$1 -> 2.978305636 | I122: =Data!I121-Calculations!I$1 -> 3.003968592 | J122: =Data!J121-Calculations!J$1 -> 3.007511648 | K122: =Data!K121-Calculations!K$1 -> 2.945958447 | L122: =Data!L121-Calculations!L$1 -> 2.914346745 | M122: =Data!M121-Calculations!M$1 -> 0 | N122: =Data!N121-Calculations!N$1 -> 0 | O122: =Data!O121-Calculations!O$1 -> 0 | P122: =Data!P121-Calculations!P$1 -> 0 | Q122: =Data!Q121-Calculations!Q$1 -> 0 | R122: =Data!R121-Calculations!R$1 -> 0 | S122: =Data!S121-Calculations!S$1 -> 0 | T122: =Data!T121-Calculations!T$1 -> 0 | U122: =Data!U121-Calculations!U$1 -> 0 | V122: =Data!V121-Calculations!V$1 -> 0 | W122: =Data!W121-Calculations!W$1 -> 0
A123: =IF(Data!A122>0,Data!A122,NA()) -> 416.3656006 | B123: =Data!B122-Calculations!B$1 -> 1.211924187 | C123: =Data!C122-Calculations!C$1 -> 1.424021735 | D123: =Data!D122-Calculations!D$1 -> 1.60304104 | E123: =Data!E122-Calculations!E$1 -> 1.842373327 | F123: =Data!F122-Calculations!F$1 -> 2.214836339 | G123: =Data!G122-Calculations!G$1 -> 2.71365385 | H123: =Data!H122-Calculations!H$1 -> 2.978305636 | I123: =Data!I122-Calculations!I$1 -> 3.003968592 | J123: =Data!J122-Calculations!J$1 -> 3.007511648 | K123: =Data!K122-Calculations!K$1 -> 2.945958447 | L123: =Data!L122-Calculations!L$1 -> 2.914346745 | M123: =Data!M122-Calculations!M$1 -> 0 | N123: =Data!N122-Calculations!N$1 -> 0 | O123: =Data!O122-Calculations!O$1 -> 0 | P123: =Data!P122-Calculations!P$1 -> 0 | Q123: =Data!Q122-Calculations!Q$1 -> 0 | R123: =Data!R122-Calculations!R$1 -> 0 | S123: =Data!S122-Calculations!S$1 -> 0 | T123: =Data!T122-Calculations!T$1 -> 0 | U123: =Data!U122-Calculations!U$1 -> 0 | V123: =Data!V122-Calculations!V$1 -> 0 | W123: =Data!W122-Calculations!W$1 -> 0
A124: =IF(Data!A123>0,Data!A123,NA()) -> 416.706665 | B124: =Data!B123-Calculations!B$1 -> 1.201350285 | C124: =Data!C123-Calculations!C$1 -> 1.415387052 | D124: =Data!D123-Calculations!D$1 -> 1.595403116 | E124: =Data!E123-Calculations!E$1 -> 1.828682764 | F124: =Data!F123-Calculations!F$1 -> 2.211849922 | G124: =Data!G123-Calculations!G$1 -> 2.689403238 | H124: =Data!H123-Calculations!H$1 -> 2.978305636 | I124: =Data!I123-Calculations!I$1 -> 3.003968592 | J124: =Data!J123-Calculations!J$1 -> 3.007511648 | K124: =Data!K123-Calculations!K$1 -> 2.945958447 | L124: =Data!L123-Calculations!L$1 -> 2.914346745 | M124: =Data!M123-Calculations!M$1 -> 0 | N124: =Data!N123-Calculations!N$1 -> 0 | O124: =Data!O123-Calculations!O$1 -> 0 | P124: =Data!P123-Calculations!P$1 -> 0 | Q124: =Data!Q123-Calculations!Q$1 -> 0 | R124: =Data!R123-Calculations!R$1 -> 0 | S124: =Data!S123-Calculations!S$1 -> 0 | T124: =Data!T123-Calculations!T$1 -> 0 | U124: =Data!U123-Calculations!U$1 -> 0 | V124: =Data!V123-Calculations!V$1 -> 0 | W124: =Data!W123-Calculations!W$1 -> 0
A125: =IF(Data!A124>0,Data!A124,NA()) -> 417.0476685 | B125: =Data!B124-Calculations!B$1 -> 1.1912479 | C125: =Data!C124-Calculations!C$1 -> 1.404269177 | D125: =Data!D124-Calculations!D$1 -> 1.584172469 | E125: =Data!E124-Calculations!E$1 -> 1.80941485 | F125: =Data!F124-Calculations!F$1 -> 2.205684863 | G125: =Data!G124-Calculations!G$1 -> 2.662884764 | H125: =Data!H124-Calculations!H$1 -> 2.978305636 | I125: =Data!I124-Calculations!I$1 -> 3.003968592 | J125: =Data!J124-Calculations!J$1 -> 3.007511648 | K125: =Data!K124-Calculations!K$1 -> 2.945958447 | L125: =Data!L124-Calculations!L$1 -> 2.914346745 | M125: =Data!M124-Calculations!M$1 -> 0 | N125: =Data!N124-Calculations!N$1 -> 0 | O125: =Data!O124-Calculations!O$1 -> 0 | P125: =Data!P124-Calculations!P$1 -> 0 | Q125: =Data!Q124-Calculations!Q$1 -> 0 | R125: =Data!R124-Calculations!R$1 -> 0 | S125: =Data!S124-Calculations!S$1 -> 0 | T125: =Data!T124-Calculations!T$1 -> 0 | U125: =Data!U124-Calculations!U$1 -> 0 | V125: =Data!V124-Calculations!V$1 -> 0 | W125: =Data!W124-Calculations!W$1 -> 0
A126: =IF(Data!A125>0,Data!A125,NA()) -> 417.3887024 | B126: =Data!B125-Calculations!B$1 -> 1.181843251 | C126: =Data!C125-Calculations!C$1 -> 1.38625033 | D126: =Data!D125-Calculations!D$1 -> 1.566469253 | E126: =Data!E125-Calculations!E$1 -> 1.809911732 | F126: =Data!F125-Calculations!F$1 -> 2.193194327 | G126: =Data!G125-Calculations!G$1 -> 2.621362489 | H126: =Data!H125-Calculations!H$1 -> 2.978305636 | I126: =Data!I125-Calculations!I$1 -> 3.003968592 | J126: =Data!J125-Calculations!J$1 -> 3.007511648 | K126: =Data!K125-Calculations!K$1 -> 2.945958447 | L126: =Data!L125-Calculations!L$1 -> 2.914346745 | M126: =Data!M125-Calculations!M$1 -> 0 | N126: =Data!N125-Calculations!N$1 -> 0 | O126: =Data!O125-Calculations!O$1 -> 0 | P126: =Data!P125-Calculations!P$1 -> 0 | Q126: =Data!Q125-Calculations!Q$1 -> 0 | R126: =Data!R125-Calculations!R$1 -> 0 | S126: =Data!S125-Calculations!S$1 -> 0 | T126: =Data!T125-Calculations!T$1 -> 0 | U126: =Data!U125-Calculations!U$1 -> 0 | V126: =Data!V125-Calculations!V$1 -> 0 | W126: =Data!W125-Calculations!W$1 -> 0
A127: =IF(Data!A126>0,Data!A126,NA()) -> 417.7296143 | B127: =Data!B126-Calculations!B$1 -> 1.172352611 | C127: =Data!C126-Calculations!C$1 -> 1.377201485 | D127: =Data!D126-Calculations!D$1 -> 1.552901142 | E127: =Data!E126-Calculations!E$1 -> 1.79643492 | F127: =Data!F126-Calculations!F$1 -> 2.176106846 | G127: =Data!G126-Calculations!G$1 -> 2.613237087 | H127: =Data!H126-Calculations!H$1 -> 2.978305636 | I127: =Data!I126-Calculations!I$1 -> 3.003968592 | J127: =Data!J126-Calculations!J$1 -> 3.007511648 | K127: =Data!K126-Calculations!K$1 -> 2.945958447 | L127: =Data!L126-Calculations!L$1 -> 2.914346745 | M127: =Data!M126-Calculations!M$1 -> 0 | N127: =Data!N126-Calculations!N$1 -> 0 | O127: =Data!O126-Calculations!O$1 -> 0 | P127: =Data!P126-Calculations!P$1 -> 0 | Q127: =Data!Q126-Calculations!Q$1 -> 0 | R127: =Data!R126-Calculations!R$1 -> 0 | S127: =Data!S126-Calculations!S$1 -> 0 | T127: =Data!T126-Calculations!T$1 -> 0 | U127: =Data!U126-Calculations!U$1 -> 0 | V127: =Data!V126-Calculations!V$1 -> 0 | W127: =Data!W126-Calculations!W$1 -> 0
A128: =IF(Data!A127>0,Data!A127,NA()) -> 418.0705566 | B128: =Data!B127-Calculations!B$1 -> 1.164349759 | C128: =Data!C127-Calculations!C$1 -> 1.368076049 | D128: =Data!D127-Calculations!D$1 -> 1.546987335 | E128: =Data!E127-Calculations!E$1 -> 1.790015639 | F128: =Data!F127-Calculations!F$1 -> 2.152802116 | G128: =Data!G127-Calculations!G$1 -> 2.586306364 | H128: =Data!H127-Calculations!H$1 -> 2.978305636 | I128: =Data!I127-Calculations!I$1 -> 3.003968592 | J128: =Data!J127-Calculations!J$1 -> 3.007511648 | K128: =Data!K127-Calculations!K$1 -> 2.945958447 | L128: =Data!L127-Calculations!L$1 -> 2.914346745 | M128: =Data!M127-Calculations!M$1 -> 0 | N128: =Data!N127-Calculations!N$1 -> 0 | O128: =Data!O127-Calculations!O$1 -> 0 | P128: =Data!P127-Calculations!P$1 -> 0 | Q128: =Data!Q127-Calculations!Q$1 -> 0 | R128: =Data!R127-Calculations!R$1 -> 0 | S128: =Data!S127-Calculations!S$1 -> 0 | T128: =Data!T127-Calculations!T$1 -> 0 | U128: =Data!U127-Calculations!U$1 -> 0 | V128: =Data!V127-Calculations!V$1 -> 0 | W128: =Data!W127-Calculations!W$1 -> 0
A129: =IF(Data!A128>0,Data!A128,NA()) -> 418.4114075 | B129: =Data!B128-Calculations!B$1 -> 1.155063674 | C129: =Data!C128-Calculations!C$1 -> 1.358258656 | D129: =Data!D128-Calculations!D$1 -> 1.540858426 | E129: =Data!E128-Calculations!E$1 -> 1.783535074 | F129: =Data!F128-Calculations!F$1 -> 2.140958877 | G129: =Data!G128-Calculations!G$1 -> 2.610678569 | H129: =Data!H128-Calculations!H$1 -> 2.978305636 | I129: =Data!I128-Calculations!I$1 -> 3.003968592 | J129: =Data!J128-Calculations!J$1 -> 3.007511648 | K129: =Data!K128-Calculations!K$1 -> 2.945958447 | L129: =Data!L128-Calculations!L$1 -> 2.914346745 | M129: =Data!M128-Calculations!M$1 -> 0 | N129: =Data!N128-Calculations!N$1 -> 0 | O129: =Data!O128-Calculations!O$1 -> 0 | P129: =Data!P128-Calculations!P$1 -> 0 | Q129: =Data!Q128-Calculations!Q$1 -> 0 | R129: =Data!R128-Calculations!R$1 -> 0 | S129: =Data!S128-Calculations!S$1 -> 0 | T129: =Data!T128-Calculations!T$1 -> 0 | U129: =Data!U128-Calculations!U$1 -> 0 | V129: =Data!V128-Calculations!V$1 -> 0 | W129: =Data!W128-Calculations!W$1 -> 0
A130: =IF(Data!A129>0,Data!A129,NA()) -> 418.7522888 | B130: =Data!B129-Calculations!B$1 -> 1.146147249 | C130: =Data!C129-Calculations!C$1 -> 1.346883716 | D130: =Data!D129-Calculations!D$1 -> 1.531966326 | E130: =Data!E129-Calculations!E$1 -> 1.778307934 | F130: =Data!F129-Calculations!F$1 -> 2.12338263 | G130: =Data!G129-Calculations!G$1 -> 2.609105319 | H130: =Data!H129-Calculations!H$1 -> 2.978305636 | I130: =Data!I129-Calculations!I$1 -> 3.003968592 | J130: =Data!J129-Calculations!J$1 -> 3.007511648 | K130: =Data!K129-Calculations!K$1 -> 2.945958447 | L130: =Data!L129-Calculations!L$1 -> 2.914346745 | M130: =Data!M129-Calculations!M$1 -> 0 | N130: =Data!N129-Calculations!N$1 -> 0 | O130: =Data!O129-Calculations!O$1 -> 0 | P130: =Data!P129-Calculations!P$1 -> 0 | Q130: =Data!Q129-Calculations!Q$1 -> 0 | R130: =Data!R129-Calculations!R$1 -> 0 | S130: =Data!S129-Calculations!S$1 -> 0 | T130: =Data!T129-Calculations!T$1 -> 0 | U130: =Data!U129-Calculations!U$1 -> 0 | V130: =Data!V129-Calculations!V$1 -> 0 | W130: =Data!W129-Calculations!W$1 -> 0
A131: =IF(Data!A130>0,Data!A130,NA()) -> 419.0930786 | B131: =Data!B130-Calculations!B$1 -> 1.133815271 | C131: =Data!C130-Calculations!C$1 -> 1.336945353 | D131: =Data!D130-Calculations!D$1 -> 1.522393446 | E131: =Data!E130-Calculations!E$1 -> 1.766369852 | F131: =Data!F130-Calculations!F$1 -> 2.115052341 | G131: =Data!G130-Calculations!G$1 -> 2.559668916 | H131: =Data!H130-Calculations!H$1 -> 2.978305636 | I131: =Data!I130-Calculations!I$1 -> 3.003968592 | J131: =Data!J130-Calculations!J$1 -> 3.007511648 | K131: =Data!K130-Calculations!K$1 -> 2.945958447 | L131: =Data!L130-Calculations!L$1 -> 2.914346745 | M131: =Data!M130-Calculations!M$1 -> 0 | N131: =Data!N130-Calculations!N$1 -> 0 | O131: =Data!O130-Calculations!O$1 -> 0 | P131: =Data!P130-Calculations!P$1 -> 0 | Q131: =Data!Q130-Calculations!Q$1 -> 0 | R131: =Data!R130-Calculations!R$1 -> 0 | S131: =Data!S130-Calculations!S$1 -> 0 | T131: =Data!T130-Calculations!T$1 -> 0 | U131: =Data!U130-Calculations!U$1 -> 0 | V131: =Data!V130-Calculations!V$1 -> 0 | W131: =Data!W130-Calculations!W$1 -> 0
A132: =IF(Data!A131>0,Data!A131,NA()) -> 419.4338989 | B132: =Data!B131-Calculations!B$1 -> 1.126580496 | C132: =Data!C131-Calculations!C$1 -> 1.333050133 | D132: =Data!D131-Calculations!D$1 -> 1.51312732 | E132: =Data!E131-Calculations!E$1 -> 1.745891025 | F132: =Data!F131-Calculations!F$1 -> 2.103261975 | G132: =Data!G131-Calculations!G$1 -> 2.511855756 | H132: =Data!H131-Calculations!H$1 -> 2.978305636 | I132: =Data!I131-Calculations!I$1 -> 3.003968592 | J132: =Data!J131-Calculations!J$1 -> 3.007511648 | K132: =Data!K131-Calculations!K$1 -> 2.945958447 | L132: =Data!L131-Calculations!L$1 -> 2.914346745 | M132: =Data!M131-Calculations!M$1 -> 0 | N132: =Data!N131-Calculations!N$1 -> 0 | O132: =Data!O131-Calculations!O$1 -> 0 | P132: =Data!P131-Calculations!P$1 -> 0 | Q132: =Data!Q131-Calculations!Q$1 -> 0 | R132: =Data!R131-Calculations!R$1 -> 0 | S132: =Data!S131-Calculations!S$1 -> 0 | T132: =Data!T131-Calculations!T$1 -> 0 | U132: =Data!U131-Calculations!U$1 -> 0 | V132: =Data!V131-Calculations!V$1 -> 0 | W132: =Data!W131-Calculations!W$1 -> 0
A133: =IF(Data!A132>0,Data!A132,NA()) -> 419.7745972 | B133: =Data!B132-Calculations!B$1 -> 1.114987217 | C133: =Data!C132-Calculations!C$1 -> 1.324638633 | D133: =Data!D132-Calculations!D$1 -> 1.504337539 | E133: =Data!E132-Calculations!E$1 -> 1.730664163 | F133: =Data!F132-Calculations!F$1 -> 2.080386794 | G133: =Data!G132-Calculations!G$1 -> 2.477001098 | H133: =Data!H132-Calculations!H$1 -> 2.978305636 | I133: =Data!I132-Calculations!I$1 -> 3.003968592 | J133: =Data!J132-Calculations!J$1 -> 3.007511648 | K133: =Data!K132-Calculations!K$1 -> 2.945958447 | L133: =Data!L132-Calculations!L$1 -> 2.914346745 | M133: =Data!M132-Calculations!M$1 -> 0 | N133: =Data!N132-Calculations!N$1 -> 0 | O133: =Data!O132-Calculations!O$1 -> 0 | P133: =Data!P132-Calculations!P$1 -> 0 | Q133: =Data!Q132-Calculations!Q$1 -> 0 | R133: =Data!R132-Calculations!R$1 -> 0 | S133: =Data!S132-Calculations!S$1 -> 0 | T133: =Data!T132-Calculations!T$1 -> 0 | U133: =Data!U132-Calculations!U$1 -> 0 | V133: =Data!V132-Calculations!V$1 -> 0 | W133: =Data!W132-Calculations!W$1 -> 0
A134: =IF(Data!A133>0,Data!A133,NA()) -> 420.1153259 | B134: =Data!B133-Calculations!B$1 -> 1.108379232 | C134: =Data!C133-Calculations!C$1 -> 1.319103575 | D134: =Data!D133-Calculations!D$1 -> 1.494148951 | E134: =Data!E133-Calculations!E$1 -> 1.717259299 | F134: =Data!F133-Calculations!F$1 -> 2.074125635 | G134: =Data!G133-Calculations!G$1 -> 2.467437858 | H134: =Data!H133-Calculations!H$1 -> 2.978305636 | I134: =Data!I133-Calculations!I$1 -> 3.003968592 | J134: =Data!J133-Calculations!J$1 -> 3.007511648 | K134: =Data!K133-Calculations!K$1 -> 2.945958447 | L134: =Data!L133-Calculations!L$1 -> 2.914346745 | M134: =Data!M133-Calculations!M$1 -> 0 | N134: =Data!N133-Calculations!N$1 -> 0 | O134: =Data!O133-Calculations!O$1 -> 0 | P134: =Data!P133-Calculations!P$1 -> 0 | Q134: =Data!Q133-Calculations!Q$1 -> 0 | R134: =Data!R133-Calculations!R$1 -> 0 | S134: =Data!S133-Calculations!S$1 -> 0 | T134: =Data!T133-Calculations!T$1 -> 0 | U134: =Data!U133-Calculations!U$1 -> 0 | V134: =Data!V133-Calculations!V$1 -> 0 | W134: =Data!W133-Calculations!W$1 -> 0
A135: =IF(Data!A134>0,Data!A134,NA()) -> 420.4560242 | B135: =Data!B134-Calculations!B$1 -> 1.099225451 | C135: =Data!C134-Calculations!C$1 -> 1.308070399 | D135: =Data!D134-Calculations!D$1 -> 1.484231017 | E135: =Data!E134-Calculations!E$1 -> 1.713498452 | F135: =Data!F134-Calculations!F$1 -> 2.068021694 | G135: =Data!G134-Calculations!G$1 -> 2.477351868 | H135: =Data!H134-Calculations!H$1 -> 2.978305636 | I135: =Data!I134-Calculations!I$1 -> 3.003968592 | J135: =Data!J134-Calculations!J$1 -> 3.007511648 | K135: =Data!K134-Calculations!K$1 -> 2.945958447 | L135: =Data!L134-Calculations!L$1 -> 2.914346745 | M135: =Data!M134-Calculations!M$1 -> 0 | N135: =Data!N134-Calculations!N$1 -> 0 | O135: =Data!O134-Calculations!O$1 -> 0 | P135: =Data!P134-Calculations!P$1 -> 0 | Q135: =Data!Q134-Calculations!Q$1 -> 0 | R135: =Data!R134-Calculations!R$1 -> 0 | S135: =Data!S134-Calculations!S$1 -> 0 | T135: =Data!T134-Calculations!T$1 -> 0 | U135: =Data!U134-Calculations!U$1 -> 0 | V135: =Data!V134-Calculations!V$1 -> 0 | W135: =Data!W134-Calculations!W$1 -> 0
A136: =IF(Data!A135>0,Data!A135,NA()) -> 420.7966614 | B136: =Data!B135-Calculations!B$1 -> 1.093520222 | C136: =Data!C135-Calculations!C$1 -> 1.299730476 | D136: =Data!D135-Calculations!D$1 -> 1.475715833 | E136: =Data!E135-Calculations!E$1 -> 1.702763018 | F136: =Data!F135-Calculations!F$1 -> 2.060725365 | G136: =Data!G135-Calculations!G$1 -> 2.460868144 | H136: =Data!H135-Calculations!H$1 -> 2.978305636 | I136: =Data!I135-Calculations!I$1 -> 3.003968592 | J136: =Data!J135-Calculations!J$1 -> 3.007511648 | K136: =Data!K135-Calculations!K$1 -> 2.945958447 | L136: =Data!L135-Calculations!L$1 -> 2.914346745 | M136: =Data!M135-Calculations!M$1 -> 0 | N136: =Data!N135-Calculations!N$1 -> 0 | O136: =Data!O135-Calculations!O$1 -> 0 | P136: =Data!P135-Calculations!P$1 -> 0 | Q136: =Data!Q135-Calculations!Q$1 -> 0 | R136: =Data!R135-Calculations!R$1 -> 0 | S136: =Data!S135-Calculations!S$1 -> 0 | T136: =Data!T135-Calculations!T$1 -> 0 | U136: =Data!U135-Calculations!U$1 -> 0 | V136: =Data!V135-Calculations!V$1 -> 0 | W136: =Data!W135-Calculations!W$1 -> 0
A137: =IF(Data!A136>0,Data!A136,NA()) -> 421.1372986 | B137: =Data!B136-Calculations!B$1 -> 1.086233643 | C137: =Data!C136-Calculations!C$1 -> 1.290977431 | D137: =Data!D136-Calculations!D$1 -> 1.470529084 | E137: =Data!E136-Calculations!E$1 -> 1.701776399 | F137: =Data!F136-Calculations!F$1 -> 2.055478232 | G137: =Data!G136-Calculations!G$1 -> 2.418097086 | H137: =Data!H136-Calculations!H$1 -> 2.978305636 | I137: =Data!I136-Calculations!I$1 -> 3.003968592 | J137: =Data!J136-Calculations!J$1 -> 3.007511648 | K137: =Data!K136-Calculations!K$1 -> 2.945958447 | L137: =Data!L136-Calculations!L$1 -> 2.914346745 | M137: =Data!M136-Calculations!M$1 -> 0 | N137: =Data!N136-Calculations!N$1 -> 0 | O137: =Data!O136-Calculations!O$1 -> 0 | P137: =Data!P136-Calculations!P$1 -> 0 | Q137: =Data!Q136-Calculations!Q$1 -> 0 | R137: =Data!R136-Calculations!R$1 -> 0 | S137: =Data!S136-Calculations!S$1 -> 0 | T137: =Data!T136-Calculations!T$1 -> 0 | U137: =Data!U136-Calculations!U$1 -> 0 | V137: =Data!V136-Calculations!V$1 -> 0 | W137: =Data!W136-Calculations!W$1 -> 0
A138: =IF(Data!A137>0,Data!A137,NA()) -> 421.4778442 | B138: =Data!B137-Calculations!B$1 -> 1.078184286 | C138: =Data!C137-Calculations!C$1 -> 1.283679627 | D138: =Data!D137-Calculations!D$1 -> 1.466024883 | E138: =Data!E137-Calculations!E$1 -> 1.693417443 | F138: =Data!F137-Calculations!F$1 -> 2.04960636 | G138: =Data!G137-Calculations!G$1 -> 2.389677929 | H138: =Data!H137-Calculations!H$1 -> 2.978305636 | I138: =Data!I137-Calculations!I$1 -> 3.003968592 | J138: =Data!J137-Calculations!J$1 -> 3.007511648 | K138: =Data!K137-Calculations!K$1 -> 2.945958447 | L138: =Data!L137-Calculations!L$1 -> 2.914346745 | M138: =Data!M137-Calculations!M$1 -> 0 | N138: =Data!N137-Calculations!N$1 -> 0 | O138: =Data!O137-Calculations!O$1 -> 0 | P138: =Data!P137-Calculations!P$1 -> 0 | Q138: =Data!Q137-Calculations!Q$1 -> 0 | R138: =Data!R137-Calculations!R$1 -> 0 | S138: =Data!S137-Calculations!S$1 -> 0 | T138: =Data!T137-Calculations!T$1 -> 0 | U138: =Data!U137-Calculations!U$1 -> 0 | V138: =Data!V137-Calculations!V$1 -> 0 | W138: =Data!W137-Calculations!W$1 -> 0
A139: =IF(Data!A138>0,Data!A138,NA()) -> 421.8184204 | B139: =Data!B138-Calculations!B$1 -> 1.071067605 | C139: =Data!C138-Calculations!C$1 -> 1.277731288 | D139: =Data!D138-Calculations!D$1 -> 1.461279252 | E139: =Data!E138-Calculations!E$1 -> 1.689256791 | F139: =Data!F138-Calculations!F$1 -> 2.042718701 | G139: =Data!G138-Calculations!G$1 -> 2.35197041 | H139: =Data!H138-Calculations!H$1 -> 2.978305636 | I139: =Data!I138-Calculations!I$1 -> 3.003968592 | J139: =Data!J138-Calculations!J$1 -> 3.007511648 | K139: =Data!K138-Calculations!K$1 -> 2.945958447 | L139: =Data!L138-Calculations!L$1 -> 2.914346745 | M139: =Data!M138-Calculations!M$1 -> 0 | N139: =Data!N138-Calculations!N$1 -> 0 | O139: =Data!O138-Calculations!O$1 -> 0 | P139: =Data!P138-Calculations!P$1 -> 0 | Q139: =Data!Q138-Calculations!Q$1 -> 0 | R139: =Data!R138-Calculations!R$1 -> 0 | S139: =Data!S138-Calculations!S$1 -> 0 | T139: =Data!T138-Calculations!T$1 -> 0 | U139: =Data!U138-Calculations!U$1 -> 0 | V139: =Data!V138-Calculations!V$1 -> 0 | W139: =Data!W138-Calculations!W$1 -> 0
A140: =IF(Data!A139>0,Data!A139,NA()) -> 422.158905 | B140: =Data!B139-Calculations!B$1 -> 1.062710831 | C140: =Data!C139-Calculations!C$1 -> 1.270286101 | D140: =Data!D139-Calculations!D$1 -> 1.450918465 | E140: =Data!E139-Calculations!E$1 -> 1.680508848 | F140: =Data!F139-Calculations!F$1 -> 2.025021774 | G140: =Data!G139-Calculations!G$1 -> 2.355953744 | H140: =Data!H139-Calculations!H$1 -> 3.647813347 | I140: =Data!I139-Calculations!I$1 -> 3.003968592 | J140: =Data!J139-Calculations!J$1 -> 3.007511648 | K140: =Data!K139-Calculations!K$1 -> 2.945958447 | L140: =Data!L139-Calculations!L$1 -> 2.914346745 | M140: =Data!M139-Calculations!M$1 -> 0 | N140: =Data!N139-Calculations!N$1 -> 0 | O140: =Data!O139-Calculations!O$1 -> 0 | P140: =Data!P139-Calculations!P$1 -> 0 | Q140: =Data!Q139-Calculations!Q$1 -> 0 | R140: =Data!R139-Calculations!R$1 -> 0 | S140: =Data!S139-Calculations!S$1 -> 0 | T140: =Data!T139-Calculations!T$1 -> 0 | U140: =Data!U139-Calculations!U$1 -> 0 | V140: =Data!V139-Calculations!V$1 -> 0 | W140: =Data!W139-Calculations!W$1 -> 0
A141: =IF(Data!A140>0,Data!A140,NA()) -> 422.4993896 | B141: =Data!B140-Calculations!B$1 -> 1.055702725 | C141: =Data!C140-Calculations!C$1 -> 1.26286121 | D141: =Data!D140-Calculations!D$1 -> 1.441363582 | E141: =Data!E140-Calculations!E$1 -> 1.676472124 | F141: =Data!F140-Calculations!F$1 -> 2.003030769 | G141: =Data!G140-Calculations!G$1 -> 2.331911566 | H141: =Data!H140-Calculations!H$1 -> 3.68128423 | I141: =Data!I140-Calculations!I$1 -> 3.003968592 | J141: =Data!J140-Calculations!J$1 -> 3.007511648 | K141: =Data!K140-Calculations!K$1 -> 2.945958447 | L141: =Data!L140-Calculations!L$1 -> 2.914346745 | M141: =Data!M140-Calculations!M$1 -> 0 | N141: =Data!N140-Calculations!N$1 -> 0 | O141: =Data!O140-Calculations!O$1 -> 0 | P141: =Data!P140-Calculations!P$1 -> 0 | Q141: =Data!Q140-Calculations!Q$1 -> 0 | R141: =Data!R140-Calculations!R$1 -> 0 | S141: =Data!S140-Calculations!S$1 -> 0 | T141: =Data!T140-Calculations!T$1 -> 0 | U141: =Data!U140-Calculations!U$1 -> 0 | V141: =Data!V140-Calculations!V$1 -> 0 | W141: =Data!W140-Calculations!W$1 -> 0
A142: =IF(Data!A141>0,Data!A141,NA()) -> 422.8398438 | B142: =Data!B141-Calculations!B$1 -> 1.047947831 | C142: =Data!C141-Calculations!C$1 -> 1.252611773 | D142: =Data!D141-Calculations!D$1 -> 1.431804847 | E142: =Data!E141-Calculations!E$1 -> 1.664713534 | F142: =Data!F141-Calculations!F$1 -> 1.988228229 | G142: =Data!G141-Calculations!G$1 -> 2.339168723 | H142: =Data!H141-Calculations!H$1 -> 3.31583828 | I142: =Data!I141-Calculations!I$1 -> 3.003968592 | J142: =Data!J141-Calculations!J$1 -> 3.007511648 | K142: =Data!K141-Calculations!K$1 -> 2.945958447 | L142: =Data!L141-Calculations!L$1 -> 2.914346745 | M142: =Data!M141-Calculations!M$1 -> 0 | N142: =Data!N141-Calculations!N$1 -> 0 | O142: =Data!O141-Calculations!O$1 -> 0 | P142: =Data!P141-Calculations!P$1 -> 0 | Q142: =Data!Q141-Calculations!Q$1 -> 0 | R142: =Data!R141-Calculations!R$1 -> 0 | S142: =Data!S141-Calculations!S$1 -> 0 | T142: =Data!T141-Calculations!T$1 -> 0 | U142: =Data!U141-Calculations!U$1 -> 0 | V142: =Data!V141-Calculations!V$1 -> 0 | W142: =Data!W141-Calculations!W$1 -> 0
A143: =IF(Data!A142>0,Data!A142,NA()) -> 423.1802368 | B143: =Data!B142-Calculations!B$1 -> 1.03905176 | C143: =Data!C142-Calculations!C$1 -> 1.243472142 | D143: =Data!D142-Calculations!D$1 -> 1.42532386 | E143: =Data!E142-Calculations!E$1 -> 1.651813346 | F143: =Data!F142-Calculations!F$1 -> 1.971185822 | G143: =Data!G142-Calculations!G$1 -> 2.317576227 | H143: =Data!H142-Calculations!H$1 -> 3.286393048 | I143: =Data!I142-Calculations!I$1 -> 3.003968592 | J143: =Data!J142-Calculations!J$1 -> 3.007511648 | K143: =Data!K142-Calculations!K$1 -> 2.945958447 | L143: =Data!L142-Calculations!L$1 -> 2.914346745 | M143: =Data!M142-Calculations!M$1 -> 0 | N143: =Data!N142-Calculations!N$1 -> 0 | O143: =Data!O142-Calculations!O$1 -> 0 | P143: =Data!P142-Calculations!P$1 -> 0 | Q143: =Data!Q142-Calculations!Q$1 -> 0 | R143: =Data!R142-Calculations!R$1 -> 0 | S143: =Data!S142-Calculations!S$1 -> 0 | T143: =Data!T142-Calculations!T$1 -> 0 | U143: =Data!U142-Calculations!U$1 -> 0 | V143: =Data!V142-Calculations!V$1 -> 0 | W143: =Data!W142-Calculations!W$1 -> 0
A144: =IF(Data!A143>0,Data!A143,NA()) -> 423.5206299 | B144: =Data!B143-Calculations!B$1 -> 1.030691958 | C144: =Data!C143-Calculations!C$1 -> 1.237275017 | D144: =Data!D143-Calculations!D$1 -> 1.417850274 | E144: =Data!E143-Calculations!E$1 -> 1.646901328 | F144: =Data!F143-Calculations!F$1 -> 1.95851561 | G144: =Data!G143-Calculations!G$1 -> 2.288578587 | H144: =Data!H143-Calculations!H$1 -> 3.153164357 | I144: =Data!I143-Calculations!I$1 -> 3.003968592 | J144: =Data!J143-Calculations!J$1 -> 3.007511648 | K144: =Data!K143-Calculations!K$1 -> 2.945958447 | L144: =Data!L143-Calculations!L$1 -> 2.914346745 | M144: =Data!M143-Calculations!M$1 -> 0 | N144: =Data!N143-Calculations!N$1 -> 0 | O144: =Data!O143-Calculations!O$1 -> 0 | P144: =Data!P143-Calculations!P$1 -> 0 | Q144: =Data!Q143-Calculations!Q$1 -> 0 | R144: =Data!R143-Calculations!R$1 -> 0 | S144: =Data!S143-Calculations!S$1 -> 0 | T144: =Data!T143-Calculations!T$1 -> 0 | U144: =Data!U143-Calculations!U$1 -> 0 | V144: =Data!V143-Calculations!V$1 -> 0 | W144: =Data!W143-Calculations!W$1 -> 0
A145: =IF(Data!A144>0,Data!A144,NA()) -> 423.8609619 | B145: =Data!B144-Calculations!B$1 -> 1.021598112 | C145: =Data!C144-Calculations!C$1 -> 1.230982595 | D145: =Data!D144-Calculations!D$1 -> 1.411428612 | E145: =Data!E144-Calculations!E$1 -> 1.636418056 | F145: =Data!F144-Calculations!F$1 -> 1.952576345 | G145: =Data!G144-Calculations!G$1 -> 2.257579526 | H145: =Data!H144-Calculations!H$1 -> 3.124558497 | I145: =Data!I144-Calculations!I$1 -> 3.003968592 | J145: =Data!J144-Calculations!J$1 -> 3.007511648 | K145: =Data!K144-Calculations!K$1 -> 2.945958447 | L145: =Data!L144-Calculations!L$1 -> 2.914346745 | M145: =Data!M144-Calculations!M$1 -> 0 | N145: =Data!N144-Calculations!N$1 -> 0 | O145: =Data!O144-Calculations!O$1 -> 0 | P145: =Data!P144-Calculations!P$1 -> 0 | Q145: =Data!Q144-Calculations!Q$1 -> 0 | R145: =Data!R144-Calculations!R$1 -> 0 | S145: =Data!S144-Calculations!S$1 -> 0 | T145: =Data!T144-Calculations!T$1 -> 0 | U145: =Data!U144-Calculations!U$1 -> 0 | V145: =Data!V144-Calculations!V$1 -> 0 | W145: =Data!W144-Calculations!W$1 -> 0
A146: =IF(Data!A145>0,Data!A145,NA()) -> 424.2012939 | B146: =Data!B145-Calculations!B$1 -> 1.015559835 | C146: =Data!C145-Calculations!C$1 -> 1.222864462 | D146: =Data!D145-Calculations!D$1 -> 1.403443962 | E146: =Data!E145-Calculations!E$1 -> 1.628677635 | F146: =Data!F145-Calculations!F$1 -> 1.945024268 | G146: =Data!G145-Calculations!G$1 -> 2.242944493 | H146: =Data!H145-Calculations!H$1 -> 3.035691873 | I146: =Data!I145-Calculations!I$1 -> 3.003968592 | J146: =Data!J145-Calculations!J$1 -> 3.007511648 | K146: =Data!K145-Calculations!K$1 -> 2.945958447 | L146: =Data!L145-Calculations!L$1 -> 2.914346745 | M146: =Data!M145-Calculations!M$1 -> 0 | N146: =Data!N145-Calculations!N$1 -> 0 | O146: =Data!O145-Calculations!O$1 -> 0 | P146: =Data!P145-Calculations!P$1 -> 0 | Q146: =Data!Q145-Calculations!Q$1 -> 0 | R146: =Data!R145-Calculations!R$1 -> 0 | S146: =Data!S145-Calculations!S$1 -> 0 | T146: =Data!T145-Calculations!T$1 -> 0 | U146: =Data!U145-Calculations!U$1 -> 0 | V146: =Data!V145-Calculations!V$1 -> 0 | W146: =Data!W145-Calculations!W$1 -> 0
A147: =IF(Data!A146>0,Data!A146,NA()) -> 424.5415649 | B147: =Data!B146-Calculations!B$1 -> 1.007445503 | C147: =Data!C146-Calculations!C$1 -> 1.211219393 | D147: =Data!D146-Calculations!D$1 -> 1.396151696 | E147: =Data!E146-Calculations!E$1 -> 1.612804852 | F147: =Data!F146-Calculations!F$1 -> 1.932276809 | G147: =Data!G146-Calculations!G$1 -> 2.216860359 | H147: =Data!H146-Calculations!H$1 -> 3.054033814 | I147: =Data!I146-Calculations!I$1 -> 3.003968592 | J147: =Data!J146-Calculations!J$1 -> 3.007511648 | K147: =Data!K146-Calculations!K$1 -> 2.945958447 | L147: =Data!L146-Calculations!L$1 -> 2.914346745 | M147: =Data!M146-Calculations!M$1 -> 0 | N147: =Data!N146-Calculations!N$1 -> 0 | O147: =Data!O146-Calculations!O$1 -> 0 | P147: =Data!P146-Calculations!P$1 -> 0 | Q147: =Data!Q146-Calculations!Q$1 -> 0 | R147: =Data!R146-Calculations!R$1 -> 0 | S147: =Data!S146-Calculations!S$1 -> 0 | T147: =Data!T146-Calculations!T$1 -> 0 | U147: =Data!U146-Calculations!U$1 -> 0 | V147: =Data!V146-Calculations!V$1 -> 0 | W147: =Data!W146-Calculations!W$1 -> 0
A148: =IF(Data!A147>0,Data!A147,NA()) -> 424.8818054 | B148: =Data!B147-Calculations!B$1 -> 0.9984548837 | C148: =Data!C147-Calculations!C$1 -> 1.202020928 | D148: =Data!D147-Calculations!D$1 -> 1.385742514 | E148: =Data!E147-Calculations!E$1 -> 1.608597844 | F148: =Data!F147-Calculations!F$1 -> 1.924257112 | G148: =Data!G147-Calculations!G$1 -> 2.210792837 | H148: =Data!H147-Calculations!H$1 -> 2.924568267 | I148: =Data!I147-Calculations!I$1 -> 3.003968592 | J148: =Data!J147-Calculations!J$1 -> 3.007511648 | K148: =Data!K147-Calculations!K$1 -> 2.945958447 | L148: =Data!L147-Calculations!L$1 -> 2.914346745 | M148: =Data!M147-Calculations!M$1 -> 0 | N148: =Data!N147-Calculations!N$1 -> 0 | O148: =Data!O147-Calculations!O$1 -> 0 | P148: =Data!P147-Calculations!P$1 -> 0 | Q148: =Data!Q147-Calculations!Q$1 -> 0 | R148: =Data!R147-Calculations!R$1 -> 0 | S148: =Data!S147-Calculations!S$1 -> 0 | T148: =Data!T147-Calculations!T$1 -> 0 | U148: =Data!U147-Calculations!U$1 -> 0 | V148: =Data!V147-Calculations!V$1 -> 0 | W148: =Data!W147-Calculations!W$1 -> 0
A149: =IF(Data!A148>0,Data!A148,NA()) -> 425.2220459 | B149: =Data!B148-Calculations!B$1 -> 0.989913032 | C149: =Data!C148-Calculations!C$1 -> 1.195863832 | D149: =Data!D148-Calculations!D$1 -> 1.375377537 | E149: =Data!E148-Calculations!E$1 -> 1.598426647 | F149: =Data!F148-Calculations!F$1 -> 1.917573517 | G149: =Data!G148-Calculations!G$1 -> 2.188903525 | H149: =Data!H148-Calculations!H$1 -> 2.937777242 | I149: =Data!I148-Calculations!I$1 -> 3.003968592 | J149: =Data!J148-Calculations!J$1 -> 3.007511648 | K149: =Data!K148-Calculations!K$1 -> 2.945958447 | L149: =Data!L148-Calculations!L$1 -> 2.914346745 | M149: =Data!M148-Calculations!M$1 -> 0 | N149: =Data!N148-Calculations!N$1 -> 0 | O149: =Data!O148-Calculations!O$1 -> 0 | P149: =Data!P148-Calculations!P$1 -> 0 | Q149: =Data!Q148-Calculations!Q$1 -> 0 | R149: =Data!R148-Calculations!R$1 -> 0 | S149: =Data!S148-Calculations!S$1 -> 0 | T149: =Data!T148-Calculations!T$1 -> 0 | U149: =Data!U148-Calculations!U$1 -> 0 | V149: =Data!V148-Calculations!V$1 -> 0 | W149: =Data!W148-Calculations!W$1 -> 0
A150: =IF(Data!A149>0,Data!A149,NA()) -> 425.5621948 | B150: =Data!B149-Calculations!B$1 -> 0.9822317706 | C150: =Data!C149-Calculations!C$1 -> 1.190359654 | D150: =Data!D149-Calculations!D$1 -> 1.369142865 | E150: =Data!E149-Calculations!E$1 -> 1.590672197 | F150: =Data!F149-Calculations!F$1 -> 1.907350518 | G150: =Data!G149-Calculations!G$1 -> 2.199909498 | H150: =Data!H149-Calculations!H$1 -> 2.834173289 | I150: =Data!I149-Calculations!I$1 -> 3.003968592 | J150: =Data!J149-Calculations!J$1 -> 3.007511648 | K150: =Data!K149-Calculations!K$1 -> 2.945958447 | L150: =Data!L149-Calculations!L$1 -> 2.914346745 | M150: =Data!M149-Calculations!M$1 -> 0 | N150: =Data!N149-Calculations!N$1 -> 0 | O150: =Data!O149-Calculations!O$1 -> 0 | P150: =Data!P149-Calculations!P$1 -> 0 | Q150: =Data!Q149-Calculations!Q$1 -> 0 | R150: =Data!R149-Calculations!R$1 -> 0 | S150: =Data!S149-Calculations!S$1 -> 0 | T150: =Data!T149-Calculations!T$1 -> 0 | U150: =Data!U149-Calculations!U$1 -> 0 | V150: =Data!V149-Calculations!V$1 -> 0 | W150: =Data!W149-Calculations!W$1 -> 0
A151: =IF(Data!A150>0,Data!A150,NA()) -> 425.9023743 | B151: =Data!B150-Calculations!B$1 -> 0.9750848871 | C151: =Data!C150-Calculations!C$1 -> 1.182674163 | D151: =Data!D150-Calculations!D$1 -> 1.360788444 | E151: =Data!E150-Calculations!E$1 -> 1.583004324 | F151: =Data!F150-Calculations!F$1 -> 1.894757632 | G151: =Data!G150-Calculations!G$1 -> 2.180040769 | H151: =Data!H150-Calculations!H$1 -> 2.809104003 | I151: =Data!I150-Calculations!I$1 -> 3.003968592 | J151: =Data!J150-Calculations!J$1 -> 3.007511648 | K151: =Data!K150-Calculations!K$1 -> 2.945958447 | L151: =Data!L150-Calculations!L$1 -> 2.914346745 | M151: =Data!M150-Calculations!M$1 -> 0 | N151: =Data!N150-Calculations!N$1 -> 0 | O151: =Data!O150-Calculations!O$1 -> 0 | P151: =Data!P150-Calculations!P$1 -> 0 | Q151: =Data!Q150-Calculations!Q$1 -> 0 | R151: =Data!R150-Calculations!R$1 -> 0 | S151: =Data!S150-Calculations!S$1 -> 0 | T151: =Data!T150-Calculations!T$1 -> 0 | U151: =Data!U150-Calculations!U$1 -> 0 | V151: =Data!V150-Calculations!V$1 -> 0 | W151: =Data!W150-Calculations!W$1 -> 0
A152: =IF(Data!A151>0,Data!A151,NA()) -> 426.2424316 | B152: =Data!B151-Calculations!B$1 -> 0.968064179 | C152: =Data!C151-Calculations!C$1 -> 1.171515079 | D152: =Data!D151-Calculations!D$1 -> 1.353122401 | E152: =Data!E151-Calculations!E$1 -> 1.574057928 | F152: =Data!F151-Calculations!F$1 -> 1.879207791 | G152: =Data!G151-Calculations!G$1 -> 2.174201571 | H152: =Data!H151-Calculations!H$1 -> 2.72937689 | I152: =Data!I151-Calculations!I$1 -> 3.003968592 | J152: =Data!J151-Calculations!J$1 -> 3.007511648 | K152: =Data!K151-Calculations!K$1 -> 2.945958447 | L152: =Data!L151-Calculations!L$1 -> 2.914346745 | M152: =Data!M151-Calculations!M$1 -> 0 | N152: =Data!N151-Calculations!N$1 -> 0 | O152: =Data!O151-Calculations!O$1 -> 0 | P152: =Data!P151-Calculations!P$1 -> 0 | Q152: =Data!Q151-Calculations!Q$1 -> 0 | R152: =Data!R151-Calculations!R$1 -> 0 | S152: =Data!S151-Calculations!S$1 -> 0 | T152: =Data!T151-Calculations!T$1 -> 0 | U152: =Data!U151-Calculations!U$1 -> 0 | V152: =Data!V151-Calculations!V$1 -> 0 | W152: =Data!W151-Calculations!W$1 -> 0
A153: =IF(Data!A152>0,Data!A152,NA()) -> 426.5825195 | B153: =Data!B152-Calculations!B$1 -> 0.9631974827 | C153: =Data!C152-Calculations!C$1 -> 1.165165372 | D153: =Data!D152-Calculations!D$1 -> 1.347255246 | E153: =Data!E152-Calculations!E$1 -> 1.567858884 | F153: =Data!F152-Calculations!F$1 -> 1.881665998 | G153: =Data!G152-Calculations!G$1 -> 2.147344966 | H153: =Data!H152-Calculations!H$1 -> 2.74472328 | I153: =Data!I152-Calculations!I$1 -> 3.003968592 | J153: =Data!J152-Calculations!J$1 -> 3.007511648 | K153: =Data!K152-Calculations!K$1 -> 2.945958447 | L153: =Data!L152-Calculations!L$1 -> 2.914346745 | M153: =Data!M152-Calculations!M$1 -> 0 | N153: =Data!N152-Calculations!N$1 -> 0 | O153: =Data!O152-Calculations!O$1 -> 0 | P153: =Data!P152-Calculations!P$1 -> 0 | Q153: =Data!Q152-Calculations!Q$1 -> 0 | R153: =Data!R152-Calculations!R$1 -> 0 | S153: =Data!S152-Calculations!S$1 -> 0 | T153: =Data!T152-Calculations!T$1 -> 0 | U153: =Data!U152-Calculations!U$1 -> 0 | V153: =Data!V152-Calculations!V$1 -> 0 | W153: =Data!W152-Calculations!W$1 -> 0
A154: =IF(Data!A153>0,Data!A153,NA()) -> 426.9225464 | B154: =Data!B153-Calculations!B$1 -> 0.9585529072 | C154: =Data!C153-Calculations!C$1 -> 1.159719074 | D154: =Data!D153-Calculations!D$1 -> 1.344950061 | E154: =Data!E153-Calculations!E$1 -> 1.557380638 | F154: =Data!F153-Calculations!F$1 -> 1.879114242 | G154: =Data!G153-Calculations!G$1 -> 2.145565798 | H154: =Data!H153-Calculations!H$1 -> 2.74783151 | I154: =Data!I153-Calculations!I$1 -> 3.003968592 | J154: =Data!J153-Calculations!J$1 -> 3.007511648 | K154: =Data!K153-Calculations!K$1 -> 2.945958447 | L154: =Data!L153-Calculations!L$1 -> 2.914346745 | M154: =Data!M153-Calculations!M$1 -> 0 | N154: =Data!N153-Calculations!N$1 -> 0 | O154: =Data!O153-Calculations!O$1 -> 0 | P154: =Data!P153-Calculations!P$1 -> 0 | Q154: =Data!Q153-Calculations!Q$1 -> 0 | R154: =Data!R153-Calculations!R$1 -> 0 | S154: =Data!S153-Calculations!S$1 -> 0 | T154: =Data!T153-Calculations!T$1 -> 0 | U154: =Data!U153-Calculations!U$1 -> 0 | V154: =Data!V153-Calculations!V$1 -> 0 | W154: =Data!W153-Calculations!W$1 -> 0
A155: =IF(Data!A154>0,Data!A154,NA()) -> 427.2625732 | B155: =Data!B154-Calculations!B$1 -> 0.9518251628 | C155: =Data!C154-Calculations!C$1 -> 1.156783717 | D155: =Data!D154-Calculations!D$1 -> 1.340921843 | E155: =Data!E154-Calculations!E$1 -> 1.558332594 | F155: =Data!F154-Calculations!F$1 -> 1.877966211 | G155: =Data!G154-Calculations!G$1 -> 2.130101174 | H155: =Data!H154-Calculations!H$1 -> 2.750234334 | I155: =Data!I154-Calculations!I$1 -> 3.003968592 | J155: =Data!J154-Calculations!J$1 -> 3.007511648 | K155: =Data!K154-Calculations!K$1 -> 2.945958447 | L155: =Data!L154-Calculations!L$1 -> 2.914346745 | M155: =Data!M154-Calculations!M$1 -> 0 | N155: =Data!N154-Calculations!N$1 -> 0 | O155: =Data!O154-Calculations!O$1 -> 0 | P155: =Data!P154-Calculations!P$1 -> 0 | Q155: =Data!Q154-Calculations!Q$1 -> 0 | R155: =Data!R154-Calculations!R$1 -> 0 | S155: =Data!S154-Calculations!S$1 -> 0 | T155: =Data!T154-Calculations!T$1 -> 0 | U155: =Data!U154-Calculations!U$1 -> 0 | V155: =Data!V154-Calculations!V$1 -> 0 | W155: =Data!W154-Calculations!W$1 -> 0
A156: =IF(Data!A155>0,Data!A155,NA()) -> 427.6025085 | B156: =Data!B155-Calculations!B$1 -> 0.9441661968 | C156: =Data!C155-Calculations!C$1 -> 1.148361309 | D156: =Data!D155-Calculations!D$1 -> 1.333062287 | E156: =Data!E155-Calculations!E$1 -> 1.551469779 | F156: =Data!F155-Calculations!F$1 -> 1.860236204 | G156: =Data!G155-Calculations!G$1 -> 2.130190942 | H156: =Data!H155-Calculations!H$1 -> 2.699817017 | I156: =Data!I155-Calculations!I$1 -> 3.003968592 | J156: =Data!J155-Calculations!J$1 -> 3.007511648 | K156: =Data!K155-Calculations!K$1 -> 2.945958447 | L156: =Data!L155-Calculations!L$1 -> 2.914346745 | M156: =Data!M155-Calculations!M$1 -> 0 | N156: =Data!N155-Calculations!N$1 -> 0 | O156: =Data!O155-Calculations!O$1 -> 0 | P156: =Data!P155-Calculations!P$1 -> 0 | Q156: =Data!Q155-Calculations!Q$1 -> 0 | R156: =Data!R155-Calculations!R$1 -> 0 | S156: =Data!S155-Calculations!S$1 -> 0 | T156: =Data!T155-Calculations!T$1 -> 0 | U156: =Data!U155-Calculations!U$1 -> 0 | V156: =Data!V155-Calculations!V$1 -> 0 | W156: =Data!W155-Calculations!W$1 -> 0
A157: =IF(Data!A156>0,Data!A156,NA()) -> 427.9425049 | B157: =Data!B156-Calculations!B$1 -> 0.9367446665 | C157: =Data!C156-Calculations!C$1 -> 1.142193311 | D157: =Data!D156-Calculations!D$1 -> 1.326605102 | E157: =Data!E156-Calculations!E$1 -> 1.546731367 | F157: =Data!F156-Calculations!F$1 -> 1.850929027 | G157: =Data!G156-Calculations!G$1 -> 2.114252071 | H157: =Data!H156-Calculations!H$1 -> 2.660186093 | I157: =Data!I156-Calculations!I$1 -> 3.003968592 | J157: =Data!J156-Calculations!J$1 -> 3.007511648 | K157: =Data!K156-Calculations!K$1 -> 2.945958447 | L157: =Data!L156-Calculations!L$1 -> 2.914346745 | M157: =Data!M156-Calculations!M$1 -> 0 | N157: =Data!N156-Calculations!N$1 -> 0 | O157: =Data!O156-Calculations!O$1 -> 0 | P157: =Data!P156-Calculations!P$1 -> 0 | Q157: =Data!Q156-Calculations!Q$1 -> 0 | R157: =Data!R156-Calculations!R$1 -> 0 | S157: =Data!S156-Calculations!S$1 -> 0 | T157: =Data!T156-Calculations!T$1 -> 0 | U157: =Data!U156-Calculations!U$1 -> 0 | V157: =Data!V156-Calculations!V$1 -> 0 | W157: =Data!W156-Calculations!W$1 -> 0
A158: =IF(Data!A157>0,Data!A157,NA()) -> 428.2823792 | B158: =Data!B157-Calculations!B$1 -> 0.931437622 | C158: =Data!C157-Calculations!C$1 -> 1.133906963 | D158: =Data!D157-Calculations!D$1 -> 1.322400852 | E158: =Data!E157-Calculations!E$1 -> 1.536848075 | F158: =Data!F157-Calculations!F$1 -> 1.841667585 | G158: =Data!G157-Calculations!G$1 -> 2.107530843 | H158: =Data!H157-Calculations!H$1 -> 2.600997572 | I158: =Data!I157-Calculations!I$1 -> 3.003968592 | J158: =Data!J157-Calculations!J$1 -> 3.007511648 | K158: =Data!K157-Calculations!K$1 -> 2.945958447 | L158: =Data!L157-Calculations!L$1 -> 2.914346745 | M158: =Data!M157-Calculations!M$1 -> 0 | N158: =Data!N157-Calculations!N$1 -> 0 | O158: =Data!O157-Calculations!O$1 -> 0 | P158: =Data!P157-Calculations!P$1 -> 0 | Q158: =Data!Q157-Calculations!Q$1 -> 0 | R158: =Data!R157-Calculations!R$1 -> 0 | S158: =Data!S157-Calculations!S$1 -> 0 | T158: =Data!T157-Calculations!T$1 -> 0 | U158: =Data!U157-Calculations!U$1 -> 0 | V158: =Data!V157-Calculations!V$1 -> 0 | W158: =Data!W157-Calculations!W$1 -> 0
A159: =IF(Data!A158>0,Data!A158,NA()) -> 428.6222534 | B159: =Data!B158-Calculations!B$1 -> 0.9256887107 | C159: =Data!C158-Calculations!C$1 -> 1.130192726 | D159: =Data!D158-Calculations!D$1 -> 1.31448542 | E159: =Data!E158-Calculations!E$1 -> 1.524902402 | F159: =Data!F158-Calculations!F$1 -> 1.838755072 | G159: =Data!G158-Calculations!G$1 -> 2.102175895 | H159: =Data!H158-Calculations!H$1 -> 2.576909912 | I159: =Data!I158-Calculations!I$1 -> 3.003968592 | J159: =Data!J158-Calculations!J$1 -> 3.007511648 | K159: =Data!K158-Calculations!K$1 -> 2.945958447 | L159: =Data!L158-Calculations!L$1 -> 2.914346745 | M159: =Data!M158-Calculations!M$1 -> 0 | N159: =Data!N158-Calculations!N$1 -> 0 | O159: =Data!O158-Calculations!O$1 -> 0 | P159: =Data!P158-Calculations!P$1 -> 0 | Q159: =Data!Q158-Calculations!Q$1 -> 0 | R159: =Data!R158-Calculations!R$1 -> 0 | S159: =Data!S158-Calculations!S$1 -> 0 | T159: =Data!T158-Calculations!T$1 -> 0 | U159: =Data!U158-Calculations!U$1 -> 0 | V159: =Data!V158-Calculations!V$1 -> 0 | W159: =Data!W158-Calculations!W$1 -> 0
A160: =IF(Data!A159>0,Data!A159,NA()) -> 428.9620361 | B160: =Data!B159-Calculations!B$1 -> 0.9198100429 | C160: =Data!C159-Calculations!C$1 -> 1.121673142 | D160: =Data!D159-Calculations!D$1 -> 1.306239448 | E160: =Data!E159-Calculations!E$1 -> 1.517294546 | F160: =Data!F159-Calculations!F$1 -> 1.831534235 | G160: =Data!G159-Calculations!G$1 -> 2.091461546 | H160: =Data!H159-Calculations!H$1 -> 2.575098547 | I160: =Data!I159-Calculations!I$1 -> 3.003968592 | J160: =Data!J159-Calculations!J$1 -> 3.007511648 | K160: =Data!K159-Calculations!K$1 -> 2.945958447 | L160: =Data!L159-Calculations!L$1 -> 2.914346745 | M160: =Data!M159-Calculations!M$1 -> 0 | N160: =Data!N159-Calculations!N$1 -> 0 | O160: =Data!O159-Calculations!O$1 -> 0 | P160: =Data!P159-Calculations!P$1 -> 0 | Q160: =Data!Q159-Calculations!Q$1 -> 0 | R160: =Data!R159-Calculations!R$1 -> 0 | S160: =Data!S159-Calculations!S$1 -> 0 | T160: =Data!T159-Calculations!T$1 -> 0 | U160: =Data!U159-Calculations!U$1 -> 0 | V160: =Data!V159-Calculations!V$1 -> 0 | W160: =Data!W159-Calculations!W$1 -> 0
A161: =IF(Data!A160>0,Data!A160,NA()) -> 429.3018799 | B161: =Data!B160-Calculations!B$1 -> 0.9125913124 | C161: =Data!C160-Calculations!C$1 -> 1.116542258 | D161: =Data!D160-Calculations!D$1 -> 1.296776547 | E161: =Data!E160-Calculations!E$1 -> 1.508960182 | F161: =Data!F160-Calculations!F$1 -> 1.821335382 | G161: =Data!G160-Calculations!G$1 -> 2.085065388 | H161: =Data!H160-Calculations!H$1 -> 2.569596443 | I161: =Data!I160-Calculations!I$1 -> 3.003968592 | J161: =Data!J160-Calculations!J$1 -> 3.007511648 | K161: =Data!K160-Calculations!K$1 -> 2.945958447 | L161: =Data!L160-Calculations!L$1 -> 2.914346745 | M161: =Data!M160-Calculations!M$1 -> 0 | N161: =Data!N160-Calculations!N$1 -> 0 | O161: =Data!O160-Calculations!O$1 -> 0 | P161: =Data!P160-Calculations!P$1 -> 0 | Q161: =Data!Q160-Calculations!Q$1 -> 0 | R161: =Data!R160-Calculations!R$1 -> 0 | S161: =Data!S160-Calculations!S$1 -> 0 | T161: =Data!T160-Calculations!T$1 -> 0 | U161: =Data!U160-Calculations!U$1 -> 0 | V161: =Data!V160-Calculations!V$1 -> 0 | W161: =Data!W160-Calculations!W$1 -> 0
A162: =IF(Data!A161>0,Data!A161,NA()) -> 429.6416321 | B162: =Data!B161-Calculations!B$1 -> 0.9066733097 | C162: =Data!C161-Calculations!C$1 -> 1.110039437 | D162: =Data!D161-Calculations!D$1 -> 1.290903755 | E162: =Data!E161-Calculations!E$1 -> 1.50617983 | F162: =Data!F161-Calculations!F$1 -> 1.813062674 | G162: =Data!G161-Calculations!G$1 -> 2.079865396 | H162: =Data!H161-Calculations!H$1 -> 2.551000767 | I162: =Data!I161-Calculations!I$1 -> 3.003968592 | J162: =Data!J161-Calculations!J$1 -> 3.007511648 | K162: =Data!K161-Calculations!K$1 -> 2.945958447 | L162: =Data!L161-Calculations!L$1 -> 2.914346745 | M162: =Data!M161-Calculations!M$1 -> 0 | N162: =Data!N161-Calculations!N$1 -> 0 | O162: =Data!O161-Calculations!O$1 -> 0 | P162: =Data!P161-Calculations!P$1 -> 0 | Q162: =Data!Q161-Calculations!Q$1 -> 0 | R162: =Data!R161-Calculations!R$1 -> 0 | S162: =Data!S161-Calculations!S$1 -> 0 | T162: =Data!T161-Calculations!T$1 -> 0 | U162: =Data!U161-Calculations!U$1 -> 0 | V162: =Data!V161-Calculations!V$1 -> 0 | W162: =Data!W161-Calculations!W$1 -> 0
A163: =IF(Data!A162>0,Data!A162,NA()) -> 429.9814148 | B163: =Data!B162-Calculations!B$1 -> 0.9001304373 | C163: =Data!C162-Calculations!C$1 -> 1.106153327 | D163: =Data!D162-Calculations!D$1 -> 1.285903265 | E163: =Data!E162-Calculations!E$1 -> 1.497953436 | F163: =Data!F162-Calculations!F$1 -> 1.809537426 | G163: =Data!G162-Calculations!G$1 -> 2.07937487 | H163: =Data!H162-Calculations!H$1 -> 2.52387841 | I163: =Data!I162-Calculations!I$1 -> 3.003968592 | J163: =Data!J162-Calculations!J$1 -> 3.007511648 | K163: =Data!K162-Calculations!K$1 -> 2.945958447 | L163: =Data!L162-Calculations!L$1 -> 2.914346745 | M163: =Data!M162-Calculations!M$1 -> 0 | N163: =Data!N162-Calculations!N$1 -> 0 | O163: =Data!O162-Calculations!O$1 -> 0 | P163: =Data!P162-Calculations!P$1 -> 0 | Q163: =Data!Q162-Calculations!Q$1 -> 0 | R163: =Data!R162-Calculations!R$1 -> 0 | S163: =Data!S162-Calculations!S$1 -> 0 | T163: =Data!T162-Calculations!T$1 -> 0 | U163: =Data!U162-Calculations!U$1 -> 0 | V163: =Data!V162-Calculations!V$1 -> 0 | W163: =Data!W162-Calculations!W$1 -> 0
A164: =IF(Data!A163>0,Data!A163,NA()) -> 430.321106 | B164: =Data!B163-Calculations!B$1 -> 0.8929029977 | C164: =Data!C163-Calculations!C$1 -> 1.099059909 | D164: =Data!D163-Calculations!D$1 -> 1.280158871 | E164: =Data!E163-Calculations!E$1 -> 1.49056232 | F164: =Data!F163-Calculations!F$1 -> 1.804499901 | G164: =Data!G163-Calculations!G$1 -> 2.062654927 | H164: =Data!H163-Calculations!H$1 -> 2.513570262 | I164: =Data!I163-Calculations!I$1 -> 3.003968592 | J164: =Data!J163-Calculations!J$1 -> 3.007511648 | K164: =Data!K163-Calculations!K$1 -> 2.945958447 | L164: =Data!L163-Calculations!L$1 -> 2.914346745 | M164: =Data!M163-Calculations!M$1 -> 0 | N164: =Data!N163-Calculations!N$1 -> 0 | O164: =Data!O163-Calculations!O$1 -> 0 | P164: =Data!P163-Calculations!P$1 -> 0 | Q164: =Data!Q163-Calculations!Q$1 -> 0 | R164: =Data!R163-Calculations!R$1 -> 0 | S164: =Data!S163-Calculations!S$1 -> 0 | T164: =Data!T163-Calculations!T$1 -> 0 | U164: =Data!U163-Calculations!U$1 -> 0 | V164: =Data!V163-Calculations!V$1 -> 0 | W164: =Data!W163-Calculations!W$1 -> 0
A165: =IF(Data!A164>0,Data!A164,NA()) -> 430.6607666 | B165: =Data!B164-Calculations!B$1 -> 0.8869069771 | C165: =Data!C164-Calculations!C$1 -> 1.093083122 | D165: =Data!D164-Calculations!D$1 -> 1.27628694 | E165: =Data!E164-Calculations!E$1 -> 1.488110895 | F165: =Data!F164-Calculations!F$1 -> 1.798560174 | G165: =Data!G164-Calculations!G$1 -> 2.055398185 | H165: =Data!H164-Calculations!H$1 -> 2.52025427 | I165: =Data!I164-Calculations!I$1 -> 3.003968592 | J165: =Data!J164-Calculations!J$1 -> 3.007511648 | K165: =Data!K164-Calculations!K$1 -> 2.945958447 | L165: =Data!L164-Calculations!L$1 -> 2.914346745 | M165: =Data!M164-Calculations!M$1 -> 0 | N165: =Data!N164-Calculations!N$1 -> 0 | O165: =Data!O164-Calculations!O$1 -> 0 | P165: =Data!P164-Calculations!P$1 -> 0 | Q165: =Data!Q164-Calculations!Q$1 -> 0 | R165: =Data!R164-Calculations!R$1 -> 0 | S165: =Data!S164-Calculations!S$1 -> 0 | T165: =Data!T164-Calculations!T$1 -> 0 | U165: =Data!U164-Calculations!U$1 -> 0 | V165: =Data!V164-Calculations!V$1 -> 0 | W165: =Data!W164-Calculations!W$1 -> 0
A166: =IF(Data!A165>0,Data!A165,NA()) -> 431.0003662 | B166: =Data!B165-Calculations!B$1 -> 0.8807481953 | C166: =Data!C165-Calculations!C$1 -> 1.087089668 | D166: =Data!D165-Calculations!D$1 -> 1.270825923 | E166: =Data!E165-Calculations!E$1 -> 1.485459234 | F166: =Data!F165-Calculations!F$1 -> 1.788558678 | G166: =Data!G165-Calculations!G$1 -> 2.036849582 | H166: =Data!H165-Calculations!H$1 -> 2.517350593 | I166: =Data!I165-Calculations!I$1 -> 3.003968592 | J166: =Data!J165-Calculations!J$1 -> 3.007511648 | K166: =Data!K165-Calculations!K$1 -> 2.945958447 | L166: =Data!L165-Calculations!L$1 -> 2.914346745 | M166: =Data!M165-Calculations!M$1 -> 0 | N166: =Data!N165-Calculations!N$1 -> 0 | O166: =Data!O165-Calculations!O$1 -> 0 | P166: =Data!P165-Calculations!P$1 -> 0 | Q166: =Data!Q165-Calculations!Q$1 -> 0 | R166: =Data!R165-Calculations!R$1 -> 0 | S166: =Data!S165-Calculations!S$1 -> 0 | T166: =Data!T165-Calculations!T$1 -> 0 | U166: =Data!U165-Calculations!U$1 -> 0 | V166: =Data!V165-Calculations!V$1 -> 0 | W166: =Data!W165-Calculations!W$1 -> 0
A167: =IF(Data!A166>0,Data!A166,NA()) -> 431.3399963 | B167: =Data!B166-Calculations!B$1 -> 0.8756217648 | C167: =Data!C166-Calculations!C$1 -> 1.082606253 | D167: =Data!D166-Calculations!D$1 -> 1.266923736 | E167: =Data!E166-Calculations!E$1 -> 1.483418214 | F167: =Data!F166-Calculations!F$1 -> 1.785749049 | G167: =Data!G166-Calculations!G$1 -> 2.03356031 | H167: =Data!H166-Calculations!H$1 -> 2.519363213 | I167: =Data!I166-Calculations!I$1 -> 3.003968592 | J167: =Data!J166-Calculations!J$1 -> 3.007511648 | K167: =Data!K166-Calculations!K$1 -> 2.945958447 | L167: =Data!L166-Calculations!L$1 -> 2.914346745 | M167: =Data!M166-Calculations!M$1 -> 0 | N167: =Data!N166-Calculations!N$1 -> 0 | O167: =Data!O166-Calculations!O$1 -> 0 | P167: =Data!P166-Calculations!P$1 -> 0 | Q167: =Data!Q166-Calculations!Q$1 -> 0 | R167: =Data!R166-Calculations!R$1 -> 0 | S167: =Data!S166-Calculations!S$1 -> 0 | T167: =Data!T166-Calculations!T$1 -> 0 | U167: =Data!U166-Calculations!U$1 -> 0 | V167: =Data!V166-Calculations!V$1 -> 0 | W167: =Data!W166-Calculations!W$1 -> 0
A168: =IF(Data!A167>0,Data!A167,NA()) -> 431.6795654 | B168: =Data!B167-Calculations!B$1 -> 0.8694017218 | C168: =Data!C167-Calculations!C$1 -> 1.076952191 | D168: =Data!D167-Calculations!D$1 -> 1.261894917 | E168: =Data!E167-Calculations!E$1 -> 1.479157069 | F168: =Data!F167-Calculations!F$1 -> 1.782985109 | G168: =Data!G167-Calculations!G$1 -> 2.023718686 | H168: =Data!H167-Calculations!H$1 -> 2.507213864 | I168: =Data!I167-Calculations!I$1 -> 3.003968592 | J168: =Data!J167-Calculations!J$1 -> 3.007511648 | K168: =Data!K167-Calculations!K$1 -> 2.945958447 | L168: =Data!L167-Calculations!L$1 -> 2.914346745 | M168: =Data!M167-Calculations!M$1 -> 0 | N168: =Data!N167-Calculations!N$1 -> 0 | O168: =Data!O167-Calculations!O$1 -> 0 | P168: =Data!P167-Calculations!P$1 -> 0 | Q168: =Data!Q167-Calculations!Q$1 -> 0 | R168: =Data!R167-Calculations!R$1 -> 0 | S168: =Data!S167-Calculations!S$1 -> 0 | T168: =Data!T167-Calculations!T$1 -> 0 | U168: =Data!U167-Calculations!U$1 -> 0 | V168: =Data!V167-Calculations!V$1 -> 0 | W168: =Data!W167-Calculations!W$1 -> 0
A169: =IF(Data!A168>0,Data!A168,NA()) -> 432.019043 | B169: =Data!B168-Calculations!B$1 -> 0.8629383773 | C169: =Data!C168-Calculations!C$1 -> 1.070661845 | D169: =Data!D168-Calculations!D$1 -> 1.257055787 | E169: =Data!E168-Calculations!E$1 -> 1.474766897 | F169: =Data!F168-Calculations!F$1 -> 1.774749119 | G169: =Data!G168-Calculations!G$1 -> 2.019587532 | H169: =Data!H168-Calculations!H$1 -> 2.481461007 | I169: =Data!I168-Calculations!I$1 -> 3.003968592 | J169: =Data!J168-Calculations!J$1 -> 3.007511648 | K169: =Data!K168-Calculations!K$1 -> 2.945958447 | L169: =Data!L168-Calculations!L$1 -> 2.914346745 | M169: =Data!M168-Calculations!M$1 -> 0 | N169: =Data!N168-Calculations!N$1 -> 0 | O169: =Data!O168-Calculations!O$1 -> 0 | P169: =Data!P168-Calculations!P$1 -> 0 | Q169: =Data!Q168-Calculations!Q$1 -> 0 | R169: =Data!R168-Calculations!R$1 -> 0 | S169: =Data!S168-Calculations!S$1 -> 0 | T169: =Data!T168-Calculations!T$1 -> 0 | U169: =Data!U168-Calculations!U$1 -> 0 | V169: =Data!V168-Calculations!V$1 -> 0 | W169: =Data!W168-Calculations!W$1 -> 0
A170: =IF(Data!A169>0,Data!A169,NA()) -> 432.3585815 | B170: =Data!B169-Calculations!B$1 -> 0.8567220753 | C170: =Data!C169-Calculations!C$1 -> 1.062629885 | D170: =Data!D169-Calculations!D$1 -> 1.250724911 | E170: =Data!E169-Calculations!E$1 -> 1.469368014 | F170: =Data!F169-Calculations!F$1 -> 1.765761598 | G170: =Data!G169-Calculations!G$1 -> 2.014198432 | H170: =Data!H169-Calculations!H$1 -> 2.467876437 | I170: =Data!I169-Calculations!I$1 -> 3.003968592 | J170: =Data!J169-Calculations!J$1 -> 3.007511648 | K170: =Data!K169-Calculations!K$1 -> 2.945958447 | L170: =Data!L169-Calculations!L$1 -> 2.914346745 | M170: =Data!M169-Calculations!M$1 -> 0 | N170: =Data!N169-Calculations!N$1 -> 0 | O170: =Data!O169-Calculations!O$1 -> 0 | P170: =Data!P169-Calculations!P$1 -> 0 | Q170: =Data!Q169-Calculations!Q$1 -> 0 | R170: =Data!R169-Calculations!R$1 -> 0 | S170: =Data!S169-Calculations!S$1 -> 0 | T170: =Data!T169-Calculations!T$1 -> 0 | U170: =Data!U169-Calculations!U$1 -> 0 | V170: =Data!V169-Calculations!V$1 -> 0 | W170: =Data!W169-Calculations!W$1 -> 0
A171: =IF(Data!A170>0,Data!A170,NA()) -> 432.6980286 | B171: =Data!B170-Calculations!B$1 -> 0.8477544695 | C171: =Data!C170-Calculations!C$1 -> 1.053784289 | D171: =Data!D170-Calculations!D$1 -> 1.24130683 | E171: =Data!E170-Calculations!E$1 -> 1.454247588 | F171: =Data!F170-Calculations!F$1 -> 1.757754776 | G171: =Data!G170-Calculations!G$1 -> 1.992844823 | H171: =Data!H170-Calculations!H$1 -> 2.404744322 | I171: =Data!I170-Calculations!I$1 -> 3.003968592 | J171: =Data!J170-Calculations!J$1 -> 3.007511648 | K171: =Data!K170-Calculations!K$1 -> 2.945958447 | L171: =Data!L170-Calculations!L$1 -> 2.914346745 | M171: =Data!M170-Calculations!M$1 -> 0 | N171: =Data!N170-Calculations!N$1 -> 0 | O171: =Data!O170-Calculations!O$1 -> 0 | P171: =Data!P170-Calculations!P$1 -> 0 | Q171: =Data!Q170-Calculations!Q$1 -> 0 | R171: =Data!R170-Calculations!R$1 -> 0 | S171: =Data!S170-Calculations!S$1 -> 0 | T171: =Data!T170-Calculations!T$1 -> 0 | U171: =Data!U170-Calculations!U$1 -> 0 | V171: =Data!V170-Calculations!V$1 -> 0 | W171: =Data!W170-Calculations!W$1 -> 0
A172: =IF(Data!A171>0,Data!A171,NA()) -> 433.0374451 | B172: =Data!B171-Calculations!B$1 -> 0.8416651254 | C172: =Data!C171-Calculations!C$1 -> 1.04756436 | D172: =Data!D171-Calculations!D$1 -> 1.233517486 | E172: =Data!E171-Calculations!E$1 -> 1.44642839 | F172: =Data!F171-Calculations!F$1 -> 1.749901112 | G172: =Data!G171-Calculations!G$1 -> 1.986162575 | H172: =Data!H171-Calculations!H$1 -> 2.402003168 | I172: =Data!I171-Calculations!I$1 -> 3.003968592 | J172: =Data!J171-Calculations!J$1 -> 3.007511648 | K172: =Data!K171-Calculations!K$1 -> 2.945958447 | L172: =Data!L171-Calculations!L$1 -> 2.914346745 | M172: =Data!M171-Calculations!M$1 -> 0 | N172: =Data!N171-Calculations!N$1 -> 0 | O172: =Data!O171-Calculations!O$1 -> 0 | P172: =Data!P171-Calculations!P$1 -> 0 | Q172: =Data!Q171-Calculations!Q$1 -> 0 | R172: =Data!R171-Calculations!R$1 -> 0 | S172: =Data!S171-Calculations!S$1 -> 0 | T172: =Data!T171-Calculations!T$1 -> 0 | U172: =Data!U171-Calculations!U$1 -> 0 | V172: =Data!V171-Calculations!V$1 -> 0 | W172: =Data!W171-Calculations!W$1 -> 0
A173: =IF(Data!A172>0,Data!A172,NA()) -> 433.3768616 | B173: =Data!B172-Calculations!B$1 -> 0.8360279809 | C173: =Data!C172-Calculations!C$1 -> 1.04281547 | D173: =Data!D172-Calculations!D$1 -> 1.22799056 | E173: =Data!E172-Calculations!E$1 -> 1.440480029 | F173: =Data!F172-Calculations!F$1 -> 1.744920081 | G173: =Data!G172-Calculations!G$1 -> 1.973029822 | H173: =Data!H172-Calculations!H$1 -> 2.379623846 | I173: =Data!I172-Calculations!I$1 -> 3.003968592 | J173: =Data!J172-Calculations!J$1 -> 3.007511648 | K173: =Data!K172-Calculations!K$1 -> 2.945958447 | L173: =Data!L172-Calculations!L$1 -> 2.914346745 | M173: =Data!M172-Calculations!M$1 -> 0 | N173: =Data!N172-Calculations!N$1 -> 0 | O173: =Data!O172-Calculations!O$1 -> 0 | P173: =Data!P172-Calculations!P$1 -> 0 | Q173: =Data!Q172-Calculations!Q$1 -> 0 | R173: =Data!R172-Calculations!R$1 -> 0 | S173: =Data!S172-Calculations!S$1 -> 0 | T173: =Data!T172-Calculations!T$1 -> 0 | U173: =Data!U172-Calculations!U$1 -> 0 | V173: =Data!V172-Calculations!V$1 -> 0 | W173: =Data!W172-Calculations!W$1 -> 0
A174: =IF(Data!A173>0,Data!A173,NA()) -> 433.7161865 | B174: =Data!B173-Calculations!B$1 -> 0.831921913 | C174: =Data!C173-Calculations!C$1 -> 1.036923743 | D174: =Data!D173-Calculations!D$1 -> 1.224021649 | E174: =Data!E173-Calculations!E$1 -> 1.44129943 | F174: =Data!F173-Calculations!F$1 -> 1.735372159 | G174: =Data!G173-Calculations!G$1 -> 1.97026526 | H174: =Data!H173-Calculations!H$1 -> 2.387712816 | I174: =Data!I173-Calculations!I$1 -> 3.660198309 | J174: =Data!J173-Calculations!J$1 -> 3.007511648 | K174: =Data!K173-Calculations!K$1 -> 2.945958447 | L174: =Data!L173-Calculations!L$1 -> 2.914346745 | M174: =Data!M173-Calculations!M$1 -> 0 | N174: =Data!N173-Calculations!N$1 -> 0 | O174: =Data!O173-Calculations!O$1 -> 0 | P174: =Data!P173-Calculations!P$1 -> 0 | Q174: =Data!Q173-Calculations!Q$1 -> 0 | R174: =Data!R173-Calculations!R$1 -> 0 | S174: =Data!S173-Calculations!S$1 -> 0 | T174: =Data!T173-Calculations!T$1 -> 0 | U174: =Data!U173-Calculations!U$1 -> 0 | V174: =Data!V173-Calculations!V$1 -> 0 | W174: =Data!W173-Calculations!W$1 -> 0
A175: =IF(Data!A174>0,Data!A174,NA()) -> 434.0555115 | B175: =Data!B174-Calculations!B$1 -> 0.8265992048 | C175: =Data!C174-Calculations!C$1 -> 1.032543211 | D175: =Data!D174-Calculations!D$1 -> 1.219456516 | E175: =Data!E174-Calculations!E$1 -> 1.438472185 | F175: =Data!F174-Calculations!F$1 -> 1.73207216 | G175: =Data!G174-Calculations!G$1 -> 1.958278956 | H175: =Data!H174-Calculations!H$1 -> 2.370828533 | I175: =Data!I174-Calculations!I$1 -> 3.003968592 | J175: =Data!J174-Calculations!J$1 -> 3.007511648 | K175: =Data!K174-Calculations!K$1 -> 2.945958447 | L175: =Data!L174-Calculations!L$1 -> 2.914346745 | M175: =Data!M174-Calculations!M$1 -> 0 | N175: =Data!N174-Calculations!N$1 -> 0 | O175: =Data!O174-Calculations!O$1 -> 0 | P175: =Data!P174-Calculations!P$1 -> 0 | Q175: =Data!Q174-Calculations!Q$1 -> 0 | R175: =Data!R174-Calculations!R$1 -> 0 | S175: =Data!S174-Calculations!S$1 -> 0 | T175: =Data!T174-Calculations!T$1 -> 0 | U175: =Data!U174-Calculations!U$1 -> 0 | V175: =Data!V174-Calculations!V$1 -> 0 | W175: =Data!W174-Calculations!W$1 -> 0
A176: =IF(Data!A175>0,Data!A175,NA()) -> 434.3948059 | B176: =Data!B175-Calculations!B$1 -> 0.8214621606 | C176: =Data!C175-Calculations!C$1 -> 1.025589639 | D176: =Data!D175-Calculations!D$1 -> 1.214765177 | E176: =Data!E175-Calculations!E$1 -> 1.432577828 | F176: =Data!F175-Calculations!F$1 -> 1.725845695 | G176: =Data!G175-Calculations!G$1 -> 1.946753178 | H176: =Data!H175-Calculations!H$1 -> 2.379585923 | I176: =Data!I175-Calculations!I$1 -> 3.003968592 | J176: =Data!J175-Calculations!J$1 -> 3.007511648 | K176: =Data!K175-Calculations!K$1 -> 2.945958447 | L176: =Data!L175-Calculations!L$1 -> 2.914346745 | M176: =Data!M175-Calculations!M$1 -> 0 | N176: =Data!N175-Calculations!N$1 -> 0 | O176: =Data!O175-Calculations!O$1 -> 0 | P176: =Data!P175-Calculations!P$1 -> 0 | Q176: =Data!Q175-Calculations!Q$1 -> 0 | R176: =Data!R175-Calculations!R$1 -> 0 | S176: =Data!S175-Calculations!S$1 -> 0 | T176: =Data!T175-Calculations!T$1 -> 0 | U176: =Data!U175-Calculations!U$1 -> 0 | V176: =Data!V175-Calculations!V$1 -> 0 | W176: =Data!W175-Calculations!W$1 -> 0
A177: =IF(Data!A176>0,Data!A176,NA()) -> 434.7340698 | B177: =Data!B176-Calculations!B$1 -> 0.8160462502 | C177: =Data!C176-Calculations!C$1 -> 1.021112568 | D177: =Data!D176-Calculations!D$1 -> 1.207664983 | E177: =Data!E176-Calculations!E$1 -> 1.427594281 | F177: =Data!F176-Calculations!F$1 -> 1.717500687 | G177: =Data!G176-Calculations!G$1 -> 1.936199584 | H177: =Data!H176-Calculations!H$1 -> 2.355474974 | I177: =Data!I176-Calculations!I$1 -> 3.003968592 | J177: =Data!J176-Calculations!J$1 -> 3.007511648 | K177: =Data!K176-Calculations!K$1 -> 2.945958447 | L177: =Data!L176-Calculations!L$1 -> 2.914346745 | M177: =Data!M176-Calculations!M$1 -> 0 | N177: =Data!N176-Calculations!N$1 -> 0 | O177: =Data!O176-Calculations!O$1 -> 0 | P177: =Data!P176-Calculations!P$1 -> 0 | Q177: =Data!Q176-Calculations!Q$1 -> 0 | R177: =Data!R176-Calculations!R$1 -> 0 | S177: =Data!S176-Calculations!S$1 -> 0 | T177: =Data!T176-Calculations!T$1 -> 0 | U177: =Data!U176-Calculations!U$1 -> 0 | V177: =Data!V176-Calculations!V$1 -> 0 | W177: =Data!W176-Calculations!W$1 -> 0
A178: =IF(Data!A177>0,Data!A177,NA()) -> 435.0733032 | B178: =Data!B177-Calculations!B$1 -> 0.8101445241 | C178: =Data!C177-Calculations!C$1 -> 1.014959293 | D178: =Data!D177-Calculations!D$1 -> 1.200541937 | E178: =Data!E177-Calculations!E$1 -> 1.424274268 | F178: =Data!F177-Calculations!F$1 -> 1.711439818 | G178: =Data!G177-Calculations!G$1 -> 1.936192941 | H178: =Data!H177-Calculations!H$1 -> 2.35603073 | I178: =Data!I177-Calculations!I$1 -> 3.879897782 | J178: =Data!J177-Calculations!J$1 -> 3.007511648 | K178: =Data!K177-Calculations!K$1 -> 2.945958447 | L178: =Data!L177-Calculations!L$1 -> 2.914346745 | M178: =Data!M177-Calculations!M$1 -> 0 | N178: =Data!N177-Calculations!N$1 -> 0 | O178: =Data!O177-Calculations!O$1 -> 0 | P178: =Data!P177-Calculations!P$1 -> 0 | Q178: =Data!Q177-Calculations!Q$1 -> 0 | R178: =Data!R177-Calculations!R$1 -> 0 | S178: =Data!S177-Calculations!S$1 -> 0 | T178: =Data!T177-Calculations!T$1 -> 0 | U178: =Data!U177-Calculations!U$1 -> 0 | V178: =Data!V177-Calculations!V$1 -> 0 | W178: =Data!W177-Calculations!W$1 -> 0
A179: =IF(Data!A178>0,Data!A178,NA()) -> 435.4124756 | B179: =Data!B178-Calculations!B$1 -> 0.8028918145 | C179: =Data!C178-Calculations!C$1 -> 1.010753575 | D179: =Data!D178-Calculations!D$1 -> 1.191474619 | E179: =Data!E178-Calculations!E$1 -> 1.418945118 | F179: =Data!F178-Calculations!F$1 -> 1.703078472 | G179: =Data!G178-Calculations!G$1 -> 1.932271819 | H179: =Data!H178-Calculations!H$1 -> 2.351702639 | I179: =Data!I178-Calculations!I$1 -> 3.485876705 | J179: =Data!J178-Calculations!J$1 -> 3.007511648 | K179: =Data!K178-Calculations!K$1 -> 2.945958447 | L179: =Data!L178-Calculations!L$1 -> 2.914346745 | M179: =Data!M178-Calculations!M$1 -> 0 | N179: =Data!N178-Calculations!N$1 -> 0 | O179: =Data!O178-Calculations!O$1 -> 0 | P179: =Data!P178-Calculations!P$1 -> 0 | Q179: =Data!Q178-Calculations!Q$1 -> 0 | R179: =Data!R178-Calculations!R$1 -> 0 | S179: =Data!S178-Calculations!S$1 -> 0 | T179: =Data!T178-Calculations!T$1 -> 0 | U179: =Data!U178-Calculations!U$1 -> 0 | V179: =Data!V178-Calculations!V$1 -> 0 | W179: =Data!W178-Calculations!W$1 -> 0
A180: =IF(Data!A179>0,Data!A179,NA()) -> 435.7516479 | B180: =Data!B179-Calculations!B$1 -> 0.7949928507 | C180: =Data!C179-Calculations!C$1 -> 1.003993619 | D180: =Data!D179-Calculations!D$1 -> 1.18542953 | E180: =Data!E179-Calculations!E$1 -> 1.409125466 | F180: =Data!F179-Calculations!F$1 -> 1.701042278 | G180: =Data!G179-Calculations!G$1 -> 1.92616174 | H180: =Data!H179-Calculations!H$1 -> 2.334513036 | I180: =Data!I179-Calculations!I$1 -> 3.287379486 | J180: =Data!J179-Calculations!J$1 -> 3.007511648 | K180: =Data!K179-Calculations!K$1 -> 2.945958447 | L180: =Data!L179-Calculations!L$1 -> 2.914346745 | M180: =Data!M179-Calculations!M$1 -> 0 | N180: =Data!N179-Calculations!N$1 -> 0 | O180: =Data!O179-Calculations!O$1 -> 0 | P180: =Data!P179-Calculations!P$1 -> 0 | Q180: =Data!Q179-Calculations!Q$1 -> 0 | R180: =Data!R179-Calculations!R$1 -> 0 | S180: =Data!S179-Calculations!S$1 -> 0 | T180: =Data!T179-Calculations!T$1 -> 0 | U180: =Data!U179-Calculations!U$1 -> 0 | V180: =Data!V179-Calculations!V$1 -> 0 | W180: =Data!W179-Calculations!W$1 -> 0
A181: =IF(Data!A180>0,Data!A180,NA()) -> 436.0907288 | B181: =Data!B180-Calculations!B$1 -> 0.7899794208 | C181: =Data!C180-Calculations!C$1 -> 0.9966766187 | D181: =Data!D180-Calculations!D$1 -> 1.179988077 | E181: =Data!E180-Calculations!E$1 -> 1.399792333 | F181: =Data!F180-Calculations!F$1 -> 1.695546364 | G181: =Data!G180-Calculations!G$1 -> 1.9148667 | H181: =Data!H180-Calculations!H$1 -> 2.314384569 | I181: =Data!I180-Calculations!I$1 -> 3.223265234 | J181: =Data!J180-Calculations!J$1 -> 3.007511648 | K181: =Data!K180-Calculations!K$1 -> 2.945958447 | L181: =Data!L180-Calculations!L$1 -> 2.914346745 | M181: =Data!M180-Calculations!M$1 -> 0 | N181: =Data!N180-Calculations!N$1 -> 0 | O181: =Data!O180-Calculations!O$1 -> 0 | P181: =Data!P180-Calculations!P$1 -> 0 | Q181: =Data!Q180-Calculations!Q$1 -> 0 | R181: =Data!R180-Calculations!R$1 -> 0 | S181: =Data!S180-Calculations!S$1 -> 0 | T181: =Data!T180-Calculations!T$1 -> 0 | U181: =Data!U180-Calculations!U$1 -> 0 | V181: =Data!V180-Calculations!V$1 -> 0 | W181: =Data!W180-Calculations!W$1 -> 0
A182: =IF(Data!A181>0,Data!A181,NA()) -> 436.4298401 | B182: =Data!B181-Calculations!B$1 -> 0.7849835156 | C182: =Data!C181-Calculations!C$1 -> 0.9907736833 | D182: =Data!D181-Calculations!D$1 -> 1.179128528 | E182: =Data!E181-Calculations!E$1 -> 1.399064706 | F182: =Data!F181-Calculations!F$1 -> 1.696563925 | G182: =Data!G181-Calculations!G$1 -> 1.917151063 | H182: =Data!H181-Calculations!H$1 -> 2.303197211 | I182: =Data!I181-Calculations!I$1 -> 3.230527806 | J182: =Data!J181-Calculations!J$1 -> 3.007511648 | K182: =Data!K181-Calculations!K$1 -> 2.945958447 | L182: =Data!L181-Calculations!L$1 -> 2.914346745 | M182: =Data!M181-Calculations!M$1 -> 0 | N182: =Data!N181-Calculations!N$1 -> 0 | O182: =Data!O181-Calculations!O$1 -> 0 | P182: =Data!P181-Calculations!P$1 -> 0 | Q182: =Data!Q181-Calculations!Q$1 -> 0 | R182: =Data!R181-Calculations!R$1 -> 0 | S182: =Data!S181-Calculations!S$1 -> 0 | T182: =Data!T181-Calculations!T$1 -> 0 | U182: =Data!U181-Calculations!U$1 -> 0 | V182: =Data!V181-Calculations!V$1 -> 0 | W182: =Data!W181-Calculations!W$1 -> 0
A183: =IF(Data!A182>0,Data!A182,NA()) -> 436.7688904 | B183: =Data!B182-Calculations!B$1 -> 0.7809924733 | C183: =Data!C182-Calculations!C$1 -> 0.9862192834 | D183: =Data!D182-Calculations!D$1 -> 1.173288846 | E183: =Data!E182-Calculations!E$1 -> 1.396592894 | F183: =Data!F182-Calculations!F$1 -> 1.689926857 | G183: =Data!G182-Calculations!G$1 -> 1.914783759 | H183: =Data!H182-Calculations!H$1 -> 2.298688839 | I183: =Data!I182-Calculations!I$1 -> 3.349187059 | J183: =Data!J182-Calculations!J$1 -> 3.007511648 | K183: =Data!K182-Calculations!K$1 -> 2.945958447 | L183: =Data!L182-Calculations!L$1 -> 2.914346745 | M183: =Data!M182-Calculations!M$1 -> 0 | N183: =Data!N182-Calculations!N$1 -> 0 | O183: =Data!O182-Calculations!O$1 -> 0 | P183: =Data!P182-Calculations!P$1 -> 0 | Q183: =Data!Q182-Calculations!Q$1 -> 0 | R183: =Data!R182-Calculations!R$1 -> 0 | S183: =Data!S182-Calculations!S$1 -> 0 | T183: =Data!T182-Calculations!T$1 -> 0 | U183: =Data!U182-Calculations!U$1 -> 0 | V183: =Data!V182-Calculations!V$1 -> 0 | W183: =Data!W182-Calculations!W$1 -> 0
A184: =IF(Data!A183>0,Data!A183,NA()) -> 437.1079407 | B184: =Data!B183-Calculations!B$1 -> 0.7743029968 | C184: =Data!C183-Calculations!C$1 -> 0.9802970417 | D184: =Data!D183-Calculations!D$1 -> 1.168283886 | E184: =Data!E183-Calculations!E$1 -> 1.390314845 | F184: =Data!F183-Calculations!F$1 -> 1.681647016 | G184: =Data!G183-Calculations!G$1 -> 1.903773408 | H184: =Data!H183-Calculations!H$1 -> 2.272245936 | I184: =Data!I183-Calculations!I$1 -> 3.168026486 | J184: =Data!J183-Calculations!J$1 -> 3.007511648 | K184: =Data!K183-Calculations!K$1 -> 2.945958447 | L184: =Data!L183-Calculations!L$1 -> 2.914346745 | M184: =Data!M183-Calculations!M$1 -> 0 | N184: =Data!N183-Calculations!N$1 -> 0 | O184: =Data!O183-Calculations!O$1 -> 0 | P184: =Data!P183-Calculations!P$1 -> 0 | Q184: =Data!Q183-Calculations!Q$1 -> 0 | R184: =Data!R183-Calculations!R$1 -> 0 | S184: =Data!S183-Calculations!S$1 -> 0 | T184: =Data!T183-Calculations!T$1 -> 0 | U184: =Data!U183-Calculations!U$1 -> 0 | V184: =Data!V183-Calculations!V$1 -> 0 | W184: =Data!W183-Calculations!W$1 -> 0
A185: =IF(Data!A184>0,Data!A184,NA()) -> 437.4468994 | B185: =Data!B184-Calculations!B$1 -> 0.7701985766 | C185: =Data!C184-Calculations!C$1 -> 0.9742057878 | D185: =Data!D184-Calculations!D$1 -> 1.158912844 | E185: =Data!E184-Calculations!E$1 -> 1.379744812 | F185: =Data!F184-Calculations!F$1 -> 1.673590682 | G185: =Data!G184-Calculations!G$1 -> 1.886948844 | H185: =Data!H184-Calculations!H$1 -> 2.238887252 | I185: =Data!I184-Calculations!I$1 -> 2.966116594 | J185: =Data!J184-Calculations!J$1 -> 3.007511648 | K185: =Data!K184-Calculations!K$1 -> 2.945958447 | L185: =Data!L184-Calculations!L$1 -> 2.914346745 | M185: =Data!M184-Calculations!M$1 -> 0 | N185: =Data!N184-Calculations!N$1 -> 0 | O185: =Data!O184-Calculations!O$1 -> 0 | P185: =Data!P184-Calculations!P$1 -> 0 | Q185: =Data!Q184-Calculations!Q$1 -> 0 | R185: =Data!R184-Calculations!R$1 -> 0 | S185: =Data!S184-Calculations!S$1 -> 0 | T185: =Data!T184-Calculations!T$1 -> 0 | U185: =Data!U184-Calculations!U$1 -> 0 | V185: =Data!V184-Calculations!V$1 -> 0 | W185: =Data!W184-Calculations!W$1 -> 0
A186: =IF(Data!A185>0,Data!A185,NA()) -> 437.7858582 | B186: =Data!B185-Calculations!B$1 -> 0.7631480581 | C186: =Data!C185-Calculations!C$1 -> 0.9674159591 | D186: =Data!D185-Calculations!D$1 -> 1.154316418 | E186: =Data!E185-Calculations!E$1 -> 1.372158944 | F186: =Data!F185-Calculations!F$1 -> 1.667383543 | G186: =Data!G185-Calculations!G$1 -> 1.879670068 | H186: =Data!H185-Calculations!H$1 -> 2.238296312 | I186: =Data!I185-Calculations!I$1 -> 2.877745383 | J186: =Data!J185-Calculations!J$1 -> 3.007511648 | K186: =Data!K185-Calculations!K$1 -> 2.945958447 | L186: =Data!L185-Calculations!L$1 -> 2.914346745 | M186: =Data!M185-Calculations!M$1 -> 0 | N186: =Data!N185-Calculations!N$1 -> 0 | O186: =Data!O185-Calculations!O$1 -> 0 | P186: =Data!P185-Calculations!P$1 -> 0 | Q186: =Data!Q185-Calculations!Q$1 -> 0 | R186: =Data!R185-Calculations!R$1 -> 0 | S186: =Data!S185-Calculations!S$1 -> 0 | T186: =Data!T185-Calculations!T$1 -> 0 | U186: =Data!U185-Calculations!U$1 -> 0 | V186: =Data!V185-Calculations!V$1 -> 0 | W186: =Data!W185-Calculations!W$1 -> 0
A187: =IF(Data!A186>0,Data!A186,NA()) -> 438.1247253 | B187: =Data!B186-Calculations!B$1 -> 0.7584982288 | C187: =Data!C186-Calculations!C$1 -> 0.9629592993 | D187: =Data!D186-Calculations!D$1 -> 1.149051666 | E187: =Data!E186-Calculations!E$1 -> 1.36829291 | F187: =Data!F186-Calculations!F$1 -> 1.663182351 | G187: =Data!G186-Calculations!G$1 -> 1.873552925 | H187: =Data!H186-Calculations!H$1 -> 2.239298606 | I187: =Data!I186-Calculations!I$1 -> 2.90129988 | J187: =Data!J186-Calculations!J$1 -> 3.007511648 | K187: =Data!K186-Calculations!K$1 -> 2.945958447 | L187: =Data!L186-Calculations!L$1 -> 2.914346745 | M187: =Data!M186-Calculations!M$1 -> 0 | N187: =Data!N186-Calculations!N$1 -> 0 | O187: =Data!O186-Calculations!O$1 -> 0 | P187: =Data!P186-Calculations!P$1 -> 0 | Q187: =Data!Q186-Calculations!Q$1 -> 0 | R187: =Data!R186-Calculations!R$1 -> 0 | S187: =Data!S186-Calculations!S$1 -> 0 | T187: =Data!T186-Calculations!T$1 -> 0 | U187: =Data!U186-Calculations!U$1 -> 0 | V187: =Data!V186-Calculations!V$1 -> 0 | W187: =Data!W186-Calculations!W$1 -> 0
A188: =IF(Data!A187>0,Data!A187,NA()) -> 438.463623 | B188: =Data!B187-Calculations!B$1 -> 0.7526297272 | C188: =Data!C187-Calculations!C$1 -> 0.9583007495 | D188: =Data!D187-Calculations!D$1 -> 1.144452048 | E188: =Data!E187-Calculations!E$1 -> 1.365382459 | F188: =Data!F187-Calculations!F$1 -> 1.658401584 | G188: =Data!G187-Calculations!G$1 -> 1.872149509 | H188: =Data!H187-Calculations!H$1 -> 2.226907447 | I188: =Data!I187-Calculations!I$1 -> 3.007107722 | J188: =Data!J187-Calculations!J$1 -> 3.007511648 | K188: =Data!K187-Calculations!K$1 -> 2.945958447 | L188: =Data!L187-Calculations!L$1 -> 2.914346745 | M188: =Data!M187-Calculations!M$1 -> 0 | N188: =Data!N187-Calculations!N$1 -> 0 | O188: =Data!O187-Calculations!O$1 -> 0 | P188: =Data!P187-Calculations!P$1 -> 0 | Q188: =Data!Q187-Calculations!Q$1 -> 0 | R188: =Data!R187-Calculations!R$1 -> 0 | S188: =Data!S187-Calculations!S$1 -> 0 | T188: =Data!T187-Calculations!T$1 -> 0 | U188: =Data!U187-Calculations!U$1 -> 0 | V188: =Data!V187-Calculations!V$1 -> 0 | W188: =Data!W187-Calculations!W$1 -> 0
A189: =IF(Data!A188>0,Data!A188,NA()) -> 438.8024902 | B189: =Data!B188-Calculations!B$1 -> 0.7468900935 | C189: =Data!C188-Calculations!C$1 -> 0.9511008831 | D189: =Data!D188-Calculations!D$1 -> 1.137570428 | E189: =Data!E188-Calculations!E$1 -> 1.360080784 | F189: =Data!F188-Calculations!F$1 -> 1.653923844 | G189: =Data!G188-Calculations!G$1 -> 1.856690592 | H189: =Data!H188-Calculations!H$1 -> 2.208585676 | I189: =Data!I188-Calculations!I$1 -> 2.983897095 | J189: =Data!J188-Calculations!J$1 -> 3.007511648 | K189: =Data!K188-Calculations!K$1 -> 2.945958447 | L189: =Data!L188-Calculations!L$1 -> 2.914346745 | M189: =Data!M188-Calculations!M$1 -> 0 | N189: =Data!N188-Calculations!N$1 -> 0 | O189: =Data!O188-Calculations!O$1 -> 0 | P189: =Data!P188-Calculations!P$1 -> 0 | Q189: =Data!Q188-Calculations!Q$1 -> 0 | R189: =Data!R188-Calculations!R$1 -> 0 | S189: =Data!S188-Calculations!S$1 -> 0 | T189: =Data!T188-Calculations!T$1 -> 0 | U189: =Data!U188-Calculations!U$1 -> 0 | V189: =Data!V188-Calculations!V$1 -> 0 | W189: =Data!W188-Calculations!W$1 -> 0
A190: =IF(Data!A189>0,Data!A189,NA()) -> 439.1412964 | B190: =Data!B189-Calculations!B$1 -> 0.7419947312 | C190: =Data!C189-Calculations!C$1 -> 0.945481036 | D190: =Data!D189-Calculations!D$1 -> 1.132760523 | E190: =Data!E189-Calculations!E$1 -> 1.355419941 | F190: =Data!F189-Calculations!F$1 -> 1.650082518 | G190: =Data!G189-Calculations!G$1 -> 1.846795666 | H190: =Data!H189-Calculations!H$1 -> 2.194407435 | I190: =Data!I189-Calculations!I$1 -> 2.931112212 | J190: =Data!J189-Calculations!J$1 -> 3.007511648 | K190: =Data!K189-Calculations!K$1 -> 2.945958447 | L190: =Data!L189-Calculations!L$1 -> 2.914346745 | M190: =Data!M189-Calculations!M$1 -> 0 | N190: =Data!N189-Calculations!N$1 -> 0 | O190: =Data!O189-Calculations!O$1 -> 0 | P190: =Data!P189-Calculations!P$1 -> 0 | Q190: =Data!Q189-Calculations!Q$1 -> 0 | R190: =Data!R189-Calculations!R$1 -> 0 | S190: =Data!S189-Calculations!S$1 -> 0 | T190: =Data!T189-Calculations!T$1 -> 0 | U190: =Data!U189-Calculations!U$1 -> 0 | V190: =Data!V189-Calculations!V$1 -> 0 | W190: =Data!W189-Calculations!W$1 -> 0
A191: =IF(Data!A190>0,Data!A190,NA()) -> 439.480072 | B191: =Data!B190-Calculations!B$1 -> 0.7352034068 | C191: =Data!C190-Calculations!C$1 -> 0.9392429256 | D191: =Data!D190-Calculations!D$1 -> 1.129090392 | E191: =Data!E190-Calculations!E$1 -> 1.346612774 | F191: =Data!F190-Calculations!F$1 -> 1.642416414 | G191: =Data!G190-Calculations!G$1 -> 1.839561871 | H191: =Data!H190-Calculations!H$1 -> 2.196271976 | I191: =Data!I190-Calculations!I$1 -> 2.848665879 | J191: =Data!J190-Calculations!J$1 -> 3.007511648 | K191: =Data!K190-Calculations!K$1 -> 2.945958447 | L191: =Data!L190-Calculations!L$1 -> 2.914346745 | M191: =Data!M190-Calculations!M$1 -> 0 | N191: =Data!N190-Calculations!N$1 -> 0 | O191: =Data!O190-Calculations!O$1 -> 0 | P191: =Data!P190-Calculations!P$1 -> 0 | Q191: =Data!Q190-Calculations!Q$1 -> 0 | R191: =Data!R190-Calculations!R$1 -> 0 | S191: =Data!S190-Calculations!S$1 -> 0 | T191: =Data!T190-Calculations!T$1 -> 0 | U191: =Data!U190-Calculations!U$1 -> 0 | V191: =Data!V190-Calculations!V$1 -> 0 | W191: =Data!W190-Calculations!W$1 -> 0
A192: =IF(Data!A191>0,Data!A191,NA()) -> 439.8188171 | B192: =Data!B191-Calculations!B$1 -> 0.7297499225 | C192: =Data!C191-Calculations!C$1 -> 0.9361178391 | D192: =Data!D191-Calculations!D$1 -> 1.12614172 | E192: =Data!E191-Calculations!E$1 -> 1.343053533 | F192: =Data!F191-Calculations!F$1 -> 1.64107499 | G192: =Data!G191-Calculations!G$1 -> 1.836083278 | H192: =Data!H191-Calculations!H$1 -> 2.189816065 | I192: =Data!I191-Calculations!I$1 -> 2.876748225 | J192: =Data!J191-Calculations!J$1 -> 3.007511648 | K192: =Data!K191-Calculations!K$1 -> 2.945958447 | L192: =Data!L191-Calculations!L$1 -> 2.914346745 | M192: =Data!M191-Calculations!M$1 -> 0 | N192: =Data!N191-Calculations!N$1 -> 0 | O192: =Data!O191-Calculations!O$1 -> 0 | P192: =Data!P191-Calculations!P$1 -> 0 | Q192: =Data!Q191-Calculations!Q$1 -> 0 | R192: =Data!R191-Calculations!R$1 -> 0 | S192: =Data!S191-Calculations!S$1 -> 0 | T192: =Data!T191-Calculations!T$1 -> 0 | U192: =Data!U191-Calculations!U$1 -> 0 | V192: =Data!V191-Calculations!V$1 -> 0 | W192: =Data!W191-Calculations!W$1 -> 0
A193: =IF(Data!A192>0,Data!A192,NA()) -> 440.1575012 | B193: =Data!B192-Calculations!B$1 -> 0.7228750752 | C193: =Data!C192-Calculations!C$1 -> 0.9313879784 | D193: =Data!D192-Calculations!D$1 -> 1.122275583 | E193: =Data!E192-Calculations!E$1 -> 1.335678309 | F193: =Data!F192-Calculations!F$1 -> 1.634649509 | G193: =Data!G192-Calculations!G$1 -> 1.833136979 | H193: =Data!H192-Calculations!H$1 -> 2.176128644 | I193: =Data!I192-Calculations!I$1 -> 2.890755395 | J193: =Data!J192-Calculations!J$1 -> 3.007511648 | K193: =Data!K192-Calculations!K$1 -> 2.945958447 | L193: =Data!L192-Calculations!L$1 -> 2.914346745 | M193: =Data!M192-Calculations!M$1 -> 0 | N193: =Data!N192-Calculations!N$1 -> 0 | O193: =Data!O192-Calculations!O$1 -> 0 | P193: =Data!P192-Calculations!P$1 -> 0 | Q193: =Data!Q192-Calculations!Q$1 -> 0 | R193: =Data!R192-Calculations!R$1 -> 0 | S193: =Data!S192-Calculations!S$1 -> 0 | T193: =Data!T192-Calculations!T$1 -> 0 | U193: =Data!U192-Calculations!U$1 -> 0 | V193: =Data!V192-Calculations!V$1 -> 0 | W193: =Data!W192-Calculations!W$1 -> 0
A194: =IF(Data!A193>0,Data!A193,NA()) -> 440.4961853 | B194: =Data!B193-Calculations!B$1 -> 0.7188703289 | C194: =Data!C193-Calculations!C$1 -> 0.9265269788 | D194: =Data!D193-Calculations!D$1 -> 1.115604819 | E194: =Data!E193-Calculations!E$1 -> 1.335148609 | F194: =Data!F193-Calculations!F$1 -> 1.63262496 | G194: =Data!G193-Calculations!G$1 -> 1.832183543 | H194: =Data!H193-Calculations!H$1 -> 2.169142743 | I194: =Data!I193-Calculations!I$1 -> 2.909598188 | J194: =Data!J193-Calculations!J$1 -> 3.007511648 | K194: =Data!K193-Calculations!K$1 -> 2.945958447 | L194: =Data!L193-Calculations!L$1 -> 2.914346745 | M194: =Data!M193-Calculations!M$1 -> 0 | N194: =Data!N193-Calculations!N$1 -> 0 | O194: =Data!O193-Calculations!O$1 -> 0 | P194: =Data!P193-Calculations!P$1 -> 0 | Q194: =Data!Q193-Calculations!Q$1 -> 0 | R194: =Data!R193-Calculations!R$1 -> 0 | S194: =Data!S193-Calculations!S$1 -> 0 | T194: =Data!T193-Calculations!T$1 -> 0 | U194: =Data!U193-Calculations!U$1 -> 0 | V194: =Data!V193-Calculations!V$1 -> 0 | W194: =Data!W193-Calculations!W$1 -> 0
A195: =IF(Data!A194>0,Data!A194,NA()) -> 440.8348083 | B195: =Data!B194-Calculations!B$1 -> 0.715642533 | C195: =Data!C194-Calculations!C$1 -> 0.9209351735 | D195: =Data!D194-Calculations!D$1 -> 1.111469122 | E195: =Data!E194-Calculations!E$1 -> 1.328502135 | F195: =Data!F194-Calculations!F$1 -> 1.627368957 | G195: =Data!G194-Calculations!G$1 -> 1.83279499 | H195: =Data!H194-Calculations!H$1 -> 2.161614652 | I195: =Data!I194-Calculations!I$1 -> 2.89721032 | J195: =Data!J194-Calculations!J$1 -> 3.007511648 | K195: =Data!K194-Calculations!K$1 -> 2.945958447 | L195: =Data!L194-Calculations!L$1 -> 2.914346745 | M195: =Data!M194-Calculations!M$1 -> 0 | N195: =Data!N194-Calculations!N$1 -> 0 | O195: =Data!O194-Calculations!O$1 -> 0 | P195: =Data!P194-Calculations!P$1 -> 0 | Q195: =Data!Q194-Calculations!Q$1 -> 0 | R195: =Data!R194-Calculations!R$1 -> 0 | S195: =Data!S194-Calculations!S$1 -> 0 | T195: =Data!T194-Calculations!T$1 -> 0 | U195: =Data!U194-Calculations!U$1 -> 0 | V195: =Data!V194-Calculations!V$1 -> 0 | W195: =Data!W194-Calculations!W$1 -> 0
A196: =IF(Data!A195>0,Data!A195,NA()) -> 441.1734314 | B196: =Data!B195-Calculations!B$1 -> 0.7107062268 | C196: =Data!C195-Calculations!C$1 -> 0.9143850331 | D196: =Data!D195-Calculations!D$1 -> 1.104351921 | E196: =Data!E195-Calculations!E$1 -> 1.323227038 | F196: =Data!F195-Calculations!F$1 -> 1.620602053 | G196: =Data!G195-Calculations!G$1 -> 1.832805099 | H196: =Data!H195-Calculations!H$1 -> 2.16769512 | I196: =Data!I195-Calculations!I$1 -> 2.90748731 | J196: =Data!J195-Calculations!J$1 -> 3.007511648 | K196: =Data!K195-Calculations!K$1 -> 2.945958447 | L196: =Data!L195-Calculations!L$1 -> 2.914346745 | M196: =Data!M195-Calculations!M$1 -> 0 | N196: =Data!N195-Calculations!N$1 -> 0 | O196: =Data!O195-Calculations!O$1 -> 0 | P196: =Data!P195-Calculations!P$1 -> 0 | Q196: =Data!Q195-Calculations!Q$1 -> 0 | R196: =Data!R195-Calculations!R$1 -> 0 | S196: =Data!S195-Calculations!S$1 -> 0 | T196: =Data!T195-Calculations!T$1 -> 0 | U196: =Data!U195-Calculations!U$1 -> 0 | V196: =Data!V195-Calculations!V$1 -> 0 | W196: =Data!W195-Calculations!W$1 -> 0
A197: =IF(Data!A196>0,Data!A196,NA()) -> 441.5119934 | B197: =Data!B196-Calculations!B$1 -> 0.7058119073 | C197: =Data!C196-Calculations!C$1 -> 0.9112996813 | D197: =Data!D196-Calculations!D$1 -> 1.10159896 | E197: =Data!E196-Calculations!E$1 -> 1.315512701 | F197: =Data!F196-Calculations!F$1 -> 1.617844157 | G197: =Data!G196-Calculations!G$1 -> 1.82597959 | H197: =Data!H196-Calculations!H$1 -> 2.151802694 | I197: =Data!I196-Calculations!I$1 -> 2.90305145 | J197: =Data!J196-Calculations!J$1 -> 3.007511648 | K197: =Data!K196-Calculations!K$1 -> 2.945958447 | L197: =Data!L196-Calculations!L$1 -> 2.914346745 | M197: =Data!M196-Calculations!M$1 -> 0 | N197: =Data!N196-Calculations!N$1 -> 0 | O197: =Data!O196-Calculations!O$1 -> 0 | P197: =Data!P196-Calculations!P$1 -> 0 | Q197: =Data!Q196-Calculations!Q$1 -> 0 | R197: =Data!R196-Calculations!R$1 -> 0 | S197: =Data!S196-Calculations!S$1 -> 0 | T197: =Data!T196-Calculations!T$1 -> 0 | U197: =Data!U196-Calculations!U$1 -> 0 | V197: =Data!V196-Calculations!V$1 -> 0 | W197: =Data!W196-Calculations!W$1 -> 0
A198: =IF(Data!A197>0,Data!A197,NA()) -> 441.8505249 | B198: =Data!B197-Calculations!B$1 -> 0.6985296537 | C198: =Data!C197-Calculations!C$1 -> 0.9043546749 | D198: =Data!D197-Calculations!D$1 -> 1.09458119 | E198: =Data!E197-Calculations!E$1 -> 1.312204519 | F198: =Data!F197-Calculations!F$1 -> 1.608864591 | G198: =Data!G197-Calculations!G$1 -> 1.817343626 | H198: =Data!H197-Calculations!H$1 -> 2.147643541 | I198: =Data!I197-Calculations!I$1 -> 2.86800392 | J198: =Data!J197-Calculations!J$1 -> 3.007511648 | K198: =Data!K197-Calculations!K$1 -> 2.945958447 | L198: =Data!L197-Calculations!L$1 -> 2.914346745 | M198: =Data!M197-Calculations!M$1 -> 0 | N198: =Data!N197-Calculations!N$1 -> 0 | O198: =Data!O197-Calculations!O$1 -> 0 | P198: =Data!P197-Calculations!P$1 -> 0 | Q198: =Data!Q197-Calculations!Q$1 -> 0 | R198: =Data!R197-Calculations!R$1 -> 0 | S198: =Data!S197-Calculations!S$1 -> 0 | T198: =Data!T197-Calculations!T$1 -> 0 | U198: =Data!U197-Calculations!U$1 -> 0 | V198: =Data!V197-Calculations!V$1 -> 0 | W198: =Data!W197-Calculations!W$1 -> 0
A199: =IF(Data!A198>0,Data!A198,NA()) -> 442.1890259 | B199: =Data!B198-Calculations!B$1 -> 0.6941979579 | C199: =Data!C198-Calculations!C$1 -> 0.8997193168 | D199: =Data!D198-Calculations!D$1 -> 1.090018022 | E199: =Data!E198-Calculations!E$1 -> 1.311332288 | F199: =Data!F198-Calculations!F$1 -> 1.606352995 | G199: =Data!G198-Calculations!G$1 -> 1.811925363 | H199: =Data!H198-Calculations!H$1 -> 2.142220781 | I199: =Data!I198-Calculations!I$1 -> 2.827133163 | J199: =Data!J198-Calculations!J$1 -> 3.007511648 | K199: =Data!K198-Calculations!K$1 -> 2.945958447 | L199: =Data!L198-Calculations!L$1 -> 2.914346745 | M199: =Data!M198-Calculations!M$1 -> 0 | N199: =Data!N198-Calculations!N$1 -> 0 | O199: =Data!O198-Calculations!O$1 -> 0 | P199: =Data!P198-Calculations!P$1 -> 0 | Q199: =Data!Q198-Calculations!Q$1 -> 0 | R199: =Data!R198-Calculations!R$1 -> 0 | S199: =Data!S198-Calculations!S$1 -> 0 | T199: =Data!T198-Calculations!T$1 -> 0 | U199: =Data!U198-Calculations!U$1 -> 0 | V199: =Data!V198-Calculations!V$1 -> 0 | W199: =Data!W198-Calculations!W$1 -> 0
A200: =IF(Data!A199>0,Data!A199,NA()) -> 442.5274963 | B200: =Data!B199-Calculations!B$1 -> 0.6885406432 | C200: =Data!C199-Calculations!C$1 -> 0.8905288816 | D200: =Data!D199-Calculations!D$1 -> 1.082937899 | E200: =Data!E199-Calculations!E$1 -> 1.306472362 | F200: =Data!F199-Calculations!F$1 -> 1.598908837 | G200: =Data!G199-Calculations!G$1 -> 1.802369967 | H200: =Data!H199-Calculations!H$1 -> 2.129038519 | I200: =Data!I199-Calculations!I$1 -> 2.848159213 | J200: =Data!J199-Calculations!J$1 -> 3.007511648 | K200: =Data!K199-Calculations!K$1 -> 2.945958447 | L200: =Data!L199-Calculations!L$1 -> 2.914346745 | M200: =Data!M199-Calculations!M$1 -> 0 | N200: =Data!N199-Calculations!N$1 -> 0 | O200: =Data!O199-Calculations!O$1 -> 0 | P200: =Data!P199-Calculations!P$1 -> 0 | Q200: =Data!Q199-Calculations!Q$1 -> 0 | R200: =Data!R199-Calculations!R$1 -> 0 | S200: =Data!S199-Calculations!S$1 -> 0 | T200: =Data!T199-Calculations!T$1 -> 0 | U200: =Data!U199-Calculations!U$1 -> 0 | V200: =Data!V199-Calculations!V$1 -> 0 | W200: =Data!W199-Calculations!W$1 -> 0
... 1800 more rows
